Workbook

Sheet Document History
B2: UniQuE
B3: Subprocess-Control-Template
B4: (Engagement Name and Id)
B5: (Client)
B8: Document History
B10: Version | C10: Date | D10: Author | E10: Changes
B16: Review And Approval
B18: Company | C18: Role | D18: Name | E18: Date | F18: Signature
B25: Distribution
B27: Company | C27: Name | D27: Number | E27: Media | F27: Action
B34: Storage
B36: Location | C36: Access | D36: Administrator
B42: Company Confidential - Copyright © 2022 Capgemini - All rights reserved
B44: Template Version Number:Group Reference v1.1

Sheet CoverPage
B2: Sub Process Control Chart Sheet
B4: Project Details :
B5: BU / SBU Name
B6: Project Name
B7: Engagement Manager
B8: Project Type
B9: Delivery Manager
B10: QA
B11: Identified Sub process
B12: Basis of Sub process identification
B13: Prepared by / Date
B14: Approved by / Date
B15: Threshold Value
B16: Analysis/ Review Frequence
B18: Document Revision History
B19: Rev No. | C19: Date of Issue | E19: Author | G19: Approved by | I19: Scope
B27: Copyright @ Altran Technologies India Pvt. Ltd 2019. All rights reserved.

Sheet Step to Execute
B2: STEP TO EXECUTE (Control Chart Application)

Sheet Raw Data Collection Sheet
B2: RAW DATA COLLECTION SHEET (Use for Trial Control Limit)
B4: Control Chart Details: | F4: Control Chart Details: | K4: Control Chart Details:
B5: Chart Type | D5: X-mR Chart | F5: Chart Type | H5: U Chart | K5: Chart Type | M5: P Chart
B6: Distribution followed | D6: Normal | F6: Distribution followed | H6: Poisson | K6: Distribution followed | M6: Binomial
B7: Data Type | D7: Variable | F7: Data Type | H7: Attribute | K7: Data Type | M7: Attribute
B8: Sample or Subgroup size | D8: Sub group size is 1 | F8: Sample or Subgroup size | H8: Unequal Sized | K8: Sample or Subgroup size | M8: Equal Sized
B9: Sub Process Identified | F9: Sub Process Identified | K9: Sub Process Identified
B10: Metrics Used | F10: Metrics Used | K10: Metrics Used
B11: Basis of Sub Process selection | D11: Derived from PPM (Sensitivity Analysis) | F11: Basis of Sub Process selection | H11: Derived from PPM (Sensitivity Analysis) | K11: Basis of Sub Process selection | M11: Derived from PPM (Sensitivity Analysis)
B13: S. No. | C13: Module / Feature / Release | D13: Data Points | F13: S. No. | G13: Module / Feature / Release | H13: Defect | I13: Sample Size | K13: S. No. | L13: Module / Feature / Release | M13: Defect | N13: Sample Size
A14: 1 | B14: =IF(D14="","",A14) ->  | F14: =IF(H14="","",A14) ->  | K14: =IF(M14="","",A14) -> 
A15: 2 | F15: =IF(H15="","",A15) ->  | K15: =IF(M15="","",A15) -> 
A16: 3
A17: 4
A18: 5
A19: 6
A20: 7
A21: 8
A22: 9
A23: 10
A24: 11
A25: 12
A26: 13
A27: 14
A28: 15
A29: 16
A30: 17
A31: 18
A32: 19
A33: 20
A34: 21
A35: 22
A36: 23
A37: 24
A38: 25
A39: 26
A40: 27
A41: 28
A42: 29
A43: 30
A44: 31
A45: 32
A46: 33 | B46: =IF(D46="","",A46) -> 
A47: 34
A48: 35
A49: 36
A50: 37
A51: 38
A52: 39
A53: 40
A54: 41
A55: 42
A56: 43
A57: 44
A58: 45
A59: 46
A60: 47
A61: 48
A62: 49
A63: 50
A64: 51
A65: 52
A66: 53
A67: 54
A68: 55
A69: 56
A70: 57
A71: 58
A72: 59
A73: 60
A74: 61
A75: 62
A76: 63
A77: 64
A78: 65 | B78: =IF(D78="","",A78) -> 
A79: 66 | F79: =IF(H79="","",A79) ->  | K79: =IF(M79="","",A79) -> 
A80: 67
A81: 68
A82: 69
A83: 70
A84: 71
A85: 72
A86: 73
A87: 74
A88: 75
A89: 76
A90: 77
A91: 78
A92: 79
A93: 80
A94: 81
A95: 82
A96: 83
A97: 84
A98: 85
A99: 86
A100: 87

Sheet XmR_Chart
A2: X-MR Chart for Variables
A4: CONTROL CHART DETAILS: | W4: Out-Of-Control Process: Sensitization Rules
A5: Chart Type | C5: X-mR Chart | E5: DATA POINT STATISTICS | G5: DEFINE SPECIFICATION LIMIT | W5: Rule - 1 | X5: Rule - 2 | Y5: Rule - 3 | Z5: Rule - 4
A6: Distribution followed | C6: Normal | E6: Mean | F6: =IF(COUNTA(C13:C710)=0,"-",AVERAGEIF(I13:I710,"1",C13:C710)) -> 6.125 | G6: Upper Spec. (USL) | H6: 9
A7: Data Type | B7: Data Type | C7: Variable | E7: R-Mean | F7: =IFERROR(AVERAGEIF(I13:I710,"1",D13:D710), "-") -> 0.7142857143 | G7: Lower Spec. (LSL) | H7: 1
A8: Sample or Subgroup size | B8: Sample or Subgroup size | C8: Sub group size is 1 | E8: Intial Data Points (for Freezing Baselines) | F8: 8 | G8: PROCESS CAPABILITY (Select this cell to view HELP) | V8: =ROUND(((H6-H7)/(6*(F7/(VLOOKUP(1,XMR_Table,4,FALSE))))),3) -> 2.106
A9: Sub Process Identified | B9: Sub Process Identified | E9: Revise Contril Limit | F9: Please use separate sheet for revise control limit | G9: =IF(COUNTBLANK(H6:H7)>0,"Cp = need spec. limit","Cp"&" = "&ROUND(((H6-H7)/(6*(F7/(VLOOKUP(1,XMR_Table,4,FALSE))))),3)) -> Cp = 2.106 | H9: =IF(COUNTBLANK(H6)>0,"need spec. limit","Cpu"&" = "&ROUND(((H6-F6)/(3*(F7/(VLOOKUP(1,XMR_Table,4,FALSE))))),3)) -> Cpu = 1.513 | V9: =IF(COUNTBLANK(H6)>0,"need spec. limit", ROUND(((H6-F6)/(3*(F7/(VLOOKUP(1,XMR_Table,4,FALSE))))),3)) -> 1.513
A10: Basis of Sub Process selection | C10: Derived from PPM (Sensitivity Analysis) | E10: Metrics Used | G10: ="Cpk"&" = "&MIN(V9, V10) -> Cpk = 1.513 | H10: =IF(COUNTBLANK(H7)>0,"need spec. limit","Cpl"&" = "&ROUND(((F6-H7)/(3*(F7/(VLOOKUP(1,XMR_Table,4,FALSE))))),3)) -> Cpl = 2.698 | V10: =IF(COUNTBLANK(H7)>0,"need spec. limit", ROUND(((F6-H7)/(3*(F7/(VLOOKUP(1,XMR_Table,4,FALSE))))),3)) -> 2.698 | AG10: Rule 2 | AP10: Rule 3 | AY10: Rule 4 | BH10: Rule 1
AM11: Rule 1 | AV11: Rule 1 | BE11: Rule 1
A12: Date of reporting | B12: S. No. | C12: Data Points | D12: Range | E12: R Limit | F12: LCL | G12: UCL | H12: RCA for Out of Control Points | I12: Column1 | J12: CLA | K12: CL | L12: Column2 | M12: 2r-UCL | N12: 1r-LCL | O12: 2r-lCL | P12: 1r-UCL | Q12: -3 Sigma | R12: 1lcl | S12: 2lcl | T12: 1ucl | U12: 2ucl | AG12: Between +2 to +3 | AJ12: Between -2 to -3 | AM12: Rule 2 | AP12: Between +2 to +3 | AS12: Between -2 to -3 | AV12: Rule 3 | AY12: Between CL to +3 | BB12: Between CL to -3 | BE12: Rule 3 | BH12: Between -3 to +3 | BI12: Rule 1
A13: 2011-05-01 | B13: =IF(C13="","",1) -> 1 | C13: 6 | E13: =IF(D13="","",AVERAGE($D$14:$D$511)) ->  | F13: =IF(C13="","",IF($F$6-(2.66*$F$7)<0, 0, $F$6-(2.66*$F$7))) -> 4.225 | G13: =IF(C13="","",$F$6+(2.66*$F$7)) -> 8.025 | I13: =IF(B13>$F$8,0,1) -> 1 | J13: =IF(G13="","",$F$6) -> 6.125 | L13: =D13 -> 0 | M13: =E13 ->  | R13: =IF(C13="","",IF($F$6-(0.89*$F$7)<0, 0, $F$6-(0.89*$F$7))) -> 5.489285714 | S13: =IF(C13="","",IF($F$6-(1.77*$F$7)<0,0,$F$6-(1.77*$F$7))) -> 4.860714286 | T13: =IF(C13="","",$F$6+(0.89*$F$7)) -> 6.760714286 | U13: =IF(C13="","",$F$6+(1.77*$F$7)) -> 7.389285714 | AG13: =IF(C13="","",IF(AND(C13>=U13,C13<G13),1,0)) -> 0 | AH13: =SUM(AG13:AG15) -> 0 | AI13: =IF(AH14=2,"",IF(AH13>=2,CONCATENATE("Data Point ",B13," to ","Data Point ",(B13+2)),"")) ->  | AJ13: =IF(C13="","",IF(AND(C13<=S13,C13>F13),1,0)) -> 0 | AK13: =SUM(AJ13:AJ15) -> 0 | AL13: =IF(AK14=2,"",IF(AK13>=2,CONCATENATE("Data Point ",B13," to ","Data Point ",(B13+2)),"")) ->  | AM13: =IF(AND(AI13<>"",AL13=""),AI13,IF(AND(AI13="",AL13<>""),AL13,IF(AND(AI13<>"",AL13<>""),AI13,""))) ->  | AP13: =IF(C13="","",IF(AND(C13>=T13,C13<G13),1,0)) -> 0 | AQ13: =SUM(AP13:AP17) -> 1 | AR13: =IF(AQ14=4,"",IF(AQ13>=4,CONCATENATE("Data Point ",B13," to ","Data Point ",(B13+4)),"")) ->  | AS13: =IF(C13="","",IF(AND(C13<=R13,C13>F13),1,0)) -> 0 | AT13: =SUM(AS13:AS17) -> 2 | AU13: =IF(AT14=4,"",IF(AT13>=4,CONCATENATE("Data Point ",B13," to ","Data Point ",(B13+4)),"")) ->  | AV13: =IF(AND(AR13<>"",AU13=""),AR13,IF(AND(AR13="",AU13<>""),AU13,IF(AND(AR13<>"",AU13<>""),AR13,""))) ->  | AY13: =IF(C13="","",IF(AND(C13>=J13,C13<G13),1,0)) -> 0 | AZ13: =SUM(AY13:AY20) -> 3 | BA13: =IF(AZ13=8,CONCATENATE("Data Point ",B13," to ","Data Point ",(B13+8)),"") ->  | BB13: =IF(C13="","",IF(AND(C13<=J13,C13>F13),1,0)) -> 1 | BC13: =SUM(BB13:BB20) -> 5 | BD13: =IF(BC13=8,CONCATENATE("Data Point ",B13," to ","Data Point ",(B13+8)),"") ->  | BE13: =IF(AND(BA13<>"",BD13=""),BA13,IF(AND(BA13="",BD13<>""),BD13,IF(AND(BA13<>"",BD13<>""),BA13,""))) ->  | BH13: =IF(C13="","",IF(OR(C13>G13,C13<Table115[[#This Row],[LCL]]),1,0)) -> 0 | BI13: =IF(BH13=1,CONCATENATE("Data Point ",B13),"") -> 
A14: 2011-06-03 | B14: =IF(C14="","",B13+1) -> 2 | C14: 6 | D14: =IF(C14="","",ABS(C14-C13)) -> 0 | E14: =IF(C14="","",3.27*$F$7) -> 2.335714286 | F14: =IF(C14="","",IF($F$6-(2.66*$F$7)<0, 0, $F$6-(2.66*$F$7))) -> 4.225 | G14: 8.025 | I14: 1 | J14: 6.125 | K14: =IF(G14="","",$F$7) -> 0.7142857143 | L14: 0 | M14: =IF(C14="","",IF((3.27*$F$7)*(2/3)<0,0,(3.27*$F$7)*(2/3))) -> 1.557142857 | N14: =IF(C14="","",IF((-3.27*$F$7)*(1/3)<0,0,(-3.27*$F$7)*(1/3))) -> 0 | O14: =IF(C14="","",IF((-3.27*$F$7)*(2/3)<0,0,(-3.27*$F$7)*(2/3))) -> 0 | P14: =IF(C14="","",(3.27*$F$7)*(1/3)) -> 0.7785714286 | Q14: =IF(B14="", "", 0) -> 0 | R14: 5.489285714 | S14: 4.860714286 | T14: 6.760714286 | U14: 7.389285714 | AG14: =IF(C14="","",IF(AND(C14>=U14,C14<G14),1,0)) -> 0 | AH14: =SUM(AG14:AG16) -> 0 | AI14: =IF(AH15=2,"",IF(AH14>=2,CONCATENATE("Data Point ",B14," to ","Data Point ",(B14+2)),"")) ->  | AJ14: =IF(C14="","",IF(AND(C14<=S14,C14>F14),1,0)) -> 0 | AK14: 0 | AL14: =IF(AK15=2,"",IF(AK14>=2,CONCATENATE("Data Point ",B14," to ","Data Point ",(B14+2)),"")) ->  | AP14: =IF(C14="","",IF(AND(C14>=T14,C14<G14),1,0)) -> 0 | AQ14: =SUM(AP14:AP18) -> 1 | AR14: =IF(AQ15=4,"",IF(AQ14>=4,CONCATENATE("Data Point ",B14," to ","Data Point ",(B14+4)),"")) ->  | AS14: =IF(C14="","",IF(AND(C14<=R14,C14>F14),1,0)) -> 0 | AT14: =SUM(AS14:AS18) -> 2 | AU14: =IF(AT15=4,"",IF(AT14>=4,CONCATENATE("Data Point ",B14," to ","Data Point ",(B14+4)),"")) ->  | AV14: =IF(AND(AR14<>"",AU14=""),AR14,IF(AND(AR14="",AU14<>""),AU14,IF(AND(AR14<>"",AU14<>""),AR14,""))) ->  | AY14: =IF(C14="","",IF(AND(C14>=J14,C14<G14),1,0)) -> 0 | AZ14: =SUM(AY14:AY21) -> 3 | BA14: =IF(AZ14=8,CONCATENATE("Data Point ",B14," to ","Data Point ",(B14+8)),"") ->  | BB14: =IF(C14="","",IF(AND(C14<=J14,C14>F14),1,0)) -> 1 | BC14: =SUM(BB14:BB21) -> 4 | BD14: =IF(BC14=8,CONCATENATE("Data Point ",B14," to ","Data Point ",(B14+8)),"") ->  | BE14: =IF(AND(BA14<>"",BD14=""),BA14,IF(AND(BA14="",BD14<>""),BD14,IF(AND(BA14<>"",BD14<>""),BA14,""))) ->  | BH14: =IF(C14="","",IF(OR(C14>G14,C14<Table115[[#This Row],[LCL]]),1,0)) -> 0 | BI14: =IF(BH14=1,CONCATENATE("Data Point ",B14),"") -> 
A15: 2011-07-04 | B15: =IF(C15="","",B14+1) -> 3 | C15: 5 | D15: =IF(C15="","",ABS(C15-C14)) -> 1 | E15: 2.335714286 | F15: 4.225 | G15: 8.025 | I15: 1 | J15: 6.125 | K15: 0.7142857143 | L15: 1 | M15: =IF(C15="","",IF((3.27*$F$7)*(2/3)<0,0,(3.27*$F$7)*(2/3))) -> 1.557142857 | N15: =IF(C15="","",IF((-3.27*$F$7)*(1/3)<0,0,(-3.27*$F$7)*(1/3))) -> 0 | O15: =IF(C15="","",IF((-3.27*$F$7)*(2/3)<0,0,(-3.27*$F$7)*(2/3))) -> 0 | P15: =IF(C15="","",(3.27*$F$7)*(1/3)) -> 0.7785714286 | Q15: =IF(B15="", "", 0) -> 0 | R15: 5.489285714 | S15: 4.860714286 | T15: 6.760714286 | U15: 7.389285714 | AG15: 0 | AH15: 0 | AJ15: 0 | AK15: 0 | AP15: 0 | AQ15: =SUM(AP15:AP19) -> 2 | AS15: 1 | AT15: 2 | AY15: 0 | AZ15: 3 | BB15: 1 | BC15: 3 | BH15: =IF(C15="","",IF(OR(C15>G15,C15<Table115[[#This Row],[LCL]]),1,0)) -> 0
A16: 2011-08-05 | B16: 4 | C16: 5 | D16: =IF(C16="","",ABS(C16-C15)) -> 0 | E16: 2.335714286 | F16: 4.225 | G16: 8.025 | I16: 1 | J16: 6.125 | K16: 0.7142857143 | L16: =D16 -> 0 | M16: 1.557142857 | N16: 0 | O16: 0 | P16: 0.7785714286 | Q16: 0 | R16: 5.489285714 | S16: 4.860714286 | T16: 6.760714286 | U16: 7.389285714 | AG16: 0 | AH16: 0 | AJ16: 0 | AK16: 0 | AP16: 0 | AQ16: 3 | AS16: 1 | AT16: 1 | AY16: 0 | AZ16: 3 | BB16: 1 | BC16: 2 | BH16: =IF(C16="","",IF(OR(C16>G16,C16<Table115[[#This Row],[LCL]]),1,0)) -> 0
A17: 2011-09-02 | B17: 5 | C17: 7 | D17: =IF(C17="","",ABS(C17-C16)) -> 2 | E17: 2.335714286 | F17: 4.225 | G17: 8.025 | I17: 1 | J17: 6.125 | K17: 0.7142857143 | L17: 2 | M17: 1.557142857 | N17: 0 | O17: 0 | P17: 0.7785714286 | Q17: 0 | R17: 5.489285714 | S17: 4.860714286 | T17: 6.760714286 | U17: 7.389285714 | AG17: 0 | AH17: 0 | AJ17: 0 | AK17: 0 | AP17: 1 | AQ17: 3 | AS17: 0 | AT17: 0 | AY17: 1 | AZ17: 3 | BB17: 0 | BC17: 1 | BH17: =IF(C17="","",IF(OR(C17>G17,C17<Table115[[#This Row],[LCL]]),1,0)) -> 0
A18: 2011-10-01 | B18: 6 | C18: 6 | D18: 1 | E18: 2.335714286 | F18: 4.225 | G18: 8.025 | I18: 1 | J18: 6.125 | K18: 0.7142857143 | L18: 1 | M18: 1.557142857 | N18: 0 | O18: 0 | P18: 0.7785714286 | Q18: 0 | R18: 5.489285714 | S18: 4.860714286 | T18: 6.760714286 | U18: 7.389285714 | AG18: 0 | AH18: 0 | AJ18: 0 | AK18: 0 | AP18: 0 | AQ18: 2 | AS18: 0 | AT18: 0 | AY18: 0 | AZ18: 2 | BB18: 1 | BC18: 1 | BH18: =IF(C18="","",IF(OR(C18>G18,C18<Table115[[#This Row],[LCL]]),1,0)) -> 0
A19: 2011-10-04 | B19: 7 | C19: 7 | D19: 1 | E19: 2.335714286 | F19: 4.225 | G19: 8.025 | I19: 1 | J19: 6.125 | K19: 0.7142857143 | L19: 1 | M19: 1.557142857 | N19: 0 | O19: 0 | P19: 0.7785714286 | Q19: 0 | R19: 5.489285714 | S19: 4.860714286 | T19: 6.760714286 | U19: 7.389285714 | AG19: 0 | AH19: 0 | AJ19: 0 | AK19: 0 | AP19: 1 | AQ19: 2 | AS19: 0 | AT19: 0 | AY19: 1 | AZ19: 2 | BB19: 0 | BC19: 0 | BH19: =IF(C19="","",IF(OR(C19>G19,C19<Table115[[#This Row],[LCL]]),1,0)) -> 0
A20: 2011-10-10 | B20: 8 | C20: 7 | D20: 0 | E20: 2.335714286 | F20: 4.225 | G20: 8.025 | I20: 1 | J20: 6.125 | K20: 0.7142857143 | L20: 0 | M20: 1.557142857 | N20: 0 | O20: 0 | P20: 0.7785714286 | Q20: 0 | R20: 5.489285714 | S20: 4.860714286 | T20: 6.760714286 | U20: 7.389285714 | AG20: 0 | AH20: 0 | AJ20: 0 | AK20: 0 | AP20: 1 | AQ20: 1 | AS20: 0 | AT20: 0 | AY20: 1 | AZ20: 1 | BB20: 0 | BC20: 0 | BH20: =IF(C20="","",IF(OR(C20>G20,C20<Table115[[#This Row],[LCL]]),1,0)) -> 0
I21: 0 | L21: =D21 ->  | AH21: 0 | AK21: 0 | AQ21: 0 | AT21: 0 | AZ21: 0 | BC21: 0 | BH21: =IF(C21="","",IF(OR(C21>G21,C21<Table115[[#This Row],[LCL]]),1,0)) -> 
I22: 0 | AH22: 0 | AK22: 0 | AQ22: 0 | AT22: 0 | AZ22: 0 | BC22: 0 | BH22: =IF(C22="","",IF(OR(C22>G22,C22<Table115[[#This Row],[LCL]]),1,0)) -> 
I23: 0 | AH23: 0 | AK23: 0 | AQ23: 0 | AT23: 0 | AZ23: 0 | BC23: 0 | BH23: =IF(C23="","",IF(OR(C23>G23,C23<Table115[[#This Row],[LCL]]),1,0)) -> 
I24: 0 | AH24: 0 | AK24: 0 | AQ24: =SUM(AP24:AP28) -> 0 | AT24: 0 | AZ24: 0 | BC24: 0 | BH24: =IF(C24="","",IF(OR(C24>G24,C24<Table115[[#This Row],[LCL]]),1,0)) -> 
I25: 0 | AH25: 0 | AK25: 0 | AQ25: 0 | AT25: 0 | AZ25: 0 | BC25: 0 | BH25: =IF(C25="","",IF(OR(C25>G25,C25<Table115[[#This Row],[LCL]]),1,0)) -> 
I26: 0 | AH26: 0 | AK26: 0 | AQ26: 0 | AT26: 0 | AZ26: 0 | BC26: 0 | BH26: =IF(C26="","",IF(OR(C26>G26,C26<Table115[[#This Row],[LCL]]),1,0)) -> 
I27: 0 | AH27: 0 | AK27: 0 | AQ27: 0 | AT27: 0 | AZ27: 0 | BC27: 0 | BH27: =IF(C27="","",IF(OR(C27>G27,C27<Table115[[#This Row],[LCL]]),1,0)) -> 
I28: 0 | AH28: 0 | AK28: 0 | AQ28: 0 | AT28: 0 | AZ28: 0 | BC28: 0 | BH28: =IF(C28="","",IF(OR(C28>G28,C28<Table115[[#This Row],[LCL]]),1,0)) -> 
I29: 0 | AH29: 0 | AK29: 0 | AQ29: 0 | AT29: 0 | AZ29: 0 | BC29: 0 | BH29: =IF(C29="","",IF(OR(C29>G29,C29<Table115[[#This Row],[LCL]]),1,0)) -> 
I30: 0 | AH30: 0 | AK30: 0 | AQ30: 0 | AT30: 0 | AZ30: 0 | BC30: 0 | BH30: =IF(C30="","",IF(OR(C30>G30,C30<Table115[[#This Row],[LCL]]),1,0)) -> 
I31: 0 | AH31: 0 | AK31: 0 | AQ31: 0 | AT31: 0 | AZ31: 0 | BC31: 0 | BH31: =IF(C31="","",IF(OR(C31>G31,C31<Table115[[#This Row],[LCL]]),1,0)) -> 
I32: 0 | AG32: =IF(C32="","",IF(AND(C32>=U32,C32<G32),1,0)) ->  | AH32: 0 | AJ32: =IF(C32="","",IF(AND(C32<=S32,C32>F32),1,0)) ->  | AK32: 0 | AQ32: 0 | AT32: 0 | AZ32: 0 | BC32: 0 | BH32: =IF(C32="","",IF(OR(C32>G32,C32<Table115[[#This Row],[LCL]]),1,0)) -> 
I33: 0 | AH33: 0 | AK33: 0 | AQ33: 0 | AT33: 0 | AZ33: 0 | BC33: 0 | BH33: =IF(C33="","",IF(OR(C33>G33,C33<Table115[[#This Row],[LCL]]),1,0)) -> 
I34: 0 | AH34: 0 | AK34: 0 | AQ34: 0 | AT34: 0 | AZ34: 0 | BC34: 0 | BH34: =IF(C34="","",IF(OR(C34>G34,C34<Table115[[#This Row],[LCL]]),1,0)) -> 
I35: 0 | AH35: 0 | AK35: 0 | AQ35: 0 | AT35: 0 | AZ35: 0 | BC35: 0 | BH35: =IF(C35="","",IF(OR(C35>G35,C35<Table115[[#This Row],[LCL]]),1,0)) -> 
I36: 0 | AH36: 0 | AK36: 0 | AQ36: 0 | AT36: 0 | AZ36: 0 | BC36: 0 | BH36: =IF(C36="","",IF(OR(C36>G36,C36<Table115[[#This Row],[LCL]]),1,0)) -> 
I37: 0 | AH37: 0 | AK37: 0 | AQ37: 0 | AT37: 0 | AZ37: 0 | BC37: 0 | BH37: =IF(C37="","",IF(OR(C37>G37,C37<Table115[[#This Row],[LCL]]),1,0)) -> 
I38: 0 | AH38: 0 | AK38: 0 | AQ38: 0 | AT38: 0 | AZ38: 0 | BC38: 0 | BH38: =IF(C38="","",IF(OR(C38>G38,C38<Table115[[#This Row],[LCL]]),1,0)) -> 
I39: 0 | AH39: 0 | AK39: 0 | AQ39: 0 | AT39: 0 | AZ39: 0 | BC39: 0 | BH39: =IF(C39="","",IF(OR(C39>G39,C39<Table115[[#This Row],[LCL]]),1,0)) -> 
I40: 0 | AH40: 0 | AK40: 0 | AQ40: 0 | AT40: 0 | AZ40: 0 | BC40: 0 | BH40: =IF(C40="","",IF(OR(C40>G40,C40<Table115[[#This Row],[LCL]]),1,0)) -> 
I41: 0 | AH41: 0 | AK41: 0 | AQ41: 0 | AT41: 0 | AZ41: 0 | BC41: 0 | BH41: =IF(C41="","",IF(OR(C41>G41,C41<Table115[[#This Row],[LCL]]),1,0)) -> 
I42: 0 | AH42: 0 | AK42: 0 | AQ42: 0 | AT42: 0 | AZ42: 0 | BC42: 0 | BH42: =IF(C42="","",IF(OR(C42>G42,C42<Table115[[#This Row],[LCL]]),1,0)) -> 
I43: 0 | AH43: 0 | AK43: 0 | AQ43: 0 | AT43: 0 | AZ43: 0 | BC43: 0 | BH43: =IF(C43="","",IF(OR(C43>G43,C43<Table115[[#This Row],[LCL]]),1,0)) -> 
I44: 0 | AH44: 0 | AK44: 0 | AQ44: 0 | AT44: 0 | AZ44: 0 | BC44: 0 | BH44: =IF(C44="","",IF(OR(C44>G44,C44<Table115[[#This Row],[LCL]]),1,0)) -> 
I45: 0 | AH45: 0 | AK45: 0 | AQ45: 0 | AT45: 0 | AZ45: 0 | BC45: 0 | BH45: =IF(C45="","",IF(OR(C45>G45,C45<Table115[[#This Row],[LCL]]),1,0)) -> 
I46: 0 | AH46: 0 | AK46: 0 | AQ46: 0 | AT46: 0 | AZ46: 0 | BC46: 0 | BH46: =IF(C46="","",IF(OR(C46>G46,C46<Table115[[#This Row],[LCL]]),1,0)) -> 
I47: 0 | AH47: 0 | AK47: 0 | AQ47: 0 | AT47: 0 | AZ47: 0 | BC47: 0 | BH47: =IF(C47="","",IF(OR(C47>G47,C47<Table115[[#This Row],[LCL]]),1,0)) -> 
I48: 0 | AH48: 0 | AK48: 0 | AQ48: 0 | AT48: 0 | AZ48: 0 | BC48: 0 | BH48: =IF(C48="","",IF(OR(C48>G48,C48<Table115[[#This Row],[LCL]]),1,0)) -> 
I49: 0 | AH49: 0 | AK49: 0 | AQ49: 0 | AT49: 0 | AZ49: 0 | BC49: 0 | BH49: =IF(C49="","",IF(OR(C49>G49,C49<Table115[[#This Row],[LCL]]),1,0)) -> 
I50: 0 | AH50: 0 | AK50: 0 | AQ50: 0 | AT50: 0 | AZ50: 0 | BC50: 0 | BH50: =IF(C50="","",IF(OR(C50>G50,C50<Table115[[#This Row],[LCL]]),1,0)) -> 
I51: 0 | AH51: 0 | AK51: 0 | AQ51: 0 | AT51: 0 | AZ51: 0 | BC51: 0 | BH51: =IF(C51="","",IF(OR(C51>G51,C51<Table115[[#This Row],[LCL]]),1,0)) -> 
I52: 0 | AH52: 0 | AK52: 0 | AQ52: 0 | AT52: 0 | AZ52: 0 | BC52: 0 | BH52: =IF(C52="","",IF(OR(C52>G52,C52<Table115[[#This Row],[LCL]]),1,0)) -> 
I53: 0 | AH53: 0 | AK53: 0 | AQ53: 0 | AT53: 0 | AZ53: 0 | BC53: 0 | BH53: =IF(C53="","",IF(OR(C53>G53,C53<Table115[[#This Row],[LCL]]),1,0)) -> 
I54: 0 | AH54: 0 | AK54: 0 | AQ54: 0 | AT54: 0 | AZ54: 0 | BC54: 0 | BH54: =IF(C54="","",IF(OR(C54>G54,C54<Table115[[#This Row],[LCL]]),1,0)) -> 
I55: 0 | AH55: 0 | AK55: 0 | AQ55: 0 | AT55: 0 | AZ55: 0 | BC55: 0 | BH55: =IF(C55="","",IF(OR(C55>G55,C55<Table115[[#This Row],[LCL]]),1,0)) -> 
I56: 0 | AH56: 0 | AK56: 0 | AQ56: 0 | AT56: 0 | AZ56: 0 | BC56: 0 | BH56: =IF(C56="","",IF(OR(C56>G56,C56<Table115[[#This Row],[LCL]]),1,0)) -> 
I57: 0 | AH57: 0 | AK57: 0 | AQ57: 0 | AT57: 0 | AZ57: 0 | BC57: 0 | BH57: =IF(C57="","",IF(OR(C57>G57,C57<Table115[[#This Row],[LCL]]),1,0)) -> 
I58: 0 | AH58: 0 | AK58: 0 | AQ58: 0 | AT58: 0 | AZ58: 0 | BC58: 0 | BH58: =IF(C58="","",IF(OR(C58>G58,C58<Table115[[#This Row],[LCL]]),1,0)) -> 
I59: 0 | AH59: 0 | AK59: 0 | AQ59: 0 | AT59: 0 | AZ59: 0 | BC59: 0 | BH59: =IF(C59="","",IF(OR(C59>G59,C59<Table115[[#This Row],[LCL]]),1,0)) -> 
I60: 0 | AH60: 0 | AK60: 0 | AQ60: 0 | AT60: 0 | AZ60: 0 | BC60: 0 | BH60: =IF(C60="","",IF(OR(C60>G60,C60<Table115[[#This Row],[LCL]]),1,0)) -> 
I61: 0 | AH61: 0 | AK61: 0 | AQ61: 0 | AT61: 0 | AZ61: 0 | BC61: 0 | BH61: =IF(C61="","",IF(OR(C61>G61,C61<Table115[[#This Row],[LCL]]),1,0)) -> 
I62: 0 | AH62: 0 | AK62: 0 | AQ62: 0 | AT62: 0 | AZ62: 0 | BC62: 0 | BH62: =IF(C62="","",IF(OR(C62>G62,C62<Table115[[#This Row],[LCL]]),1,0)) -> 
I63: 0 | AH63: 0 | AK63: 0 | AQ63: 0 | AT63: 0 | AZ63: 0 | BC63: 0 | BH63: =IF(C63="","",IF(OR(C63>G63,C63<Table115[[#This Row],[LCL]]),1,0)) -> 
I64: 0 | AH64: 0 | AK64: 0 | AQ64: 0 | AT64: 0 | AZ64: 0 | BC64: 0 | BH64: =IF(C64="","",IF(OR(C64>G64,C64<Table115[[#This Row],[LCL]]),1,0)) -> 
I65: 0 | AH65: 0 | AK65: 0 | AQ65: 0 | AT65: 0 | AZ65: 0 | BC65: 0 | BH65: =IF(C65="","",IF(OR(C65>G65,C65<Table115[[#This Row],[LCL]]),1,0)) -> 
I66: 0 | AH66: 0 | AK66: 0 | AQ66: 0 | AT66: 0 | AZ66: 0 | BC66: 0 | BH66: =IF(C66="","",IF(OR(C66>G66,C66<Table115[[#This Row],[LCL]]),1,0)) -> 
I67: 0 | AH67: 0 | AK67: 0 | AQ67: 0 | AT67: 0 | AZ67: 0 | BC67: 0 | BH67: =IF(C67="","",IF(OR(C67>G67,C67<Table115[[#This Row],[LCL]]),1,0)) -> 
I68: 0 | AH68: 0 | AK68: 0 | AQ68: 0 | AT68: 0 | AZ68: 0 | BC68: 0 | BH68: =IF(C68="","",IF(OR(C68>G68,C68<Table115[[#This Row],[LCL]]),1,0)) -> 
I69: 0 | AH69: 0 | AK69: 0 | AQ69: 0 | AT69: 0 | AZ69: 0 | BC69: 0 | BH69: =IF(C69="","",IF(OR(C69>G69,C69<Table115[[#This Row],[LCL]]),1,0)) -> 
I70: 0 | AH70: 0 | AK70: 0 | AQ70: 0 | AT70: 0 | AZ70: 0 | BC70: 0 | BH70: =IF(C70="","",IF(OR(C70>G70,C70<Table115[[#This Row],[LCL]]),1,0)) -> 
I71: 0 | AH71: 0 | AK71: 0 | AQ71: 0 | AT71: 0 | AZ71: 0 | BC71: 0 | BH71: =IF(C71="","",IF(OR(C71>G71,C71<Table115[[#This Row],[LCL]]),1,0)) -> 
I72: 0 | AH72: 0 | AK72: 0 | AQ72: 0 | AT72: 0 | AZ72: 0 | BC72: 0 | BH72: =IF(C72="","",IF(OR(C72>G72,C72<Table115[[#This Row],[LCL]]),1,0)) -> 
I73: 0 | AH73: 0 | AK73: 0 | AQ73: 0 | AT73: 0 | AZ73: 0 | BC73: 0 | BH73: =IF(C73="","",IF(OR(C73>G73,C73<Table115[[#This Row],[LCL]]),1,0)) -> 
I74: 0 | AH74: 0 | AK74: 0 | AQ74: 0 | AT74: 0 | AZ74: 0 | BC74: 0 | BH74: =IF(C74="","",IF(OR(C74>G74,C74<Table115[[#This Row],[LCL]]),1,0)) -> 
I75: 0 | AH75: 0 | AK75: 0 | AQ75: 0 | AT75: 0 | AZ75: 0 | BC75: 0 | BH75: =IF(C75="","",IF(OR(C75>G75,C75<Table115[[#This Row],[LCL]]),1,0)) -> 
I76: 0 | AH76: 0 | AK76: 0 | AQ76: 0 | AT76: 0 | AZ76: 0 | BC76: 0 | BH76: =IF(C76="","",IF(OR(C76>G76,C76<Table115[[#This Row],[LCL]]),1,0)) -> 
D77: =IF(C77="","",ABS(C77-C76)) ->  | G77: =IF(C77="","",$F$6+(2.66*$F$7)) ->  | I77: =IF(B77>$F$8,0,1) -> 0 | J77: =IF(G77="","",$F$6) ->  | R77: =IF(C77="","",IF($F$6-(0.89*$F$7)<0, 0, $F$6-(0.89*$F$7))) ->  | S77: =IF(C77="","",IF($F$6-(1.77*$F$7)<0,0,$F$6-(1.77*$F$7))) ->  | T77: =IF(C77="","",$F$6+(0.89*$F$7)) ->  | U77: =IF(C77="","",$F$6+(1.77*$F$7)) ->  | AH77: 0 | AK77: 0 | AQ77: 0 | AT77: 0 | AZ77: 0 | BC77: 0 | BH77: =IF(C77="","",IF(OR(C77>G77,C77<Table115[[#This Row],[LCL]]),1,0)) -> 
E78: =IF(C78="","",3.27*$F$7) ->  | F78: =IF(C78="","",IF($F$6-(2.66*$F$7)<0, 0, $F$6-(2.66*$F$7))) ->  | I78: 0 | K78: =IF(G78="","",$F$7) ->  | P78: =IF(C78="","",(3.27*$F$7)*(1/3)) ->  | AH78: =SUM(AG78:AG80) -> 0 | AI78: =IF(AH79=2,"",IF(AH78>=2,CONCATENATE("Data Point ",B78," to ","Data Point ",(B78+2)),"")) ->  | AK78: =SUM(AJ78:AJ80) -> 0 | AL78: =IF(AK79=2,"",IF(AK78>=2,CONCATENATE("Data Point ",B78," to ","Data Point ",(B78+2)),"")) ->  | AM78: =IF(AND(AI78<>"",AL78=""),AI78,IF(AND(AI78="",AL78<>""),AL78,IF(AND(AI78<>"",AL78<>""),AI78,""))) ->  | AP78: =IF(C78="","",IF(AND(C78>=T78,C78<G78),1,0)) ->  | AQ78: =SUM(AP78:AP82) -> 0 | AR78: =IF(AQ79=4,"",IF(AQ78>=4,CONCATENATE("Data Point ",B78," to ","Data Point ",(B78+4)),"")) ->  | AS78: =IF(C78="","",IF(AND(C78<=R78,C78>F78),1,0)) ->  | AT78: =SUM(AS78:AS82) -> 0 | AU78: =IF(AT79=4,"",IF(AT78>=4,CONCATENATE("Data Point ",B78," to ","Data Point ",(B78+4)),"")) ->  | AV78: =IF(AND(AR78<>"",AU78=""),AR78,IF(AND(AR78="",AU78<>""),AU78,IF(AND(AR78<>"",AU78<>""),AR78,""))) ->  | AY78: =IF(C78="","",IF(AND(C78>=J78,C78<G78),1,0)) ->  | AZ78: =SUM(AY78:AY85) -> 0 | BA78: =IF(AZ78=8,CONCATENATE("Data Point ",B78," to ","Data Point ",(B78+8)),"") ->  | BB78: =IF(C78="","",IF(AND(C78<=J78,C78>F78),1,0)) ->  | BC78: =SUM(BB78:BB85) -> 0 | BD78: =IF(BC78=8,CONCATENATE("Data Point ",B78," to ","Data Point ",(B78+8)),"") ->  | BE78: =IF(AND(BA78<>"",BD78=""),BA78,IF(AND(BA78="",BD78<>""),BD78,IF(AND(BA78<>"",BD78<>""),BA78,""))) ->  | BH78: =IF(C78="","",IF(OR(C78>G78,C78<Table115[[#This Row],[LCL]]),1,0)) ->  | BI78: =IF(BH78=1,CONCATENATE("Data Point ",B78),"") -> 
B79: =IF(C79="","",B78+1) ->  | I79: 0 | M79: =IF(C79="","",IF((3.27*$F$7)*(2/3)<0,0,(3.27*$F$7)*(2/3))) ->  | N79: =IF(C79="","",IF((-3.27*$F$7)*(1/3)<0,0,(-3.27*$F$7)*(1/3))) ->  | O79: =IF(C79="","",IF((-3.27*$F$7)*(2/3)<0,0,(-3.27*$F$7)*(2/3))) ->  | Q79: =IF(B79="", "", 0) ->  | AH79: 0 | AK79: 0 | AQ79: 0 | AT79: 0 | AZ79: 0 | BC79: 0 | BH79: =IF(C79="","",IF(OR(C79>G79,C79<Table115[[#This Row],[LCL]]),1,0)) -> 
I80: 0 | AH80: 0 | AK80: 0 | AQ80: 0 | AT80: 0 | AZ80: 0 | BC80: 0 | BH80: =IF(C80="","",IF(OR(C80>G80,C80<Table115[[#This Row],[LCL]]),1,0)) -> 
I81: 0 | AH81: 0 | AK81: 0 | AQ81: 0 | AT81: 0 | AZ81: 0 | BC81: 0 | BH81: =IF(C81="","",IF(OR(C81>G81,C81<Table115[[#This Row],[LCL]]),1,0)) -> 
I82: 0 | AH82: 0 | AK82: 0 | AQ82: 0 | AT82: 0 | AZ82: 0 | BC82: 0 | BH82: =IF(C82="","",IF(OR(C82>G82,C82<Table115[[#This Row],[LCL]]),1,0)) -> 
I83: 0 | AH83: 0 | AK83: 0 | AQ83: 0 | AT83: 0 | AZ83: 0 | BC83: 0 | BH83: =IF(C83="","",IF(OR(C83>G83,C83<Table115[[#This Row],[LCL]]),1,0)) -> 
I84: 0 | AH84: 0 | AK84: 0 | AQ84: 0 | AT84: 0 | AZ84: 0 | BC84: 0 | BH84: =IF(C84="","",IF(OR(C84>G84,C84<Table115[[#This Row],[LCL]]),1,0)) -> 
I85: 0 | L85: =D85 ->  | AH85: 0 | AK85: 0 | AQ85: 0 | AT85: 0 | AZ85: 0 | BC85: 0 | BH85: =IF(C85="","",IF(OR(C85>G85,C85<Table115[[#This Row],[LCL]]),1,0)) -> 
I86: 0 | AH86: 0 | AK86: 0 | AQ86: 0 | AT86: 0 | AZ86: 0 | BC86: 0 | BH86: =IF(C86="","",IF(OR(C86>G86,C86<Table115[[#This Row],[LCL]]),1,0)) -> 
I87: 0 | AH87: 0 | AK87: 0 | AQ87: 0 | AT87: 0 | AZ87: 0 | BC87: 0 | BH87: =IF(C87="","",IF(OR(C87>G87,C87<Table115[[#This Row],[LCL]]),1,0)) -> 
I88: 0 | AH88: 0 | AK88: 0 | AQ88: 0 | AT88: 0 | AZ88: 0 | BC88: 0 | BH88: =IF(C88="","",IF(OR(C88>G88,C88<Table115[[#This Row],[LCL]]),1,0)) -> 
I89: 0 | AH89: 0 | AK89: 0 | AQ89: 0 | AT89: 0 | AZ89: 0 | BC89: 0 | BH89: =IF(C89="","",IF(OR(C89>G89,C89<Table115[[#This Row],[LCL]]),1,0)) -> 
I90: 0 | AH90: 0 | AK90: 0 | AQ90: 0 | AT90: 0 | AZ90: 0 | BC90: 0 | BH90: =IF(C90="","",IF(OR(C90>G90,C90<Table115[[#This Row],[LCL]]),1,0)) -> 
I91: 0 | AH91: 0 | AK91: 0 | AQ91: 0 | AT91: 0 | AZ91: 0 | BC91: 0 | BH91: =IF(C91="","",IF(OR(C91>G91,C91<Table115[[#This Row],[LCL]]),1,0)) -> 
I92: 0 | AH92: 0 | AK92: 0 | AQ92: 0 | AT92: 0 | AZ92: 0 | BC92: 0 | BH92: =IF(C92="","",IF(OR(C92>G92,C92<Table115[[#This Row],[LCL]]),1,0)) -> 
I93: 0 | AH93: 0 | AK93: 0 | AQ93: 0 | AT93: 0 | AZ93: 0 | BC93: 0 | BH93: =IF(C93="","",IF(OR(C93>G93,C93<Table115[[#This Row],[LCL]]),1,0)) -> 
I94: 0 | AH94: 0 | AK94: 0 | AQ94: 0 | AT94: 0 | AZ94: 0 | BC94: 0 | BH94: =IF(C94="","",IF(OR(C94>G94,C94<Table115[[#This Row],[LCL]]),1,0)) -> 
I95: 0 | AH95: 0 | AK95: 0 | AQ95: 0 | AT95: 0 | AZ95: 0 | BC95: 0 | BH95: =IF(C95="","",IF(OR(C95>G95,C95<Table115[[#This Row],[LCL]]),1,0)) -> 
I96: 0 | AG96: =IF(C96="","",IF(AND(C96>=U96,C96<G96),1,0)) ->  | AH96: 0 | AJ96: =IF(C96="","",IF(AND(C96<=S96,C96>F96),1,0)) ->  | AK96: 0 | AQ96: 0 | AT96: 0 | AZ96: 0 | BC96: 0 | BH96: =IF(C96="","",IF(OR(C96>G96,C96<Table115[[#This Row],[LCL]]),1,0)) -> 
I97: 0 | AH97: 0 | AK97: 0 | AQ97: 0 | AT97: 0 | AZ97: 0 | BC97: 0 | BH97: =IF(C97="","",IF(OR(C97>G97,C97<Table115[[#This Row],[LCL]]),1,0)) -> 
I98: 0 | AH98: 0 | AK98: 0 | AQ98: 0 | AT98: 0 | AZ98: 0 | BC98: 0 | BH98: =IF(C98="","",IF(OR(C98>G98,C98<Table115[[#This Row],[LCL]]),1,0)) -> 
I99: 0 | AH99: 0 | AK99: 0 | AQ99: 0 | AT99: 0 | AZ99: 0 | BC99: 0 | BH99: =IF(C99="","",IF(OR(C99>G99,C99<Table115[[#This Row],[LCL]]),1,0)) -> 
I100: 0 | AH100: 0 | AK100: 0 | AQ100: 0 | AT100: 0 | AZ100: 0 | BC100: 0 | BH100: =IF(C100="","",IF(OR(C100>G100,C100<Table115[[#This Row],[LCL]]),1,0)) -> 
I101: 0 | AH101: 0 | AK101: 0 | AQ101: 0 | AT101: 0 | AZ101: 0 | BC101: 0 | BH101: =IF(C101="","",IF(OR(C101>G101,C101<Table115[[#This Row],[LCL]]),1,0)) -> 
I102: 0 | AH102: 0 | AK102: 0 | AQ102: 0 | AT102: 0 | AZ102: 0 | BC102: 0 | BH102: =IF(C102="","",IF(OR(C102>G102,C102<Table115[[#This Row],[LCL]]),1,0)) -> 
I103: 0 | AH103: 0 | AK103: 0 | AQ103: 0 | AT103: 0 | AZ103: 0 | BC103: 0 | BH103: =IF(C103="","",IF(OR(C103>G103,C103<Table115[[#This Row],[LCL]]),1,0)) -> 
I104: 0 | AH104: 0 | AK104: 0 | AQ104: 0 | AT104: 0 | AZ104: 0 | BC104: 0 | BH104: =IF(C104="","",IF(OR(C104>G104,C104<Table115[[#This Row],[LCL]]),1,0)) -> 
I105: 0 | AH105: 0 | AK105: 0 | AQ105: 0 | AT105: 0 | AZ105: 0 | BC105: 0 | BH105: =IF(C105="","",IF(OR(C105>G105,C105<Table115[[#This Row],[LCL]]),1,0)) -> 
I106: 0 | AH106: 0 | AK106: 0 | AQ106: 0 | AT106: 0 | AZ106: 0 | BC106: 0 | BH106: =IF(C106="","",IF(OR(C106>G106,C106<Table115[[#This Row],[LCL]]),1,0)) -> 
I107: 0 | AH107: 0 | AK107: 0 | AQ107: 0 | AT107: 0 | AZ107: 0 | BC107: 0 | BH107: =IF(C107="","",IF(OR(C107>G107,C107<Table115[[#This Row],[LCL]]),1,0)) -> 
I108: 0 | AH108: 0 | AK108: 0 | AQ108: 0 | AT108: 0 | AZ108: 0 | BC108: 0 | BH108: =IF(C108="","",IF(OR(C108>G108,C108<Table115[[#This Row],[LCL]]),1,0)) -> 
I109: 0 | AH109: 0 | AK109: 0 | AQ109: 0 | AT109: 0 | AZ109: 0 | BC109: 0 | BH109: =IF(C109="","",IF(OR(C109>G109,C109<Table115[[#This Row],[LCL]]),1,0)) -> 
I110: 0 | AH110: 0 | AK110: 0 | AQ110: 0 | AT110: 0 | AZ110: 0 | BC110: 0 | BH110: =IF(C110="","",IF(OR(C110>G110,C110<Table115[[#This Row],[LCL]]),1,0)) -> 
I111: 0 | AH111: 0 | AK111: 0 | AQ111: 0 | AT111: 0 | AZ111: 0 | BC111: 0 | BH111: =IF(C111="","",IF(OR(C111>G111,C111<Table115[[#This Row],[LCL]]),1,0)) -> 
I112: 0 | AH112: 0 | AK112: 0 | AQ112: 0 | AT112: 0 | AZ112: 0 | BC112: 0 | BH112: =IF(C112="","",IF(OR(C112>G112,C112<Table115[[#This Row],[LCL]]),1,0)) -> 
I113: 0 | AH113: 0 | AK113: 0 | AQ113: 0 | AT113: 0 | AZ113: 0 | BC113: 0 | BH113: =IF(C113="","",IF(OR(C113>G113,C113<Table115[[#This Row],[LCL]]),1,0)) -> 
I114: 0 | AH114: 0 | AK114: 0 | AQ114: 0 | AT114: 0 | AZ114: 0 | BC114: 0 | BH114: =IF(C114="","",IF(OR(C114>G114,C114<Table115[[#This Row],[LCL]]),1,0)) -> 
I115: 0 | AH115: 0 | AK115: 0 | AQ115: 0 | AT115: 0 | AZ115: 0 | BC115: 0 | BH115: =IF(C115="","",IF(OR(C115>G115,C115<Table115[[#This Row],[LCL]]),1,0)) -> 
I116: 0 | AH116: 0 | AK116: 0 | AQ116: 0 | AT116: 0 | AZ116: 0 | BC116: 0 | BH116: =IF(C116="","",IF(OR(C116>G116,C116<Table115[[#This Row],[LCL]]),1,0)) -> 
I117: 0 | AH117: 0 | AK117: 0 | AQ117: 0 | AT117: 0 | AZ117: 0 | BC117: 0 | BH117: =IF(C117="","",IF(OR(C117>G117,C117<Table115[[#This Row],[LCL]]),1,0)) -> 
I118: 0 | AH118: 0 | AK118: 0 | AQ118: 0 | AT118: 0 | AZ118: 0 | BC118: 0 | BH118: =IF(C118="","",IF(OR(C118>G118,C118<Table115[[#This Row],[LCL]]),1,0)) -> 
I119: 0 | AH119: 0 | AK119: 0 | AQ119: 0 | AT119: 0 | AZ119: 0 | BC119: 0 | BH119: =IF(C119="","",IF(OR(C119>G119,C119<Table115[[#This Row],[LCL]]),1,0)) -> 
I120: 0 | AH120: 0 | AK120: 0 | AQ120: 0 | AT120: 0 | AZ120: 0 | BC120: 0 | BH120: =IF(C120="","",IF(OR(C120>G120,C120<Table115[[#This Row],[LCL]]),1,0)) -> 
I121: 0 | AH121: 0 | AK121: 0 | AQ121: 0 | AT121: 0 | AZ121: 0 | BC121: 0 | BH121: =IF(C121="","",IF(OR(C121>G121,C121<Table115[[#This Row],[LCL]]),1,0)) -> 
I122: 0 | AH122: 0 | AK122: 0 | AQ122: 0 | AT122: 0 | AZ122: 0 | BC122: 0 | BH122: =IF(C122="","",IF(OR(C122>G122,C122<Table115[[#This Row],[LCL]]),1,0)) -> 
I123: 0 | AH123: 0 | AK123: 0 | AQ123: 0 | AT123: 0 | AZ123: 0 | BC123: 0 | BH123: =IF(C123="","",IF(OR(C123>G123,C123<Table115[[#This Row],[LCL]]),1,0)) -> 
I124: 0 | AH124: 0 | AK124: 0 | AQ124: 0 | AT124: 0 | AZ124: 0 | BC124: 0 | BH124: =IF(C124="","",IF(OR(C124>G124,C124<Table115[[#This Row],[LCL]]),1,0)) -> 
I125: 0 | AH125: 0 | AK125: 0 | AQ125: 0 | AT125: 0 | AZ125: 0 | BC125: 0 | BH125: =IF(C125="","",IF(OR(C125>G125,C125<Table115[[#This Row],[LCL]]),1,0)) -> 
I126: 0 | AH126: 0 | AK126: 0 | AQ126: 0 | AT126: 0 | AZ126: 0 | BC126: 0 | BH126: =IF(C126="","",IF(OR(C126>G126,C126<Table115[[#This Row],[LCL]]),1,0)) -> 
I127: 0 | AH127: 0 | AK127: 0 | AQ127: 0 | AT127: 0 | AZ127: 0 | BC127: 0 | BH127: =IF(C127="","",IF(OR(C127>G127,C127<Table115[[#This Row],[LCL]]),1,0)) -> 
I128: 0 | AH128: 0 | AK128: 0 | AQ128: 0 | AT128: 0 | AZ128: 0 | BC128: 0 | BH128: =IF(C128="","",IF(OR(C128>G128,C128<Table115[[#This Row],[LCL]]),1,0)) -> 
I129: 0 | AH129: 0 | AK129: 0 | AQ129: 0 | AT129: 0 | AZ129: 0 | BC129: 0 | BH129: =IF(C129="","",IF(OR(C129>G129,C129<Table115[[#This Row],[LCL]]),1,0)) -> 
I130: 0 | AH130: 0 | AK130: 0 | AQ130: 0 | AT130: 0 | AZ130: 0 | BC130: 0 | BH130: =IF(C130="","",IF(OR(C130>G130,C130<Table115[[#This Row],[LCL]]),1,0)) -> 
I131: 0 | AH131: 0 | AK131: 0 | AQ131: 0 | AT131: 0 | AZ131: 0 | BC131: 0 | BH131: =IF(C131="","",IF(OR(C131>G131,C131<Table115[[#This Row],[LCL]]),1,0)) -> 
I132: 0 | AH132: 0 | AK132: 0 | AQ132: 0 | AT132: 0 | AZ132: 0 | BC132: 0 | BH132: =IF(C132="","",IF(OR(C132>G132,C132<Table115[[#This Row],[LCL]]),1,0)) -> 
I133: 0 | AH133: 0 | AK133: 0 | AQ133: 0 | AT133: 0 | AZ133: 0 | BC133: 0 | BH133: =IF(C133="","",IF(OR(C133>G133,C133<Table115[[#This Row],[LCL]]),1,0)) -> 
I134: 0 | AH134: 0 | AK134: 0 | AQ134: 0 | AT134: 0 | AZ134: 0 | BC134: 0 | BH134: =IF(C134="","",IF(OR(C134>G134,C134<Table115[[#This Row],[LCL]]),1,0)) -> 
I135: 0 | AH135: 0 | AK135: 0 | AQ135: 0 | AT135: 0 | AZ135: 0 | BC135: 0 | BH135: =IF(C135="","",IF(OR(C135>G135,C135<Table115[[#This Row],[LCL]]),1,0)) -> 
I136: 0 | AH136: 0 | AK136: 0 | AQ136: 0 | AT136: 0 | AZ136: 0 | BC136: 0 | BH136: =IF(C136="","",IF(OR(C136>G136,C136<Table115[[#This Row],[LCL]]),1,0)) -> 
I137: 0 | AH137: 0 | AK137: 0 | AQ137: 0 | AT137: 0 | AZ137: 0 | BC137: 0 | BH137: =IF(C137="","",IF(OR(C137>G137,C137<Table115[[#This Row],[LCL]]),1,0)) -> 
I138: 0 | AH138: 0 | AK138: 0 | AQ138: 0 | AT138: 0 | AZ138: 0 | BC138: 0 | BH138: =IF(C138="","",IF(OR(C138>G138,C138<Table115[[#This Row],[LCL]]),1,0)) -> 
I139: 0 | AH139: 0 | AK139: 0 | AQ139: 0 | AT139: 0 | AZ139: 0 | BC139: 0 | BH139: =IF(C139="","",IF(OR(C139>G139,C139<Table115[[#This Row],[LCL]]),1,0)) -> 
I140: 0 | AH140: 0 | AK140: 0 | AQ140: 0 | AT140: 0 | AZ140: 0 | BC140: 0 | BH140: =IF(C140="","",IF(OR(C140>G140,C140<Table115[[#This Row],[LCL]]),1,0)) -> 
D141: =IF(C141="","",ABS(C141-C140)) ->  | G141: =IF(C141="","",$F$6+(2.66*$F$7)) ->  | I141: =IF(B141>$F$8,0,1) -> 0 | J141: =IF(G141="","",$F$6) ->  | R141: =IF(C141="","",IF($F$6-(0.89*$F$7)<0, 0, $F$6-(0.89*$F$7))) ->  | S141: =IF(C141="","",IF($F$6-(1.77*$F$7)<0,0,$F$6-(1.77*$F$7))) ->  | T141: =IF(C141="","",$F$6+(0.89*$F$7)) ->  | U141: =IF(C141="","",$F$6+(1.77*$F$7)) ->  | AH141: 0 | AK141: 0 | AQ141: 0 | AT141: 0 | AZ141: 0 | BC141: 0 | BH141: =IF(C141="","",IF(OR(C141>G141,C141<Table115[[#This Row],[LCL]]),1,0)) -> 
E142: =IF(C142="","",3.27*$F$7) ->  | F142: =IF(C142="","",IF($F$6-(2.66*$F$7)<0, 0, $F$6-(2.66*$F$7))) ->  | I142: 0 | K142: =IF(G142="","",$F$7) ->  | P142: =IF(C142="","",(3.27*$F$7)*(1/3)) ->  | AH142: =SUM(AG142:AG144) -> 0 | AI142: =IF(AH143=2,"",IF(AH142>=2,CONCATENATE("Data Point ",B142," to ","Data Point ",(B142+2)),"")) ->  | AK142: =SUM(AJ142:AJ144) -> 0 | AL142: =IF(AK143=2,"",IF(AK142>=2,CONCATENATE("Data Point ",B142," to ","Data Point ",(B142+2)),"")) ->  | AM142: =IF(AND(AI142<>"",AL142=""),AI142,IF(AND(AI142="",AL142<>""),AL142,IF(AND(AI142<>"",AL142<>""),AI142,""))) ->  | AP142: =IF(C142="","",IF(AND(C142>=T142,C142<G142),1,0)) ->  | AQ142: =SUM(AP142:AP146) -> 0 | AR142: =IF(AQ143=4,"",IF(AQ142>=4,CONCATENATE("Data Point ",B142," to ","Data Point ",(B142+4)),"")) ->  | AS142: =IF(C142="","",IF(AND(C142<=R142,C142>F142),1,0)) ->  | AT142: =SUM(AS142:AS146) -> 0 | AU142: =IF(AT143=4,"",IF(AT142>=4,CONCATENATE("Data Point ",B142," to ","Data Point ",(B142+4)),"")) ->  | AV142: =IF(AND(AR142<>"",AU142=""),AR142,IF(AND(AR142="",AU142<>""),AU142,IF(AND(AR142<>"",AU142<>""),AR142,""))) ->  | AY142: =IF(C142="","",IF(AND(C142>=J142,C142<G142),1,0)) ->  | AZ142: =SUM(AY142:AY149) -> 0 | BA142: =IF(AZ142=8,CONCATENATE("Data Point ",B142," to ","Data Point ",(B142+8)),"") ->  | BB142: =IF(C142="","",IF(AND(C142<=J142,C142>F142),1,0)) ->  | BC142: =SUM(BB142:BB149) -> 0 | BD142: =IF(BC142=8,CONCATENATE("Data Point ",B142," to ","Data Point ",(B142+8)),"") ->  | BE142: =IF(AND(BA142<>"",BD142=""),BA142,IF(AND(BA142="",BD142<>""),BD142,IF(AND(BA142<>"",BD142<>""),BA142,""))) ->  | BH142: =IF(C142="","",IF(OR(C142>G142,C142<Table115[[#This Row],[LCL]]),1,0)) ->  | BI142: =IF(BH142=1,CONCATENATE("Data Point ",B142),"") -> 
B143: =IF(C143="","",B142+1) ->  | I143: 0 | M143: =IF(C143="","",IF((3.27*$F$7)*(2/3)<0,0,(3.27*$F$7)*(2/3))) ->  | N143: =IF(C143="","",IF((-3.27*$F$7)*(1/3)<0,0,(-3.27*$F$7)*(1/3))) ->  | O143: =IF(C143="","",IF((-3.27*$F$7)*(2/3)<0,0,(-3.27*$F$7)*(2/3))) ->  | Q143: =IF(B143="", "", 0) ->  | AH143: 0 | AK143: 0 | AQ143: 0 | AT143: 0 | AZ143: 0 | BC143: 0 | BH143: =IF(C143="","",IF(OR(C143>G143,C143<Table115[[#This Row],[LCL]]),1,0)) -> 
I144: 0 | AH144: 0 | AK144: 0 | AQ144: 0 | AT144: 0 | AZ144: 0 | BC144: 0 | BH144: =IF(C144="","",IF(OR(C144>G144,C144<Table115[[#This Row],[LCL]]),1,0)) -> 
I145: 0 | AH145: 0 | AK145: 0 | AQ145: 0 | AT145: 0 | AZ145: 0 | BC145: 0 | BH145: =IF(C145="","",IF(OR(C145>G145,C145<Table115[[#This Row],[LCL]]),1,0)) -> 
I146: 0 | AH146: 0 | AK146: 0 | AQ146: 0 | AT146: 0 | AZ146: 0 | BC146: 0 | BH146: =IF(C146="","",IF(OR(C146>G146,C146<Table115[[#This Row],[LCL]]),1,0)) -> 
I147: 0 | AH147: 0 | AK147: 0 | AQ147: 0 | AT147: 0 | AZ147: 0 | BC147: 0 | BH147: =IF(C147="","",IF(OR(C147>G147,C147<Table115[[#This Row],[LCL]]),1,0)) -> 
I148: 0 | AH148: 0 | AK148: 0 | AQ148: 0 | AT148: 0 | AZ148: 0 | BC148: 0 | BH148: =IF(C148="","",IF(OR(C148>G148,C148<Table115[[#This Row],[LCL]]),1,0)) -> 
I149: 0 | L149: =D149 ->  | AH149: 0 | AK149: 0 | AQ149: 0 | AT149: 0 | AZ149: 0 | BC149: 0 | BH149: =IF(C149="","",IF(OR(C149>G149,C149<Table115[[#This Row],[LCL]]),1,0)) -> 
I150: 0 | AH150: 0 | AK150: 0 | AQ150: 0 | AT150: 0 | AZ150: 0 | BC150: 0 | BH150: =IF(C150="","",IF(OR(C150>G150,C150<Table115[[#This Row],[LCL]]),1,0)) -> 
I151: 0 | AH151: 0 | AK151: 0 | AQ151: 0 | AT151: 0 | AZ151: 0 | BC151: 0 | BH151: =IF(C151="","",IF(OR(C151>G151,C151<Table115[[#This Row],[LCL]]),1,0)) -> 
I152: 0 | AH152: 0 | AK152: 0 | AQ152: 0 | AT152: 0 | AZ152: 0 | BC152: 0 | BH152: =IF(C152="","",IF(OR(C152>G152,C152<Table115[[#This Row],[LCL]]),1,0)) -> 
I153: 0 | AH153: 0 | AK153: 0 | AQ153: 0 | AT153: 0 | AZ153: 0 | BC153: 0 | BH153: =IF(C153="","",IF(OR(C153>G153,C153<Table115[[#This Row],[LCL]]),1,0)) -> 
I154: 0 | AH154: 0 | AK154: 0 | AQ154: 0 | AT154: 0 | AZ154: 0 | BC154: 0 | BH154: =IF(C154="","",IF(OR(C154>G154,C154<Table115[[#This Row],[LCL]]),1,0)) -> 
I155: 0 | AH155: 0 | AK155: 0 | AQ155: 0 | AT155: 0 | AZ155: 0 | BC155: 0 | BH155: =IF(C155="","",IF(OR(C155>G155,C155<Table115[[#This Row],[LCL]]),1,0)) -> 
I156: 0 | AH156: 0 | AK156: 0 | AQ156: 0 | AT156: 0 | AZ156: 0 | BC156: 0 | BH156: =IF(C156="","",IF(OR(C156>G156,C156<Table115[[#This Row],[LCL]]),1,0)) -> 
I157: 0 | AH157: 0 | AK157: 0 | AQ157: 0 | AT157: 0 | AZ157: 0 | BC157: 0 | BH157: =IF(C157="","",IF(OR(C157>G157,C157<Table115[[#This Row],[LCL]]),1,0)) -> 
I158: 0 | AH158: 0 | AK158: 0 | AQ158: 0 | AT158: 0 | AZ158: 0 | BC158: 0 | BH158: =IF(C158="","",IF(OR(C158>G158,C158<Table115[[#This Row],[LCL]]),1,0)) -> 
I159: 0 | AH159: 0 | AK159: 0 | AQ159: 0 | AT159: 0 | AZ159: 0 | BC159: 0 | BH159: =IF(C159="","",IF(OR(C159>G159,C159<Table115[[#This Row],[LCL]]),1,0)) -> 
I160: 0 | AG160: =IF(C160="","",IF(AND(C160>=U160,C160<G160),1,0)) ->  | AH160: 0 | AJ160: =IF(C160="","",IF(AND(C160<=S160,C160>F160),1,0)) ->  | AK160: 0 | AQ160: 0 | AT160: 0 | AZ160: 0 | BC160: 0 | BH160: =IF(C160="","",IF(OR(C160>G160,C160<Table115[[#This Row],[LCL]]),1,0)) -> 
I161: 0 | AH161: 0 | AK161: 0 | AQ161: 0 | AT161: 0 | AZ161: 0 | BC161: 0 | BH161: =IF(C161="","",IF(OR(C161>G161,C161<Table115[[#This Row],[LCL]]),1,0)) -> 
I162: 0 | AH162: 0 | AK162: 0 | AQ162: 0 | AT162: 0 | AZ162: 0 | BC162: 0 | BH162: =IF(C162="","",IF(OR(C162>G162,C162<Table115[[#This Row],[LCL]]),1,0)) -> 
I163: 0 | AH163: 0 | AK163: 0 | AQ163: 0 | AT163: 0 | AZ163: 0 | BC163: 0 | BH163: =IF(C163="","",IF(OR(C163>G163,C163<Table115[[#This Row],[LCL]]),1,0)) -> 
I164: 0 | AH164: 0 | AK164: 0 | AQ164: 0 | AT164: 0 | AZ164: 0 | BC164: 0 | BH164: =IF(C164="","",IF(OR(C164>G164,C164<Table115[[#This Row],[LCL]]),1,0)) -> 
I165: 0 | AH165: 0 | AK165: 0 | AQ165: 0 | AT165: 0 | AZ165: 0 | BC165: 0 | BH165: =IF(C165="","",IF(OR(C165>G165,C165<Table115[[#This Row],[LCL]]),1,0)) -> 
I166: 0 | AH166: 0 | AK166: 0 | AQ166: 0 | AT166: 0 | AZ166: 0 | BC166: 0 | BH166: =IF(C166="","",IF(OR(C166>G166,C166<Table115[[#This Row],[LCL]]),1,0)) -> 
I167: 0 | AH167: 0 | AK167: 0 | AQ167: 0 | AT167: 0 | AZ167: 0 | BC167: 0 | BH167: =IF(C167="","",IF(OR(C167>G167,C167<Table115[[#This Row],[LCL]]),1,0)) -> 
I168: 0 | AH168: 0 | AK168: 0 | AQ168: 0 | AT168: 0 | AZ168: 0 | BC168: 0 | BH168: =IF(C168="","",IF(OR(C168>G168,C168<Table115[[#This Row],[LCL]]),1,0)) -> 
I169: 0 | AH169: 0 | AK169: 0 | AQ169: 0 | AT169: 0 | AZ169: 0 | BC169: 0 | BH169: =IF(C169="","",IF(OR(C169>G169,C169<Table115[[#This Row],[LCL]]),1,0)) -> 
I170: 0 | AH170: 0 | AK170: 0 | AQ170: 0 | AT170: 0 | AZ170: 0 | BC170: 0 | BH170: =IF(C170="","",IF(OR(C170>G170,C170<Table115[[#This Row],[LCL]]),1,0)) -> 
I171: 0 | AH171: 0 | AK171: 0 | AQ171: 0 | AT171: 0 | AZ171: 0 | BC171: 0 | BH171: =IF(C171="","",IF(OR(C171>G171,C171<Table115[[#This Row],[LCL]]),1,0)) -> 
I172: 0 | AH172: 0 | AK172: 0 | AQ172: 0 | AT172: 0 | AZ172: 0 | BC172: 0 | BH172: =IF(C172="","",IF(OR(C172>G172,C172<Table115[[#This Row],[LCL]]),1,0)) -> 
I173: 0 | AH173: 0 | AK173: 0 | AQ173: 0 | AT173: 0 | AZ173: 0 | BC173: 0 | BH173: =IF(C173="","",IF(OR(C173>G173,C173<Table115[[#This Row],[LCL]]),1,0)) -> 
I174: 0 | AH174: 0 | AK174: 0 | AQ174: 0 | AT174: 0 | AZ174: 0 | BC174: 0 | BH174: =IF(C174="","",IF(OR(C174>G174,C174<Table115[[#This Row],[LCL]]),1,0)) -> 
I175: 0 | AH175: 0 | AK175: 0 | AQ175: 0 | AT175: 0 | AZ175: 0 | BC175: 0 | BH175: =IF(C175="","",IF(OR(C175>G175,C175<Table115[[#This Row],[LCL]]),1,0)) -> 
I176: 0 | AH176: 0 | AK176: 0 | AQ176: 0 | AT176: 0 | AZ176: 0 | BC176: 0 | BH176: =IF(C176="","",IF(OR(C176>G176,C176<Table115[[#This Row],[LCL]]),1,0)) -> 
I177: 0 | AH177: 0 | AK177: 0 | AQ177: 0 | AT177: 0 | AZ177: 0 | BC177: 0 | BH177: =IF(C177="","",IF(OR(C177>G177,C177<Table115[[#This Row],[LCL]]),1,0)) -> 
I178: 0 | AH178: 0 | AK178: 0 | AQ178: 0 | AT178: 0 | AZ178: 0 | BC178: 0 | BH178: =IF(C178="","",IF(OR(C178>G178,C178<Table115[[#This Row],[LCL]]),1,0)) -> 
I179: 0 | AH179: 0 | AK179: 0 | AQ179: 0 | AT179: 0 | AZ179: 0 | BC179: 0 | BH179: =IF(C179="","",IF(OR(C179>G179,C179<Table115[[#This Row],[LCL]]),1,0)) -> 
I180: 0 | AH180: 0 | AK180: 0 | AQ180: 0 | AT180: 0 | AZ180: 0 | BC180: 0 | BH180: =IF(C180="","",IF(OR(C180>G180,C180<Table115[[#This Row],[LCL]]),1,0)) -> 
I181: 0 | AH181: 0 | AK181: 0 | AQ181: 0 | AT181: 0 | AZ181: 0 | BC181: 0 | BH181: =IF(C181="","",IF(OR(C181>G181,C181<Table115[[#This Row],[LCL]]),1,0)) -> 
I182: 0 | AH182: 0 | AK182: 0 | AQ182: 0 | AT182: 0 | AZ182: 0 | BC182: 0 | BH182: =IF(C182="","",IF(OR(C182>G182,C182<Table115[[#This Row],[LCL]]),1,0)) -> 
I183: 0 | AH183: 0 | AK183: 0 | AQ183: 0 | AT183: 0 | AZ183: 0 | BC183: 0 | BH183: =IF(C183="","",IF(OR(C183>G183,C183<Table115[[#This Row],[LCL]]),1,0)) -> 
I184: 0 | AH184: 0 | AK184: 0 | AQ184: 0 | AT184: 0 | AZ184: 0 | BC184: 0 | BH184: =IF(C184="","",IF(OR(C184>G184,C184<Table115[[#This Row],[LCL]]),1,0)) -> 
I185: 0 | AH185: 0 | AK185: 0 | AQ185: 0 | AT185: 0 | AZ185: 0 | BC185: 0 | BH185: =IF(C185="","",IF(OR(C185>G185,C185<Table115[[#This Row],[LCL]]),1,0)) -> 
I186: 0 | AH186: 0 | AK186: 0 | AQ186: 0 | AT186: 0 | AZ186: 0 | BC186: 0 | BH186: =IF(C186="","",IF(OR(C186>G186,C186<Table115[[#This Row],[LCL]]),1,0)) -> 
I187: 0 | AH187: 0 | AK187: 0 | AQ187: 0 | AT187: 0 | AZ187: 0 | BC187: 0 | BH187: =IF(C187="","",IF(OR(C187>G187,C187<Table115[[#This Row],[LCL]]),1,0)) -> 
I188: 0 | AH188: 0 | AK188: 0 | AQ188: 0 | AT188: 0 | AZ188: 0 | BC188: 0 | BH188: =IF(C188="","",IF(OR(C188>G188,C188<Table115[[#This Row],[LCL]]),1,0)) -> 
I189: 0 | AH189: 0 | AK189: 0 | AQ189: 0 | AT189: 0 | AZ189: 0 | BC189: 0 | BH189: =IF(C189="","",IF(OR(C189>G189,C189<Table115[[#This Row],[LCL]]),1,0)) -> 
I190: 0 | AH190: 0 | AK190: 0 | AQ190: 0 | AT190: 0 | AZ190: 0 | BC190: 0 | BH190: =IF(C190="","",IF(OR(C190>G190,C190<Table115[[#This Row],[LCL]]),1,0)) -> 
I191: 0 | AH191: 0 | AK191: 0 | AQ191: 0 | AT191: 0 | AZ191: 0 | BC191: 0 | BH191: =IF(C191="","",IF(OR(C191>G191,C191<Table115[[#This Row],[LCL]]),1,0)) -> 
I192: 0 | AH192: 0 | AK192: 0 | AQ192: 0 | AT192: 0 | AZ192: 0 | BC192: 0 | BH192: =IF(C192="","",IF(OR(C192>G192,C192<Table115[[#This Row],[LCL]]),1,0)) -> 
I193: 0 | AH193: 0 | AK193: 0 | AQ193: 0 | AT193: 0 | AZ193: 0 | BC193: 0 | BH193: =IF(C193="","",IF(OR(C193>G193,C193<Table115[[#This Row],[LCL]]),1,0)) -> 
I194: 0 | AH194: 0 | AK194: 0 | AQ194: 0 | AT194: 0 | AZ194: 0 | BC194: 0 | BH194: =IF(C194="","",IF(OR(C194>G194,C194<Table115[[#This Row],[LCL]]),1,0)) -> 
I195: 0 | AH195: 0 | AK195: 0 | AQ195: 0 | AT195: 0 | AZ195: 0 | BC195: 0 | BH195: =IF(C195="","",IF(OR(C195>G195,C195<Table115[[#This Row],[LCL]]),1,0)) -> 
I196: 0 | AH196: 0 | AK196: 0 | AQ196: 0 | AT196: 0 | AZ196: 0 | BC196: 0 | BH196: =IF(C196="","",IF(OR(C196>G196,C196<Table115[[#This Row],[LCL]]),1,0)) -> 
I197: 0 | AH197: 0 | AK197: 0 | AQ197: 0 | AT197: 0 | AZ197: 0 | BC197: 0 | BH197: =IF(C197="","",IF(OR(C197>G197,C197<Table115[[#This Row],[LCL]]),1,0)) -> 
I198: 0 | AH198: 0 | AK198: 0 | AQ198: 0 | AT198: 0 | AZ198: 0 | BC198: 0 | BH198: =IF(C198="","",IF(OR(C198>G198,C198<Table115[[#This Row],[LCL]]),1,0)) -> 
I199: 0 | AH199: 0 | AK199: 0 | AQ199: 0 | AT199: 0 | AZ199: 0 | BC199: 0 | BH199: =IF(C199="","",IF(OR(C199>G199,C199<Table115[[#This Row],[LCL]]),1,0)) -> 
I200: 0 | AH200: 0 | AK200: 0 | AQ200: 0 | AT200: 0 | AZ200: 0 | BC200: 0 | BH200: =IF(C200="","",IF(OR(C200>G200,C200<Table115[[#This Row],[LCL]]),1,0)) -> 
I201: 0 | AH201: 0 | AK201: 0 | AQ201: 0 | AT201: 0 | AZ201: 0 | BC201: 0 | BH201: =IF(C201="","",IF(OR(C201>G201,C201<Table115[[#This Row],[LCL]]),1,0)) -> 
I202: 0 | AH202: 0 | AK202: 0 | AQ202: 0 | AT202: 0 | AZ202: 0 | BC202: 0 | BH202: =IF(C202="","",IF(OR(C202>G202,C202<Table115[[#This Row],[LCL]]),1,0)) -> 
... 508 more rows

Sheet U_Chart
A2: u Chart for Discrete Data (with Variable Sample Size)
A4: Control Chart Details: | P4: Out-Of-Control Process: Sensitization Rules
A5: Chart Type | C5: U Chart | E5: Data Point statistics | G5: DEFINE SPECIFICATION LIMIT | P5: Rule - 1 | Q5: Rule - 2 | R5: Rule - 3 | S5: Rule - 4
A6: Distribution followed | C6: Poisson | E6: DEFECT | F6: =SUM(C14:C712*I14:I712) -> 20 | G6: Upper Spec. (USL) | H6: 1.5
A7: Data Type | C7: Attribute | D7: Attribute | E7: SAMPLE SIZE | F7: =SUM(D14:D712*I14:I712) -> 27 | G7: Lower Spec. (LSL) | H7: 0.5
A8: Sample or Subgroup size | C8: Unequal Sized | E8: MEAN | F8: =IFERROR(F6/F7,"") -> 0.7407407407 | G8: PROCESS CAPABILITY (Select this cell to view HELP) | O8: =ROUND(((H6-H7)/(6*(SQRT($F$8/$F$7)))),3) -> 1.006
A9: Sub Process Identified | E9: Intial Data Points (for Freezing Baselines) | F9: 8 | G9: =IF(COUNTBLANK(H6:H7)>0,"Cp = need spec. limit","Cp"&" = "&ROUND(((H6-H7)/(6*(SQRT($F$8/$F$7)))),3)) -> Cp = 1.006 | H9: =IF(COUNTBLANK(H6)>0,"need spec. limit","Cpu"&" = "&ROUND(((H6-F8)/(3*(SQRT($F$8/$F$7)))),3)) -> Cpu = 1.528 | O9: =IF(COUNTBLANK(H6)>0,"need spec. limit", ROUND(((H6-F8)/(3*(SQRT($F$8/$F$7)))),3)) -> 1.528
A10: Basis of Sub Process selection | C10: Derived from PPM (Sensitivity Analysis) | E10: Revise Contril Limit | F10: Please use separate sheet for revise control limit | G10: ="Cpk"&" = "&MIN(O9:O10) -> Cpk = 0.484 | H10: =IF(COUNTBLANK(H7)>0,"need spec. limit","Cpl"&" = "&ROUND(((F8-H7)/(3*(SQRT($F$8/$F$7)))),3)) -> Cpl = 0.484 | O10: =IF(COUNTBLANK(H7)>0,"need spec. limit",ROUND(((F8-H7)/(3*(SQRT($F$8/$F$7)))),3)) -> 0.484 | AG10: Rule 2 | AP10: Rule 3 | AY10: Rule 4 | BH10: Rule 1
A11: Metrics Used | AM11: Rule 1 | AV11: Rule 1 | BE11: Rule 1
AM12: Rule 1 | AV12: Rule 1 | BE12: Rule 1
A13: Date of Reporting | B13: S. No. | C13: DEFECT | D13: SAMPLE SIZE | E13: DEFECT PER UNIT | F13: UCL | G13: LCL | H13: RCA for Out of Control Points | K13: -1 SIgma LCL | L13: -2 Sigma LCL | M13: 1 Sigma UCL | N13: 2 Sigma UCL | AG13: Between +2 to +3 | AJ13: Between -2 to -3 | AM13: Rule 2 | AP13: Between +1 to +3 | AS13: Between -1 to -3 | AV13: Rule 3 | AY13: Between CL to +3 | BB13: Between CL to -3 | BE13: Rule 3 | BH13: Between -3 to +3 | BI13: Rule 1
A14: 2011-01-01 | B14: =IF(C14="","",1) -> 1 | C14: 2 | D14: 3 | E14: =IF(D14="","",C14/D14) -> 0.6666666667 | F14: =IF(D14="","",$F$8+(3*(SQRT($F$8/D14)))) -> 2.231452726 | G14: =IF(D14="","",IF($F$8-(3*(SQRT($F$8/D14)))<0,0,$F$8-(3*(SQRT($F$8/D14))))) -> 0 | I14: =IF(B14>$F$9,0,1) -> 1 | J14: =IF(G14="","",$F$8) -> 0.7407407407 | K14: =IF(D14="","",IF($F$8-(1*(SQRT($F$8/D14)))<0,0,$F$8-(1*(SQRT($F$8/D14))))) -> 0.2438367457 | L14: =IF(D14="","",IF($F$8-(2*(SQRT($F$8/D14)))<0,0,$F$8-(2*(SQRT($F$8/D14))))) -> 0 | M14: =IF(D14="","",$F$8+(1*(SQRT($F$8/D14)))) -> 1.237644736 | N14: =IF(D14="","",$F$8+(2*(SQRT($F$8/D14)))) -> 1.734548731 | AG14: =IF(E14="","",IF(AND(E14>=N14,E14<F14),1,0)) -> 0 | AH14: =SUM(AG14:AG16) -> 0 | AI14: =IF(AH15=2,"",IF(AH14>=2,CONCATENATE("Data Point ",B14," to ","Data Point ",(B14+2)),"")) ->  | AJ14: =IF(E14="","",IF(AND(E14<=L14,E14>G14),1,0)) -> 0 | AK14: =SUM(AJ14:AJ16) -> 0 | AL14: =IF(AK15=2,"",IF(AK14>=2,CONCATENATE("Data Point ",B14," to ","Data Point ",(B14+2)),"")) ->  | AM14: =IF(AND(AI14<>"",AL14=""),AI14,IF(AND(AI14="",AL14<>""),AL14,IF(AND(AI14<>"",AL14<>""),AI14,""))) ->  | AP14: =IF(E14="","",IF(AND(E14>=M14,E14<F14),1,0)) -> 0 | AQ14: =SUM(AP14:AP18) -> 1 | AR14: =IF(AQ15=4,"",IF(AQ14>=4,CONCATENATE("Data Point ",B14," to ","Data Point ",(B14+4)),"")) ->  | AS14: =IF(E14="","",IF(AND(E14<=K14,E14>G14),1,0)) -> 0 | AT14: =SUM(AS14:AS18) -> 0 | AU14: =IF(AT15=4,"",IF(AT14>=4,CONCATENATE("Data Point ",B14," to ","Data Point ",(B14+4)),"")) ->  | AV14: =IF(AND(AR14<>"",AU14=""),AR14,IF(AND(AR14="",AU14<>""),AU14,IF(AND(AR14<>"",AU14<>""),AR14,""))) ->  | AY14: =IF(E14="","",IF(AND(E14>=J14,E14<F14),1,0)) -> 0 | AZ14: =SUM(AY14:AY21) -> 5 | BA14: =IF(AZ15=8, "", IF(AZ14=8,CONCATENATE("Data Point ",B14," to ","Data Point ",(B14+8)),"")) ->  | BB14: =IF(E14="","",IF(AND(E14<=J14,E14>G14),1,0)) -> 1 | BC14: =SUM(BB14:BB21) -> 3 | BD14: =IF(BC15=8, "", IF(BC14=8,CONCATENATE("Data Point ",B14," to ","Data Point ",(B14+8)),"")) ->  | BE14: =IF(AND(BA14<>"",BD14=""),BA14,IF(AND(BA14="",BD14<>""),BD14,IF(AND(BA14<>"",BD14<>""),BA14,""))) ->  | BH14: =IF(E14="","",IF(OR(E14>F14,E14<G14),1,0)) -> 0 | BI14: =IF(BH14=1,CONCATENATE("Data Point ",B14),"") -> 
A15: 2011-03-01 | B15: =IF(C15="","",B14+1) -> 2 | C15: 2 | D15: 5 | E15: =IF(D15="","",C15/D15) -> 0.4 | F15: 1.895441279 | G15: 0 | I15: =IF(B15>$F$9,0,1) -> 1 | J15: 0.7407407407 | K15: 0.3558405613 | L15: 0 | M15: 1.12564092 | N15: 1.5105411 | AG15: =IF(E15="","",IF(AND(E15>=N15,E15<F15),1,0)) -> 0 | AH15: =SUM(AG15:AG17) -> 0 | AI15: =IF(AH16=2,"",IF(AH15>=2,CONCATENATE("Data Point ",B15," to ","Data Point ",(B15+2)),"")) ->  | AJ15: =IF(E15="","",IF(AND(E15<=L15,E15>G15),1,0)) -> 0 | AK15: =SUM(AJ15:AJ17) -> 0 | AL15: =IF(AK16=2,"",IF(AK15>=2,CONCATENATE("Data Point ",B15," to ","Data Point ",(B15+2)),"")) ->  | AM15: =IF(AND(AI15<>"",AL15=""),AI15,IF(AND(AI15="",AL15<>""),AL15,IF(AND(AI15<>"",AL15<>""),AI15,""))) ->  | AP15: =IF(E15="","",IF(AND(E15>=M15,E15<F15),1,0)) -> 0 | AQ15: =SUM(AP15:AP19) -> 1 | AR15: =IF(AQ16=4,"",IF(AQ15>=4,CONCATENATE("Data Point ",B15," to ","Data Point ",(B15+4)),"")) ->  | AS15: =IF(E15="","",IF(AND(E15<=K15,E15>G15),1,0)) -> 0 | AT15: =SUM(AS15:AS19) -> 0 | AU15: =IF(AT16=4,"",IF(AT15>=4,CONCATENATE("Data Point ",B15," to ","Data Point ",(B15+4)),"")) ->  | AY15: =IF(E15="","",IF(AND(E15>=J15,E15<F15),1,0)) -> 0 | AZ15: =SUM(AY15:AY22) -> 5 | BA15: =IF(AZ16=8, "", IF(AZ15=8,CONCATENATE("Data Point ",B15," to ","Data Point ",(B15+8)),"")) ->  | BB15: =IF(E15="","",IF(AND(E15<=J15,E15>G15),1,0)) -> 1 | BC15: =SUM(BB15:BB22) -> 2 | BD15: =IF(BC16=8, "", IF(BC15=8,CONCATENATE("Data Point ",B15," to ","Data Point ",(B15+8)),"")) ->  | BE15: =IF(AND(BA15<>"",BD15=""),BA15,IF(AND(BA15="",BD15<>""),BD15,IF(AND(BA15<>"",BD15<>""),BA15,""))) ->  | BH15: =IF(E15="","",IF(OR(E15>F15,E15<G15),1,0)) -> 0 | BI15: =IF(BH15=1,CONCATENATE("Data Point ",B15),"") -> 
A16: 2011-03-15 | B16: =IF(C16="","",B15+1) -> 3 | C16: 2 | D16: 2 | E16: 1 | F16: 2.566482599 | G16: 0 | I16: 1 | J16: 0.7407407407 | K16: 0.1321601213 | L16: 0 | M16: 1.34932136 | N16: 1.95790198 | AG16: 0 | AH16: 0 | AJ16: 0 | AK16: 0 | AP16: 0 | AQ16: 1 | AS16: 0 | AT16: 0 | AY16: 1 | AZ16: 5 | BB16: 0 | BC16: 1 | BH16: 0
A17: 2011-04-01 | B17: 4 | C17: 3 | D17: 3 | E17: 1 | F17: 2.231452726 | G17: 0 | I17: 1 | J17: 0.7407407407 | K17: 0.2438367457 | L17: 0 | M17: 1.237644736 | N17: 1.734548731 | AG17: 0 | AH17: 0 | AJ17: 0 | AK17: 0 | AP17: 0 | AQ17: 1 | AS17: 0 | AT17: 0 | AY17: 1 | AZ17: 4 | BB17: 0 | BC17: 1 | BH17: 0
A18: 2011-05-12 | B18: 5 | C18: 2 | D18: 1 | E18: 2 | F18: 3.322729638 | G18: 0 | I18: 1 | J18: 0.7407407407 | K18: 0 | L18: 0 | M18: 1.601403707 | N18: 2.462066672 | AG18: 0 | AH18: 0 | AJ18: 0 | AK18: 0 | AP18: 1 | AQ18: 1 | AS18: 0 | AT18: 0 | AY18: 1 | AZ18: 3 | BB18: 0 | BC18: 1 | BH18: 0
A19: 2011-06-20 | B19: 6 | C19: 2 | D19: 5 | E19: 0.4 | F19: 1.895441279 | G19: 0 | I19: 1 | J19: 0.7407407407 | K19: 0.3558405613 | L19: 0 | M19: 1.12564092 | N19: 1.5105411 | AG19: 0 | AH19: 0 | AJ19: 0 | AK19: 0 | AP19: 0 | AQ19: 0 | AS19: 0 | AT19: 0 | AY19: 0 | AZ19: 2 | BB19: 1 | BC19: 1 | BH19: 0
A20: 2011-07-21 | B20: 7 | C20: 4 | D20: 5 | E20: 0.8 | F20: 1.895441279 | G20: 0 | I20: 1 | J20: 0.7407407407 | K20: 0.3558405613 | L20: 0 | M20: 1.12564092 | N20: 1.5105411 | AG20: 0 | AH20: 0 | AJ20: 0 | AK20: 0 | AP20: 0 | AQ20: 0 | AS20: 0 | AT20: 0 | AY20: 1 | AZ20: 2 | BB20: 0 | BC20: 0 | BH20: 0
A21: 2011-08-01 | B21: 8 | C21: 3 | D21: 3 | E21: 1 | F21: 2.231452726 | G21: 0 | I21: 1 | J21: 0.7407407407 | K21: 0.2438367457 | L21: 0 | M21: 1.237644736 | N21: 1.734548731 | AG21: 0 | AH21: 0 | AJ21: 0 | AK21: 0 | AP21: 0 | AQ21: 0 | AS21: 0 | AT21: 0 | AY21: 1 | AZ21: 1 | BB21: 0 | BC21: 0 | BH21: 0
I22: 0 | AH22: 0 | AK22: 0 | AQ22: 0 | AT22: 0 | AZ22: 0 | BC22: 0
I23: 0 | AH23: 0 | AK23: 0 | AQ23: 0 | AT23: 0 | AZ23: 0 | BC23: 0
I24: 0 | AH24: 0 | AK24: 0 | AQ24: 0 | AT24: 0 | AZ24: 0 | BC24: 0
I25: 0 | AH25: 0 | AK25: 0 | AQ25: 0 | AT25: 0 | AZ25: 0 | BC25: 0
I26: 0 | AH26: 0 | AK26: 0 | AQ26: 0 | AT26: 0 | AZ26: 0 | BC26: 0
I27: 0 | AH27: 0 | AK27: 0 | AQ27: 0 | AT27: 0 | AZ27: 0 | BC27: 0
I28: 0 | AH28: 0 | AK28: 0 | AQ28: 0 | AT28: 0 | AZ28: 0 | BC28: 0
I29: 0 | AH29: 0 | AK29: 0 | AQ29: 0 | AT29: 0 | AZ29: 0 | BC29: 0
I30: 0 | AH30: 0 | AK30: 0 | AQ30: 0 | AT30: 0 | AZ30: 0 | BC30: 0
I31: 0 | AH31: 0 | AK31: 0 | AQ31: 0 | AT31: 0 | AZ31: 0 | BC31: 0
I32: 0 | AH32: 0 | AK32: 0 | AQ32: 0 | AT32: 0 | AZ32: 0 | BC32: 0
I33: 0 | AH33: 0 | AK33: 0 | AQ33: 0 | AT33: 0 | AZ33: 0 | BC33: 0
I34: 0 | AH34: 0 | AK34: 0 | AQ34: 0 | AT34: 0 | AZ34: 0 | BC34: 0
I35: 0 | AH35: 0 | AK35: 0 | AQ35: 0 | AT35: 0 | AZ35: 0 | BC35: 0
I36: 0 | AH36: 0 | AK36: 0 | AQ36: 0 | AT36: 0 | AZ36: 0 | BC36: 0
I37: 0 | AH37: 0 | AK37: 0 | AQ37: 0 | AT37: 0 | AZ37: 0 | BC37: 0
I38: 0 | AH38: 0 | AK38: 0 | AQ38: 0 | AT38: 0 | AZ38: 0 | BC38: 0
I39: 0 | AH39: 0 | AK39: 0 | AQ39: 0 | AT39: 0 | AZ39: 0 | BC39: 0
I40: 0 | AH40: 0 | AK40: 0 | AQ40: 0 | AT40: 0 | AZ40: 0 | BC40: 0
I41: 0 | AH41: 0 | AK41: 0 | AQ41: 0 | AT41: 0 | AZ41: 0 | BC41: 0
I42: 0 | AH42: 0 | AK42: 0 | AQ42: 0 | AT42: 0 | AZ42: 0 | BC42: 0
I43: 0 | AH43: 0 | AK43: 0 | AQ43: 0 | AT43: 0 | AZ43: 0 | BC43: 0
I44: 0 | AH44: 0 | AK44: 0 | AQ44: 0 | AT44: 0 | AZ44: 0 | BC44: 0
I45: 0 | AH45: 0 | AK45: 0 | AQ45: 0 | AT45: 0 | AZ45: 0 | BC45: 0
I46: 0 | AH46: 0 | AK46: 0 | AQ46: 0 | AT46: 0 | AZ46: 0 | BC46: 0
I47: 0 | AH47: 0 | AK47: 0 | AQ47: 0 | AT47: 0 | AZ47: 0 | BC47: 0
I48: 0 | AH48: 0 | AK48: 0 | AQ48: 0 | AT48: 0 | AZ48: 0 | BC48: 0
I49: 0 | AH49: 0 | AK49: 0 | AQ49: 0 | AT49: 0 | AZ49: 0 | BC49: 0
I50: 0 | AH50: 0 | AK50: 0 | AQ50: 0 | AT50: 0 | AZ50: 0 | BC50: 0
I51: 0 | AH51: 0 | AK51: 0 | AQ51: 0 | AT51: 0 | AZ51: 0 | BC51: 0
I52: 0 | AH52: 0 | AK52: 0 | AQ52: 0 | AT52: 0 | AZ52: 0 | BC52: 0
I53: 0 | AH53: 0 | AK53: 0 | AQ53: 0 | AT53: 0 | AZ53: 0 | BC53: 0
I54: 0 | AH54: 0 | AK54: 0 | AQ54: 0 | AT54: 0 | AZ54: 0 | BC54: 0
I55: 0 | AH55: 0 | AK55: 0 | AQ55: 0 | AT55: 0 | AZ55: 0 | BC55: 0
I56: 0 | AH56: 0 | AK56: 0 | AQ56: 0 | AT56: 0 | AZ56: 0 | BC56: 0
I57: 0 | AH57: 0 | AK57: 0 | AQ57: 0 | AT57: 0 | AZ57: 0 | BC57: 0
I58: 0 | AH58: 0 | AK58: 0 | AQ58: 0 | AT58: 0 | AZ58: 0 | BC58: 0
I59: 0 | AH59: 0 | AK59: 0 | AQ59: 0 | AT59: 0 | AZ59: 0 | BC59: 0
I60: 0 | AH60: 0 | AK60: 0 | AQ60: 0 | AT60: 0 | AZ60: 0 | BC60: 0
I61: 0 | AH61: 0 | AK61: 0 | AQ61: 0 | AT61: 0 | AZ61: 0 | BC61: 0
I62: 0 | AH62: 0 | AK62: 0 | AQ62: 0 | AT62: 0 | AZ62: 0 | BC62: 0
I63: 0 | AH63: 0 | AK63: 0 | AQ63: 0 | AT63: 0 | AZ63: 0 | BC63: 0
I64: 0 | AH64: 0 | AK64: 0 | AQ64: 0 | AT64: 0 | AZ64: 0 | BC64: 0
I65: 0 | AH65: 0 | AK65: 0 | AQ65: 0 | AT65: 0 | AZ65: 0 | BC65: 0
I66: 0 | AH66: 0 | AK66: 0 | AQ66: 0 | AT66: 0 | AZ66: 0 | BC66: 0
I67: 0 | AH67: 0 | AK67: 0 | AQ67: 0 | AT67: 0 | AZ67: 0 | BC67: 0
E68: =IF(D68="","",C68/D68) ->  | I68: 0 | AH68: 0 | AK68: 0 | AQ68: 0 | AT68: 0 | AZ68: 0 | BC68: 0
I69: 0 | AH69: 0 | AK69: 0 | AQ69: 0 | AT69: 0 | AZ69: 0 | BC69: 0
I70: 0 | AH70: 0 | AK70: 0 | AQ70: 0 | AT70: 0 | AZ70: 0 | BC70: 0
I71: 0 | AH71: 0 | AK71: 0 | AQ71: 0 | AT71: 0 | AZ71: 0 | BC71: 0
I72: 0 | AH72: 0 | AK72: 0 | AQ72: 0 | AT72: 0 | AZ72: 0 | BC72: 0
I73: 0 | AH73: 0 | AK73: 0 | AQ73: 0 | AT73: 0 | AZ73: 0 | BC73: 0
I74: 0 | AH74: 0 | AK74: 0 | AQ74: 0 | AT74: 0 | AZ74: 0 | BC74: 0
I75: 0 | AH75: 0 | AK75: 0 | AQ75: 0 | AT75: 0 | AZ75: 0 | BC75: 0
I76: 0 | AH76: 0 | AK76: 0 | AQ76: 0 | AT76: 0 | AZ76: 0 | BC76: 0
I77: 0 | AH77: 0 | AK77: 0 | AQ77: 0 | AT77: 0 | AZ77: 0 | BC77: 0
F78: =IF(D78="","",$F$8+(3*(SQRT($F$8/D78)))) ->  | G78: =IF(D78="","",IF($F$8-(3*(SQRT($F$8/D78)))<0,0,$F$8-(3*(SQRT($F$8/D78))))) ->  | I78: 0 | J78: =IF(G78="","",$F$8) ->  | K78: =IF(D78="","",IF($F$8-(1*(SQRT($F$8/D78)))<0,0,$F$8-(1*(SQRT($F$8/D78))))) ->  | L78: =IF(D78="","",IF($F$8-(2*(SQRT($F$8/D78)))<0,0,$F$8-(2*(SQRT($F$8/D78))))) ->  | M78: =IF(D78="","",$F$8+(1*(SQRT($F$8/D78)))) ->  | N78: =IF(D78="","",$F$8+(2*(SQRT($F$8/D78)))) ->  | AH78: 0 | AK78: 0 | AQ78: 0 | AT78: 0 | AV78: =IF(AND(AR78<>"",AU78=""),AR78,IF(AND(AR78="",AU78<>""),AU78,IF(AND(AR78<>"",AU78<>""),AR78,""))) ->  | AZ78: 0 | BC78: 0 | BI78: =IF(BH78=1,CONCATENATE("Data Point ",B78),"") -> 
I79: =IF(B79>$F$9,0,1) -> 0 | AG79: =IF(E79="","",IF(AND(E79>=N79,E79<F79),1,0)) ->  | AH79: =SUM(AG79:AG81) -> 0 | AI79: =IF(AH80=2,"",IF(AH79>=2,CONCATENATE("Data Point ",B79," to ","Data Point ",(B79+2)),"")) ->  | AJ79: =IF(E79="","",IF(AND(E79<=L79,E79>G79),1,0)) ->  | AK79: =SUM(AJ79:AJ81) -> 0 | AL79: =IF(AK80=2,"",IF(AK79>=2,CONCATENATE("Data Point ",B79," to ","Data Point ",(B79+2)),"")) ->  | AM79: =IF(AND(AI79<>"",AL79=""),AI79,IF(AND(AI79="",AL79<>""),AL79,IF(AND(AI79<>"",AL79<>""),AI79,""))) ->  | AP79: =IF(E79="","",IF(AND(E79>=M79,E79<F79),1,0)) ->  | AQ79: =SUM(AP79:AP83) -> 0 | AR79: =IF(AQ80=4,"",IF(AQ79>=4,CONCATENATE("Data Point ",B79," to ","Data Point ",(B79+4)),"")) ->  | AS79: =IF(E79="","",IF(AND(E79<=K79,E79>G79),1,0)) ->  | AT79: =SUM(AS79:AS83) -> 0 | AU79: =IF(AT80=4,"",IF(AT79>=4,CONCATENATE("Data Point ",B79," to ","Data Point ",(B79+4)),"")) ->  | AY79: =IF(E79="","",IF(AND(E79>=J79,E79<F79),1,0)) ->  | AZ79: =SUM(AY79:AY86) -> 0 | BA79: =IF(AZ80=8, "", IF(AZ79=8,CONCATENATE("Data Point ",B79," to ","Data Point ",(B79+8)),"")) ->  | BB79: =IF(E79="","",IF(AND(E79<=J79,E79>G79),1,0)) ->  | BC79: =SUM(BB79:BB86) -> 0 | BD79: =IF(BC80=8, "", IF(BC79=8,CONCATENATE("Data Point ",B79," to ","Data Point ",(B79+8)),"")) ->  | BE79: =IF(AND(BA79<>"",BD79=""),BA79,IF(AND(BA79="",BD79<>""),BD79,IF(AND(BA79<>"",BD79<>""),BA79,""))) ->  | BH79: =IF(E79="","",IF(OR(E79>F79,E79<G79),1,0)) -> 
B80: =IF(C80="","",B79+1) ->  | I80: 0 | AH80: 0 | AK80: 0 | AQ80: 0 | AT80: 0 | AZ80: 0 | BC80: 0
I81: 0 | AH81: 0 | AK81: 0 | AQ81: 0 | AT81: 0 | AZ81: 0 | BC81: 0
I82: 0 | AH82: 0 | AK82: 0 | AQ82: 0 | AT82: 0 | AZ82: 0 | BC82: 0
I83: 0 | AH83: 0 | AK83: 0 | AQ83: 0 | AT83: 0 | AZ83: 0 | BC83: 0
I84: 0 | AH84: 0 | AK84: 0 | AQ84: 0 | AT84: 0 | AZ84: 0 | BC84: 0
I85: 0 | AH85: 0 | AK85: 0 | AQ85: 0 | AT85: 0 | AZ85: 0 | BC85: 0
I86: 0 | AH86: 0 | AK86: 0 | AQ86: 0 | AT86: 0 | AZ86: 0 | BC86: 0
I87: 0 | AH87: 0 | AK87: 0 | AQ87: 0 | AT87: 0 | AZ87: 0 | BC87: 0
I88: 0 | AH88: 0 | AK88: 0 | AQ88: 0 | AT88: 0 | AZ88: 0 | BC88: 0
I89: 0 | AH89: 0 | AK89: 0 | AQ89: 0 | AT89: 0 | AZ89: 0 | BC89: 0
I90: 0 | AH90: 0 | AK90: 0 | AQ90: 0 | AT90: 0 | AZ90: 0 | BC90: 0
I91: 0 | AH91: 0 | AK91: 0 | AQ91: 0 | AT91: 0 | AZ91: 0 | BC91: 0
I92: 0 | AH92: 0 | AK92: 0 | AQ92: 0 | AT92: 0 | AZ92: 0 | BC92: 0
I93: 0 | AH93: 0 | AK93: 0 | AQ93: 0 | AT93: 0 | AZ93: 0 | BC93: 0
I94: 0 | AH94: 0 | AK94: 0 | AQ94: 0 | AT94: 0 | AZ94: 0 | BC94: 0
I95: 0 | AH95: 0 | AK95: 0 | AQ95: 0 | AT95: 0 | AZ95: 0 | BC95: 0
I96: 0 | AH96: 0 | AK96: 0 | AQ96: 0 | AT96: 0 | AZ96: 0 | BC96: 0
I97: 0 | AH97: 0 | AK97: 0 | AQ97: 0 | AT97: 0 | AZ97: 0 | BC97: 0
I98: 0 | AH98: 0 | AK98: 0 | AQ98: 0 | AT98: 0 | AZ98: 0 | BC98: 0
I99: 0 | AH99: 0 | AK99: 0 | AQ99: 0 | AT99: 0 | AZ99: 0 | BC99: 0
I100: 0 | AH100: 0 | AK100: 0 | AQ100: 0 | AT100: 0 | AZ100: 0 | BC100: 0
I101: 0 | AH101: 0 | AK101: 0 | AQ101: 0 | AT101: 0 | AZ101: 0 | BC101: 0
I102: 0 | AH102: 0 | AK102: 0 | AQ102: 0 | AT102: 0 | AZ102: 0 | BC102: 0
I103: 0 | AH103: 0 | AK103: 0 | AQ103: 0 | AT103: 0 | AZ103: 0 | BC103: 0
I104: 0 | AH104: 0 | AK104: 0 | AQ104: 0 | AT104: 0 | AZ104: 0 | BC104: 0
I105: 0 | AH105: 0 | AK105: 0 | AQ105: 0 | AT105: 0 | AZ105: 0 | BC105: 0
I106: 0 | AH106: 0 | AK106: 0 | AQ106: 0 | AT106: 0 | AZ106: 0 | BC106: 0
I107: 0 | AH107: 0 | AK107: 0 | AQ107: 0 | AT107: 0 | AZ107: 0 | BC107: 0
I108: 0 | AH108: 0 | AK108: 0 | AQ108: 0 | AT108: 0 | AZ108: 0 | BC108: 0
I109: 0 | AH109: 0 | AK109: 0 | AQ109: 0 | AT109: 0 | AZ109: 0 | BC109: 0
I110: 0 | AH110: 0 | AK110: 0 | AQ110: 0 | AT110: 0 | AZ110: 0 | BC110: 0
I111: 0 | AH111: 0 | AK111: 0 | AQ111: 0 | AT111: 0 | AZ111: 0 | BC111: 0
I112: 0 | AH112: 0 | AK112: 0 | AQ112: 0 | AT112: 0 | AZ112: 0 | BC112: 0
I113: 0 | AH113: 0 | AK113: 0 | AQ113: 0 | AT113: 0 | AZ113: 0 | BC113: 0
I114: 0 | AH114: 0 | AK114: 0 | AQ114: 0 | AT114: 0 | AZ114: 0 | BC114: 0
I115: 0 | AH115: 0 | AK115: 0 | AQ115: 0 | AT115: 0 | AZ115: 0 | BC115: 0
I116: 0 | AH116: 0 | AK116: 0 | AQ116: 0 | AT116: 0 | AZ116: 0 | BC116: 0
I117: 0 | AH117: 0 | AK117: 0 | AQ117: 0 | AT117: 0 | AZ117: 0 | BC117: 0
I118: 0 | AH118: 0 | AK118: 0 | AQ118: 0 | AT118: 0 | AZ118: 0 | BC118: 0
I119: 0 | AH119: 0 | AK119: 0 | AQ119: 0 | AT119: 0 | AZ119: 0 | BC119: 0
I120: 0 | AH120: 0 | AK120: 0 | AQ120: 0 | AT120: 0 | AZ120: 0 | BC120: 0
I121: 0 | AH121: 0 | AK121: 0 | AQ121: 0 | AT121: 0 | AZ121: 0 | BC121: 0
I122: 0 | AH122: 0 | AK122: 0 | AQ122: 0 | AT122: 0 | AZ122: 0 | BC122: 0
I123: 0 | AH123: 0 | AK123: 0 | AQ123: 0 | AT123: 0 | AZ123: 0 | BC123: 0
I124: 0 | AH124: 0 | AK124: 0 | AQ124: 0 | AT124: 0 | AZ124: 0 | BC124: 0 | RY124: Rule 3
I125: 0 | AH125: 0 | AK125: 0 | AQ125: 0 | AT125: 0 | AZ125: 0 | BC125: 0
I126: 0 | AH126: 0 | AK126: 0 | AQ126: 0 | AT126: 0 | AZ126: 0 | BC126: 0
I127: 0 | AH127: 0 | AK127: 0 | AQ127: 0 | AT127: 0 | AZ127: 0 | BC127: 0
I128: 0 | AH128: 0 | AK128: 0 | AQ128: 0 | AT128: 0 | AZ128: 0 | BC128: 0
I129: 0 | AH129: 0 | AK129: 0 | AQ129: 0 | AT129: 0 | AZ129: 0 | BC129: 0
I130: 0 | AH130: 0 | AK130: 0 | AQ130: 0 | AT130: 0 | AZ130: 0 | BC130: 0
I131: 0 | AH131: 0 | AK131: 0 | AQ131: 0 | AT131: 0 | AZ131: 0 | BC131: 0
E132: =IF(D132="","",C132/D132) ->  | I132: 0 | AH132: 0 | AK132: 0 | AQ132: 0 | AT132: 0 | AZ132: 0 | BC132: 0
I133: 0 | AH133: 0 | AK133: 0 | AQ133: 0 | AT133: 0 | AZ133: 0 | BC133: 0
I134: 0 | AH134: 0 | AK134: 0 | AQ134: 0 | AT134: 0 | AZ134: 0 | BC134: 0
I135: 0 | AH135: 0 | AK135: 0 | AQ135: 0 | AT135: 0 | AZ135: 0 | BC135: 0
I136: 0 | AH136: 0 | AK136: 0 | AQ136: 0 | AT136: 0 | AZ136: 0 | BC136: 0
I137: 0 | AH137: 0 | AK137: 0 | AQ137: 0 | AT137: 0 | AZ137: 0 | BC137: 0
I138: 0 | AH138: 0 | AK138: 0 | AQ138: 0 | AT138: 0 | AZ138: 0 | BC138: 0
I139: 0 | AH139: 0 | AK139: 0 | AQ139: 0 | AT139: 0 | AZ139: 0 | BC139: 0
I140: 0 | AH140: 0 | AK140: 0 | AQ140: 0 | AT140: 0 | AZ140: 0 | BC140: 0
I141: 0 | AH141: 0 | AK141: 0 | AQ141: 0 | AT141: 0 | AZ141: 0 | BC141: 0
F142: =IF(D142="","",$F$8+(3*(SQRT($F$8/D142)))) ->  | G142: =IF(D142="","",IF($F$8-(3*(SQRT($F$8/D142)))<0,0,$F$8-(3*(SQRT($F$8/D142))))) ->  | I142: 0 | J142: =IF(G142="","",$F$8) ->  | K142: =IF(D142="","",IF($F$8-(1*(SQRT($F$8/D142)))<0,0,$F$8-(1*(SQRT($F$8/D142))))) ->  | L142: =IF(D142="","",IF($F$8-(2*(SQRT($F$8/D142)))<0,0,$F$8-(2*(SQRT($F$8/D142))))) ->  | M142: =IF(D142="","",$F$8+(1*(SQRT($F$8/D142)))) ->  | N142: =IF(D142="","",$F$8+(2*(SQRT($F$8/D142)))) ->  | AH142: 0 | AK142: 0 | AQ142: 0 | AT142: 0 | AV142: =IF(AND(AR142<>"",AU142=""),AR142,IF(AND(AR142="",AU142<>""),AU142,IF(AND(AR142<>"",AU142<>""),AR142,""))) ->  | AZ142: 0 | BC142: 0 | BI142: =IF(BH142=1,CONCATENATE("Data Point ",B142),"") -> 
I143: =IF(B143>$F$9,0,1) -> 0 | AG143: =IF(E143="","",IF(AND(E143>=N143,E143<F143),1,0)) ->  | AH143: =SUM(AG143:AG145) -> 0 | AI143: =IF(AH144=2,"",IF(AH143>=2,CONCATENATE("Data Point ",B143," to ","Data Point ",(B143+2)),"")) ->  | AJ143: =IF(E143="","",IF(AND(E143<=L143,E143>G143),1,0)) ->  | AK143: =SUM(AJ143:AJ145) -> 0 | AL143: =IF(AK144=2,"",IF(AK143>=2,CONCATENATE("Data Point ",B143," to ","Data Point ",(B143+2)),"")) ->  | AM143: =IF(AND(AI143<>"",AL143=""),AI143,IF(AND(AI143="",AL143<>""),AL143,IF(AND(AI143<>"",AL143<>""),AI143,""))) ->  | AP143: =IF(E143="","",IF(AND(E143>=M143,E143<F143),1,0)) ->  | AQ143: =SUM(AP143:AP147) -> 0 | AR143: =IF(AQ144=4,"",IF(AQ143>=4,CONCATENATE("Data Point ",B143," to ","Data Point ",(B143+4)),"")) ->  | AS143: =IF(E143="","",IF(AND(E143<=K143,E143>G143),1,0)) ->  | AT143: =SUM(AS143:AS147) -> 0 | AU143: =IF(AT144=4,"",IF(AT143>=4,CONCATENATE("Data Point ",B143," to ","Data Point ",(B143+4)),"")) ->  | AY143: =IF(E143="","",IF(AND(E143>=J143,E143<F143),1,0)) ->  | AZ143: =SUM(AY143:AY150) -> 0 | BA143: =IF(AZ144=8, "", IF(AZ143=8,CONCATENATE("Data Point ",B143," to ","Data Point ",(B143+8)),"")) ->  | BB143: =IF(E143="","",IF(AND(E143<=J143,E143>G143),1,0)) ->  | BC143: =SUM(BB143:BB150) -> 0 | BD143: =IF(BC144=8, "", IF(BC143=8,CONCATENATE("Data Point ",B143," to ","Data Point ",(B143+8)),"")) ->  | BE143: =IF(AND(BA143<>"",BD143=""),BA143,IF(AND(BA143="",BD143<>""),BD143,IF(AND(BA143<>"",BD143<>""),BA143,""))) ->  | BH143: =IF(E143="","",IF(OR(E143>F143,E143<G143),1,0)) -> 
B144: =IF(C144="","",B143+1) ->  | I144: 0 | AH144: 0 | AK144: 0 | AQ144: 0 | AT144: 0 | AZ144: 0 | BC144: 0
I145: 0 | AH145: 0 | AK145: 0 | AQ145: 0 | AT145: 0 | AZ145: 0 | BC145: 0
I146: 0 | AH146: 0 | AK146: 0 | AQ146: 0 | AT146: 0 | AZ146: 0 | BC146: 0
I147: 0 | AH147: 0 | AK147: 0 | AQ147: 0 | AT147: 0 | AZ147: 0 | BC147: 0
I148: 0 | AH148: 0 | AK148: 0 | AQ148: 0 | AT148: 0 | AZ148: 0 | BC148: 0
I149: 0 | AH149: 0 | AK149: 0 | AQ149: 0 | AT149: 0 | AZ149: 0 | BC149: 0
I150: 0 | AH150: 0 | AK150: 0 | AQ150: 0 | AT150: 0 | AZ150: 0 | BC150: 0
I151: 0 | AH151: 0 | AK151: 0 | AQ151: 0 | AT151: 0 | AZ151: 0 | BC151: 0
I152: 0 | AH152: 0 | AK152: 0 | AQ152: 0 | AT152: 0 | AZ152: 0 | BC152: 0
I153: 0 | AH153: 0 | AK153: 0 | AQ153: 0 | AT153: 0 | AZ153: 0 | BC153: 0
I154: 0 | AH154: 0 | AK154: 0 | AQ154: 0 | AT154: 0 | AZ154: 0 | BC154: 0
I155: 0 | AH155: 0 | AK155: 0 | AQ155: 0 | AT155: 0 | AZ155: 0 | BC155: 0
I156: 0 | AH156: 0 | AK156: 0 | AQ156: 0 | AT156: 0 | AZ156: 0 | BC156: 0
I157: 0 | AH157: 0 | AK157: 0 | AQ157: 0 | AT157: 0 | AZ157: 0 | BC157: 0
I158: 0 | AH158: 0 | AK158: 0 | AQ158: 0 | AT158: 0 | AZ158: 0 | BC158: 0
I159: 0 | AH159: 0 | AK159: 0 | AQ159: 0 | AT159: 0 | AZ159: 0 | BC159: 0
I160: 0 | AH160: 0 | AK160: 0 | AQ160: 0 | AT160: 0 | AZ160: 0 | BC160: 0
I161: 0 | AH161: 0 | AK161: 0 | AQ161: 0 | AT161: 0 | AZ161: 0 | BC161: 0
I162: 0 | AH162: 0 | AK162: 0 | AQ162: 0 | AT162: 0 | AZ162: 0 | BC162: 0
I163: 0 | AH163: 0 | AK163: 0 | AQ163: 0 | AT163: 0 | AZ163: 0 | BC163: 0
I164: 0 | AH164: 0 | AK164: 0 | AQ164: 0 | AT164: 0 | AZ164: 0 | BC164: 0
I165: 0 | AH165: 0 | AK165: 0 | AQ165: 0 | AT165: 0 | AZ165: 0 | BC165: 0
I166: 0 | AH166: 0 | AK166: 0 | AQ166: 0 | AT166: 0 | AZ166: 0 | BC166: 0
I167: 0 | AH167: 0 | AK167: 0 | AQ167: 0 | AT167: 0 | AZ167: 0 | BC167: 0
I168: 0 | AH168: 0 | AK168: 0 | AQ168: 0 | AT168: 0 | AZ168: 0 | BC168: 0
I169: 0 | AH169: 0 | AK169: 0 | AQ169: 0 | AT169: 0 | AZ169: 0 | BC169: 0
I170: 0 | AH170: 0 | AK170: 0 | AQ170: 0 | AT170: 0 | AZ170: 0 | BC170: 0
I171: 0 | AH171: 0 | AK171: 0 | AQ171: 0 | AT171: 0 | AZ171: 0 | BC171: 0
I172: 0 | AH172: 0 | AK172: 0 | AQ172: 0 | AT172: 0 | AZ172: 0 | BC172: 0
I173: 0 | AH173: 0 | AK173: 0 | AQ173: 0 | AT173: 0 | AZ173: 0 | BC173: 0
I174: 0 | AH174: 0 | AK174: 0 | AQ174: 0 | AT174: 0 | AZ174: 0 | BC174: 0
I175: 0 | AH175: 0 | AK175: 0 | AQ175: 0 | AT175: 0 | AZ175: 0 | BC175: 0
I176: 0 | AH176: 0 | AK176: 0 | AQ176: 0 | AT176: 0 | AZ176: 0 | BC176: 0
I177: 0 | AH177: 0 | AK177: 0 | AQ177: 0 | AT177: 0 | AZ177: 0 | BC177: 0
I178: 0 | AH178: 0 | AK178: 0 | AQ178: 0 | AT178: 0 | AZ178: 0 | BC178: 0
I179: 0 | AH179: 0 | AK179: 0 | AQ179: 0 | AT179: 0 | AZ179: 0 | BC179: 0
I180: 0 | AH180: 0 | AK180: 0 | AQ180: 0 | AT180: 0 | AZ180: 0 | BC180: 0
I181: 0 | AH181: 0 | AK181: 0 | AQ181: 0 | AT181: 0 | AZ181: 0 | BC181: 0
I182: 0 | AH182: 0 | AK182: 0 | AQ182: 0 | AT182: 0 | AZ182: 0 | BC182: 0
I183: 0 | AH183: 0 | AK183: 0 | AQ183: 0 | AT183: 0 | AZ183: 0 | BC183: 0
I184: 0 | AH184: 0 | AK184: 0 | AQ184: 0 | AT184: 0 | AZ184: 0 | BC184: 0
I185: 0 | AH185: 0 | AK185: 0 | AQ185: 0 | AT185: 0 | AZ185: 0 | BC185: 0
I186: 0 | AH186: 0 | AK186: 0 | AQ186: 0 | AT186: 0 | AZ186: 0 | BC186: 0
I187: 0 | AH187: 0 | AK187: 0 | AQ187: 0 | AT187: 0 | AZ187: 0 | BC187: 0
I188: 0 | AH188: 0 | AK188: 0 | AQ188: 0 | AT188: 0 | AZ188: 0 | BC188: 0
I189: 0 | AH189: 0 | AK189: 0 | AQ189: 0 | AT189: 0 | AZ189: 0 | BC189: 0
I190: 0 | AH190: 0 | AK190: 0 | AQ190: 0 | AT190: 0 | AZ190: 0 | BC190: 0
I191: 0 | AH191: 0 | AK191: 0 | AQ191: 0 | AT191: 0 | AZ191: 0 | BC191: 0
I192: 0 | AH192: 0 | AK192: 0 | AQ192: 0 | AT192: 0 | AZ192: 0 | BC192: 0
I193: 0 | AH193: 0 | AK193: 0 | AQ193: 0 | AT193: 0 | AZ193: 0 | BC193: 0
I194: 0 | AH194: 0 | AK194: 0 | AQ194: 0 | AT194: 0 | AZ194: 0 | BC194: 0
I195: 0 | AH195: 0 | AK195: 0 | AQ195: 0 | AT195: 0 | AZ195: 0 | BC195: 0
E196: =IF(D196="","",C196/D196) ->  | I196: 0 | AH196: 0 | AK196: 0 | AQ196: 0 | AT196: 0 | AZ196: 0 | BC196: 0
I197: 0 | AH197: 0 | AK197: 0 | AQ197: 0 | AT197: 0 | AZ197: 0 | BC197: 0
I198: 0 | AH198: 0 | AK198: 0 | AQ198: 0 | AT198: 0 | AZ198: 0 | BC198: 0
I199: 0 | AH199: 0 | AK199: 0 | AQ199: 0 | AT199: 0 | AZ199: 0 | BC199: 0
I200: 0 | AH200: 0 | AK200: 0 | AQ200: 0 | AT200: 0 | AZ200: 0 | BC200: 0
I201: 0 | AH201: 0 | AK201: 0 | AQ201: 0 | AT201: 0 | AZ201: 0 | BC201: 0
I202: 0 | AH202: 0 | AK202: 0 | AQ202: 0 | AT202: 0 | AZ202: 0 | BC202: 0
... 509 more rows

Sheet P_Chart
A2: P Chart (with subgroup size remains constant)
A4: Control Chart Details: | Q4: Out-Of-Control Process: Sensitization Rules
A5: Chart Type | C5: P Chart | E5: Data Point statistics | H5: DEFINE SPECIFICATION LIMIT | Q5: Rule - 1 | R5: Rule - 2 | S5: Rule - 3 | T5: Rule - 4
A6: Distribution followed | B6: Distribution followed | C6: Binomial | E6: SAMPLE SIZE | G6: =SUM(D14:D712*J14:J712) -> 28 | H6: Upper Spec. (USL) | I6: 1.5
A7: Data Type | B7: Data Type | C7: Attribute | E7: MEAN (pBar) | G7: =IF(COUNT(E14:E710)=0,"-",AVERAGEIF(J14:J711,"1",E14:E711)) -> 0.9555555556 | H7: Lower Spec. (LSL) | I7: 0.8
A8: Sample or Subgroup size | B8: Sample or Subgroup size | C8: Equal Sized | E8: MEAN (1-p) | G8: =IF(COUNT(F14:F711)=0,"-",AVERAGEIF(J14:J711,"1",F14:F711)) -> 0.04444444444 | H8: PROCESS CAPABILITY (Select this cell to view HELP) | P8: =ROUND(((I6-I7)/(6*(STDEV($P$14:$P$711)))),3) -> 1.323
A9: Sub Process Identified | B9: Sub Process Identified | E9: Intial Data Points (for Freezing Baselines) | G9: 9 | H9: =IF(COUNTBLANK(I6:I7)>0,"Cp = need spec. limit","Cp"&" = "&ROUND(((I6-I7)/(6*(STDEV($P$14:$P$711)))), 3)) -> Cp = 1.323 | I9: =IF(COUNTBLANK(I6)>0,"need spec. limit","Cpu"&" = "&ROUND(((I6-$G$7)/(3*(STDEV($P$14:$P$711)))), 3)) -> Cpu = 2.058 | P9: =IF(COUNTBLANK(I6)>0,"need spec. limit",ROUND(((I6-$G$7)/(3*(STDEV($P$14:$P$711)))), 3)) -> 2.058
A10: Basis of Sub Process selection | C10: Derived from PPM (Sensitivity Analysis) | E10: Revise Contril Limit | G10: Please use separate sheet for revise control limit | H10: ="Cpk"&" = "&MIN(P9:P10) -> Cpk = 0.588 | I10: =IF(COUNTBLANK(I7)>0,"need spec. limit","Cpl"&" = "&ROUND(((G7-I7)/(3*(STDEV($P$14:$P$711)))), 3)) -> Cpl = 0.588 | P10: =IF(COUNTBLANK(I7)>0,"need spec. limit",ROUND(((G7-I7)/(3*(STDEV($P$14:$P$711)))), 3)) -> 0.588 | AG10: Rule 2 | AP10: Rule 3 | AY10: Rule 4 | BH10: Rule 1
A11: Metrics Used | AM11: Rule 1 | AV11: Rule 1 | BE11: Rule 1
AM12: Rule 1 | AV12: Rule 1 | BE12: Rule 1
A13: Date of Reporting | B13: S. No. | C13: PROBLEM MEETING SLA | D13: TOTAL NO. OF PROBLEM | E13: PROPORTIONAL | F13: 1-p | G13: UCL | H13: LCL | I13: RCA for Out of Control Points | L13: pLCL | M13: ppLCL | N13: pUCL | O13: ppUCL | P13: App. STDEV | AG13: Between +2 to +3 | AJ13: Between -2 to -3 | AM13: Rule 2 | AP13: Between +1 to +3 | AS13: Between -1 to -3 | AV13: Rule 3 | AY13: Between CL to +3 | BB13: Between CL to -3 | BE13: Rule 3 | BH13: Between -3 to +3 | BI13: Rule 1
A14: 2011-02-01 | B14: =IF(C14="","",1) -> 1 | C14: 3 | D14: 3 | E14: =IF(D14="","",C14/D14) -> 1 | F14: =IF(Table13[[#This Row],[PROPORTIONAL]]="", "", (ABS(1-Table13[[#This Row],[PROPORTIONAL]]))) -> 0 | G14: =IF(D14="","",$G$7+3*(SQRT(($G$7*(ABS(1-$G$7)))/D14))) -> 1.312497298 | H14: =IF(D14="","",IF($G$7-3*(SQRT(($G$7*(ABS(1-$G$7)))/D14))<0,0,$G$7-3*(SQRT(($G$7*(ABS(1-$G$7)))/D14)))) -> 0.5986138132 | J14: =IF(B14>$G$9,0,1) -> 1 | K14: =IF(H14="","",$G$7) -> 0.9555555556 | L14: =IF(D14="","",IF($G$7-1*(SQRT(($G$7*(ABS(1-$G$7)))/D14))<0,0,$G$7-1*(SQRT(($G$7*(ABS(1-$G$7)))/D14)))) -> 0.8365749748 | M14: =IF(D14="","",IF($G$7-2*(SQRT(($G$7*(ABS(1-$G$7)))/D14))<0,0,$G$7-2*(SQRT(($G$7*(ABS(1-$G$7)))/D14)))) -> 0.717594394 | N14: =IF(D14="","",$G$7+1*(SQRT(($G$7*(ABS(1-$G$7)))/D14))) -> 1.074536136 | O14: =IF(D14="","",$G$7+2*(SQRT(($G$7*(ABS(1-$G$7)))/D14))) -> 1.193516717 | P14: =IF(J14=1, E14, "") -> 1 | AG14: =IF(E14="","",IF(AND(E14>=O14,E14<G14),1,0)) -> 0 | AH14: =SUM(AG14:AG16) -> 0 | AI14: =IF(AH15=2,"",IF(AH14>=2,CONCATENATE("Data Point ",B14," to ","Data Point ",(B14+2)),"")) ->  | AJ14: =IF(E14="","",IF(AND(E14<=M14,E14>H14),1,0)) -> 0 | AK14: =SUM(AJ14:AJ16) -> 0 | AL14: =IF(AK15=2,"",IF(AK14>=2,CONCATENATE("Data Point ",B14," to ","Data Point ",(B14+2)),"")) ->  | AM14: =IF(AND(AI14<>"",AL14=""),AI14,IF(AND(AI14="",AL14<>""),AL14,IF(AND(AI14<>"",AL14<>""),AI14,""))) ->  | AP14: =IF(E14="","",IF(AND(E14>=N14,E14<G14),1,0)) -> 0 | AQ14: =SUM(AP14:AP18) -> 0 | AR14: =IF(AQ15=4,"",IF(AQ14>=4,CONCATENATE("Data Point ",B14," to ","Data Point ",(B14+4)),"")) ->  | AS14: =IF(E14="","",IF(AND(E14<=L14,E14>H14),1,0)) -> 0 | AT14: =SUM(AS14:AS18) -> 1 | AU14: =IF(AT15=4,"",IF(AT14>=4,CONCATENATE("Data Point ",B14," to ","Data Point ",(B14+4)),"")) ->  | AV14: =IF(AND(AR14<>"",AU14=""),AR14,IF(AND(AR14="",AU14<>""),AU14,IF(AND(AR14<>"",AU14<>""),AR14,""))) ->  | AY14: =IF(E14="","",IF(AND(E14>=K14,E14<G14),1,0)) -> 1 | AZ14: =SUM(AY14:AY21) -> 6 | BA14: =IF(AZ15=8, "", IF(AZ14=8,CONCATENATE("Data Point ",B14," to ","Data Point ",(B14+8)),"")) ->  | BB14: =IF(E14="","",IF(AND(E14<=K14,E14>H14),1,0)) -> 0 | BC14: =SUM(BB14:BB21) -> 2 | BD14: =IF(BC15=8, "", IF(BC14=8,CONCATENATE("Data Point ",B14," to ","Data Point ",(B14+8)),"")) ->  | BE14: =IF(AND(BA14<>"",BD14=""),BA14,IF(AND(BA14="",BD14<>""),BD14,IF(AND(BA14<>"",BD14<>""),BA14,""))) ->  | BH14: =IF(E14="","",IF(OR(E14>G14,E14<H14),1,0)) -> 0 | BI14: =IF(BH14=1,CONCATENATE("Data Point ",B14),"") -> 
A15: 2011-02-10 | B15: =IF(C15="","",B14+1) -> 2 | C15: 4 | D15: 5 | E15: =IF(D15="","",C15/D15) -> 0.8 | F15: =IF(Table13[[#This Row],[PROPORTIONAL]]="", "", (ABS(1-Table13[[#This Row],[PROPORTIONAL]]))) -> 0.2 | G15: 1.23204144 | H15: 0.6790696708 | J15: =IF(B15>$G$9,0,1) -> 1 | K15: 0.9555555556 | L15: 0.863393594 | M15: 0.7712316324 | N15: 1.047717517 | O15: 1.139879479 | P15: =IF(J15=1, E15, "") -> 0.8 | AG15: =IF(E15="","",IF(AND(E15>=O15,E15<G15),1,0)) -> 0 | AH15: =SUM(AG15:AG17) -> 0 | AI15: =IF(AH16=2,"",IF(AH15>=2,CONCATENATE("Data Point ",B15," to ","Data Point ",(B15+2)),"")) ->  | AJ15: =IF(E15="","",IF(AND(E15<=M15,E15>H15),1,0)) -> 0 | AK15: =SUM(AJ15:AJ17) -> 0 | AM15: =IF(AND(AI15<>"",AL15=""),AI15,IF(AND(AI15="",AL15<>""),AL15,IF(AND(AI15<>"",AL15<>""),AI15,""))) ->  | AP15: =IF(E15="","",IF(AND(E15>=N15,E15<G15),1,0)) -> 0 | AQ15: =SUM(AP15:AP19) -> 0 | AR15: =IF(AQ16=4,"",IF(AQ15>=4,CONCATENATE("Data Point ",B15," to ","Data Point ",(B15+4)),"")) ->  | AS15: =IF(E15="","",IF(AND(E15<=L15,E15>H15),1,0)) -> 1 | AT15: 1 | AY15: =IF(E15="","",IF(AND(E15>=K15,E15<G15),1,0)) -> 0 | AZ15: 6 | BA15: =IF(AZ16=8, "", IF(AZ15=8,CONCATENATE("Data Point ",B15," to ","Data Point ",(B15+8)),"")) ->  | BB15: =IF(E15="","",IF(AND(E15<=K15,E15>H15),1,0)) -> 1 | BC15: 2 | BD15: =IF(BC16=8, "", IF(BC15=8,CONCATENATE("Data Point ",B15," to ","Data Point ",(B15+8)),"")) ->  | BH15: =IF(E15="","",IF(OR(E15>G15,E15<H15),1,0)) -> 0 | BI15: =IF(BH15=1,CONCATENATE("Data Point ",B15),"") -> 
A16: 2011-03-01 | B16: =IF(C16="","",B15+1) -> 3 | C16: 2 | D16: 2 | E16: 1 | F16: =IF(Table13[[#This Row],[PROPORTIONAL]]="", "", (ABS(1-Table13[[#This Row],[PROPORTIONAL]]))) -> 0 | G16: 1.392718124 | H16: 0.5183929873 | J16: 1 | K16: 0.9555555556 | L16: 0.8098346995 | M16: 0.6641138434 | N16: 1.101276412 | O16: 1.246997268 | P16: 1 | AG16: 0 | AH16: 0 | AJ16: 0 | AK16: 0 | AP16: 0 | AQ16: 0 | AS16: 0 | AT16: 1 | AY16: 1 | AZ16: 6 | BB16: 0 | BC16: 1 | BH16: 0
A17: 2011-03-10 | B17: 4 | C17: 3 | D17: 3 | E17: 1 | F17: =IF(Table13[[#This Row],[PROPORTIONAL]]="", "", (ABS(1-Table13[[#This Row],[PROPORTIONAL]]))) -> 0 | G17: 1.312497298 | H17: 0.5986138132 | J17: 1 | K17: 0.9555555556 | L17: 0.8365749748 | M17: 0.717594394 | N17: 1.074536136 | O17: 1.193516717 | P17: 1 | AG17: 0 | AH17: 0 | AJ17: 0 | AK17: 0 | AP17: 0 | AQ17: 0 | AS17: 0 | AT17: 1 | AY17: 1 | AZ17: 5 | BB17: 0 | BC17: 1 | BH17: 0
A18: 2011-04-01 | B18: 5 | C18: 2 | D18: 2 | E18: 1 | F18: =IF(Table13[[#This Row],[PROPORTIONAL]]="", "", (ABS(1-Table13[[#This Row],[PROPORTIONAL]]))) -> 0 | G18: 1.392718124 | H18: 0.5183929873 | J18: 1 | K18: 0.9555555556 | L18: 0.8098346995 | M18: 0.6641138434 | N18: 1.101276412 | O18: 1.246997268 | P18: 1 | AG18: 0 | AH18: 0 | AJ18: 0 | AK18: 0 | AP18: 0 | AQ18: 0 | AS18: 0 | AT18: 1 | AY18: 1 | AZ18: 4 | BB18: 0 | BC18: 1 | BH18: 0
A19: 2011-04-10 | B19: 6 | C19: 2 | D19: 2 | E19: 1 | F19: =IF(Table13[[#This Row],[PROPORTIONAL]]="", "", (ABS(1-Table13[[#This Row],[PROPORTIONAL]]))) -> 0 | G19: 1.392718124 | H19: 0.5183929873 | J19: 1 | K19: 0.9555555556 | L19: 0.8098346995 | M19: 0.6641138434 | N19: 1.101276412 | O19: 1.246997268 | P19: 1 | AG19: 0 | AH19: 0 | AJ19: 0 | AK19: 0 | AP19: 0 | AQ19: 0 | AS19: 0 | AT19: 1 | AY19: 1 | AZ19: 3 | BB19: 0 | BC19: 1 | BH19: 0
A20: 2011-05-10 | B20: 7 | C20: 4 | D20: 5 | E20: 0.8 | F20: =IF(Table13[[#This Row],[PROPORTIONAL]]="", "", (ABS(1-Table13[[#This Row],[PROPORTIONAL]]))) -> 0.2 | G20: 1.23204144 | H20: 0.6790696708 | J20: 1 | K20: 0.9555555556 | L20: 0.863393594 | M20: 0.7712316324 | N20: 1.047717517 | O20: 1.139879479 | P20: 0.8 | AG20: 0 | AH20: 0 | AJ20: 0 | AK20: 0 | AP20: 0 | AQ20: 0 | AS20: 1 | AT20: 1 | AY20: 0 | AZ20: 2 | BB20: 1 | BC20: 1 | BH20: 0
A21: 2011-06-10 | B21: 8 | C21: 3 | D21: 3 | E21: 1 | F21: =IF(Table13[[#This Row],[PROPORTIONAL]]="", "", (ABS(1-Table13[[#This Row],[PROPORTIONAL]]))) -> 0 | G21: 1.312497298 | H21: 0.5986138132 | J21: 1 | K21: 0.9555555556 | L21: 0.8365749748 | M21: 0.717594394 | N21: 1.074536136 | O21: 1.193516717 | P21: 1 | AG21: 0 | AH21: 0 | AJ21: 0 | AK21: 0 | AP21: 0 | AQ21: 0 | AS21: 0 | AT21: 0 | AY21: 1 | AZ21: 2 | BB21: 0 | BC21: 0 | BH21: 0
A22: 2011-07-10 | B22: 9 | C22: 3 | D22: 3 | E22: 1 | F22: =IF(Table13[[#This Row],[PROPORTIONAL]]="", "", (ABS(1-Table13[[#This Row],[PROPORTIONAL]]))) -> 0 | G22: 1.312497298 | H22: 0.5986138132 | J22: 1 | K22: 0.9555555556 | L22: 0.8365749748 | M22: 0.717594394 | N22: 1.074536136 | O22: 1.193516717 | P22: 1 | AG22: 0 | AH22: 0 | AJ22: 0 | AK22: 0 | AP22: 0 | AQ22: 0 | AS22: 0 | AT22: 0 | AY22: 1 | AZ22: 1 | BB22: 0 | BC22: 0 | BH22: 0
F23: =IF(Table13[[#This Row],[PROPORTIONAL]]="", "", (ABS(1-Table13[[#This Row],[PROPORTIONAL]]))) ->  | J23: 0 | AH23: 0 | AK23: 0 | AQ23: 0 | AT23: 0 | AZ23: 0 | BC23: 0
F24: =IF(Table13[[#This Row],[PROPORTIONAL]]="", "", (ABS(1-Table13[[#This Row],[PROPORTIONAL]]))) ->  | J24: 0 | AH24: =SUM(AG24:AG26) -> 0 | AK24: 0 | AQ24: 0 | AT24: 0 | AZ24: 0 | BC24: 0
F25: =IF(Table13[[#This Row],[PROPORTIONAL]]="", "", (ABS(1-Table13[[#This Row],[PROPORTIONAL]]))) ->  | J25: 0 | AH25: 0 | AK25: 0 | AQ25: 0 | AT25: 0 | AZ25: 0 | BC25: 0
F26: =IF(Table13[[#This Row],[PROPORTIONAL]]="", "", (ABS(1-Table13[[#This Row],[PROPORTIONAL]]))) ->  | J26: 0 | AH26: 0 | AK26: 0 | AQ26: 0 | AT26: 0 | AZ26: 0 | BC26: 0
F27: =IF(Table13[[#This Row],[PROPORTIONAL]]="", "", (ABS(1-Table13[[#This Row],[PROPORTIONAL]]))) ->  | J27: 0 | AH27: 0 | AK27: 0 | AQ27: 0 | AT27: 0 | AZ27: 0 | BC27: 0
F28: =IF(Table13[[#This Row],[PROPORTIONAL]]="", "", (ABS(1-Table13[[#This Row],[PROPORTIONAL]]))) ->  | J28: 0 | AH28: 0 | AK28: 0 | AQ28: 0 | AT28: 0 | AZ28: 0 | BC28: 0
F29: =IF(Table13[[#This Row],[PROPORTIONAL]]="", "", (ABS(1-Table13[[#This Row],[PROPORTIONAL]]))) ->  | J29: 0 | AH29: 0 | AK29: 0 | AQ29: 0 | AT29: 0 | AZ29: 0 | BC29: 0
F30: =IF(Table13[[#This Row],[PROPORTIONAL]]="", "", (ABS(1-Table13[[#This Row],[PROPORTIONAL]]))) ->  | J30: 0 | AH30: 0 | AK30: 0 | AQ30: 0 | AT30: 0 | AZ30: 0 | BC30: 0
F31: =IF(Table13[[#This Row],[PROPORTIONAL]]="", "", (ABS(1-Table13[[#This Row],[PROPORTIONAL]]))) ->  | J31: 0 | AH31: 0 | AK31: 0 | AQ31: 0 | AT31: 0 | AZ31: 0 | BC31: 0
F32: =IF(Table13[[#This Row],[PROPORTIONAL]]="", "", (ABS(1-Table13[[#This Row],[PROPORTIONAL]]))) ->  | J32: 0 | AH32: 0 | AK32: 0 | AQ32: 0 | AT32: 0 | AZ32: 0 | BC32: 0
F33: =IF(Table13[[#This Row],[PROPORTIONAL]]="", "", (ABS(1-Table13[[#This Row],[PROPORTIONAL]]))) ->  | J33: 0 | AH33: 0 | AK33: 0 | AQ33: 0 | AT33: 0 | AZ33: 0 | BC33: 0
F34: =IF(Table13[[#This Row],[PROPORTIONAL]]="", "", (ABS(1-Table13[[#This Row],[PROPORTIONAL]]))) ->  | J34: 0 | AH34: 0 | AK34: 0 | AQ34: 0 | AT34: 0 | AZ34: 0 | BC34: 0
F35: =IF(Table13[[#This Row],[PROPORTIONAL]]="", "", (ABS(1-Table13[[#This Row],[PROPORTIONAL]]))) ->  | J35: 0 | AH35: 0 | AK35: 0 | AQ35: 0 | AT35: 0 | AZ35: 0 | BC35: 0
F36: =IF(Table13[[#This Row],[PROPORTIONAL]]="", "", (ABS(1-Table13[[#This Row],[PROPORTIONAL]]))) ->  | J36: 0 | AH36: 0 | AK36: 0 | AQ36: 0 | AT36: 0 | AZ36: 0 | BC36: 0
F37: =IF(Table13[[#This Row],[PROPORTIONAL]]="", "", (ABS(1-Table13[[#This Row],[PROPORTIONAL]]))) ->  | J37: 0 | AH37: 0 | AK37: 0 | AQ37: 0 | AT37: 0 | AZ37: 0 | BC37: 0
F38: =IF(Table13[[#This Row],[PROPORTIONAL]]="", "", (ABS(1-Table13[[#This Row],[PROPORTIONAL]]))) ->  | J38: 0 | AH38: 0 | AK38: 0 | AQ38: 0 | AT38: 0 | AZ38: 0 | BC38: 0
F39: =IF(Table13[[#This Row],[PROPORTIONAL]]="", "", (ABS(1-Table13[[#This Row],[PROPORTIONAL]]))) ->  | J39: 0 | AH39: 0 | AK39: 0 | AQ39: 0 | AT39: 0 | AZ39: 0 | BC39: 0
F40: =IF(Table13[[#This Row],[PROPORTIONAL]]="", "", (ABS(1-Table13[[#This Row],[PROPORTIONAL]]))) ->  | J40: 0 | AH40: 0 | AK40: 0 | AQ40: 0 | AT40: 0 | AZ40: 0 | BC40: 0
F41: =IF(Table13[[#This Row],[PROPORTIONAL]]="", "", (ABS(1-Table13[[#This Row],[PROPORTIONAL]]))) ->  | J41: 0 | AH41: 0 | AK41: 0 | AQ41: 0 | AT41: 0 | AZ41: 0 | BC41: 0
F42: =IF(Table13[[#This Row],[PROPORTIONAL]]="", "", (ABS(1-Table13[[#This Row],[PROPORTIONAL]]))) ->  | J42: 0 | AH42: 0 | AK42: 0 | AQ42: 0 | AT42: 0 | AZ42: 0 | BC42: 0
F43: =IF(Table13[[#This Row],[PROPORTIONAL]]="", "", (ABS(1-Table13[[#This Row],[PROPORTIONAL]]))) ->  | J43: 0 | AH43: 0 | AK43: 0 | AQ43: 0 | AT43: 0 | AZ43: 0 | BC43: 0
F44: =IF(Table13[[#This Row],[PROPORTIONAL]]="", "", (ABS(1-Table13[[#This Row],[PROPORTIONAL]]))) ->  | J44: 0 | AH44: 0 | AK44: 0 | AQ44: 0 | AT44: 0 | AZ44: 0 | BC44: 0
F45: =IF(Table13[[#This Row],[PROPORTIONAL]]="", "", (ABS(1-Table13[[#This Row],[PROPORTIONAL]]))) ->  | J45: 0 | AH45: 0 | AK45: 0 | AQ45: 0 | AT45: 0 | AZ45: 0 | BC45: 0
F46: =IF(Table13[[#This Row],[PROPORTIONAL]]="", "", (ABS(1-Table13[[#This Row],[PROPORTIONAL]]))) ->  | J46: 0 | AH46: 0 | AK46: 0 | AQ46: 0 | AT46: 0 | AZ46: 0 | BC46: 0
F47: =IF(Table13[[#This Row],[PROPORTIONAL]]="", "", (ABS(1-Table13[[#This Row],[PROPORTIONAL]]))) ->  | J47: 0 | AH47: 0 | AK47: 0 | AQ47: 0 | AT47: 0 | AZ47: 0 | BC47: 0
F48: =IF(Table13[[#This Row],[PROPORTIONAL]]="", "", (ABS(1-Table13[[#This Row],[PROPORTIONAL]]))) ->  | J48: 0 | AH48: 0 | AK48: 0 | AQ48: 0 | AT48: 0 | AZ48: 0 | BC48: 0
F49: =IF(Table13[[#This Row],[PROPORTIONAL]]="", "", (ABS(1-Table13[[#This Row],[PROPORTIONAL]]))) ->  | J49: 0 | AH49: 0 | AK49: 0 | AQ49: 0 | AT49: 0 | AZ49: 0 | BC49: 0
F50: =IF(Table13[[#This Row],[PROPORTIONAL]]="", "", (ABS(1-Table13[[#This Row],[PROPORTIONAL]]))) ->  | J50: 0 | AH50: 0 | AK50: 0 | AQ50: 0 | AT50: 0 | AZ50: 0 | BC50: 0
F51: =IF(Table13[[#This Row],[PROPORTIONAL]]="", "", (ABS(1-Table13[[#This Row],[PROPORTIONAL]]))) ->  | J51: 0 | AH51: 0 | AK51: 0 | AQ51: 0 | AT51: 0 | AZ51: 0 | BC51: 0
F52: =IF(Table13[[#This Row],[PROPORTIONAL]]="", "", (ABS(1-Table13[[#This Row],[PROPORTIONAL]]))) ->  | J52: 0 | AH52: 0 | AK52: 0 | AQ52: 0 | AT52: 0 | AZ52: 0 | BC52: 0
F53: =IF(Table13[[#This Row],[PROPORTIONAL]]="", "", (ABS(1-Table13[[#This Row],[PROPORTIONAL]]))) ->  | J53: 0 | AH53: 0 | AK53: 0 | AQ53: 0 | AT53: 0 | AZ53: 0 | BC53: 0
F54: =IF(Table13[[#This Row],[PROPORTIONAL]]="", "", (ABS(1-Table13[[#This Row],[PROPORTIONAL]]))) ->  | J54: 0 | AH54: 0 | AK54: 0 | AQ54: 0 | AT54: 0 | AZ54: 0 | BC54: 0
F55: =IF(Table13[[#This Row],[PROPORTIONAL]]="", "", (ABS(1-Table13[[#This Row],[PROPORTIONAL]]))) ->  | J55: 0 | AH55: 0 | AK55: 0 | AQ55: 0 | AT55: 0 | AZ55: 0 | BC55: 0
F56: =IF(Table13[[#This Row],[PROPORTIONAL]]="", "", (ABS(1-Table13[[#This Row],[PROPORTIONAL]]))) ->  | J56: 0 | AH56: 0 | AK56: 0 | AQ56: 0 | AT56: 0 | AZ56: 0 | BC56: 0
F57: =IF(Table13[[#This Row],[PROPORTIONAL]]="", "", (ABS(1-Table13[[#This Row],[PROPORTIONAL]]))) ->  | J57: 0 | AH57: 0 | AK57: 0 | AQ57: 0 | AT57: 0 | AZ57: 0 | BC57: 0
F58: =IF(Table13[[#This Row],[PROPORTIONAL]]="", "", (ABS(1-Table13[[#This Row],[PROPORTIONAL]]))) ->  | J58: 0 | AH58: 0 | AK58: 0 | AQ58: 0 | AT58: 0 | AZ58: 0 | BC58: 0
F59: =IF(Table13[[#This Row],[PROPORTIONAL]]="", "", (ABS(1-Table13[[#This Row],[PROPORTIONAL]]))) ->  | J59: 0 | AH59: 0 | AK59: 0 | AQ59: 0 | AT59: 0 | AZ59: 0 | BC59: 0
F60: =IF(Table13[[#This Row],[PROPORTIONAL]]="", "", (ABS(1-Table13[[#This Row],[PROPORTIONAL]]))) ->  | J60: 0 | AH60: 0 | AK60: 0 | AQ60: 0 | AT60: 0 | AZ60: 0 | BC60: 0
F61: =IF(Table13[[#This Row],[PROPORTIONAL]]="", "", (ABS(1-Table13[[#This Row],[PROPORTIONAL]]))) ->  | J61: 0 | AH61: 0 | AK61: 0 | AQ61: 0 | AT61: 0 | AZ61: 0 | BC61: 0
F62: =IF(Table13[[#This Row],[PROPORTIONAL]]="", "", (ABS(1-Table13[[#This Row],[PROPORTIONAL]]))) ->  | J62: 0 | AH62: 0 | AK62: 0 | AQ62: 0 | AT62: 0 | AZ62: 0 | BC62: 0
F63: =IF(Table13[[#This Row],[PROPORTIONAL]]="", "", (ABS(1-Table13[[#This Row],[PROPORTIONAL]]))) ->  | J63: 0 | AH63: 0 | AK63: 0 | AQ63: 0 | AT63: 0 | AZ63: 0 | BC63: 0
F64: =IF(Table13[[#This Row],[PROPORTIONAL]]="", "", (ABS(1-Table13[[#This Row],[PROPORTIONAL]]))) ->  | J64: 0 | AH64: 0 | AK64: 0 | AQ64: 0 | AT64: 0 | AZ64: 0 | BC64: 0
F65: =IF(Table13[[#This Row],[PROPORTIONAL]]="", "", (ABS(1-Table13[[#This Row],[PROPORTIONAL]]))) ->  | J65: 0 | AH65: 0 | AK65: 0 | AQ65: 0 | AT65: 0 | AZ65: 0 | BC65: 0
F66: =IF(Table13[[#This Row],[PROPORTIONAL]]="", "", (ABS(1-Table13[[#This Row],[PROPORTIONAL]]))) ->  | J66: 0 | AH66: 0 | AK66: 0 | AQ66: 0 | AT66: 0 | AZ66: 0 | BC66: 0
F67: =IF(Table13[[#This Row],[PROPORTIONAL]]="", "", (ABS(1-Table13[[#This Row],[PROPORTIONAL]]))) ->  | J67: 0 | AH67: 0 | AK67: 0 | AQ67: 0 | AT67: 0 | AZ67: 0 | BC67: 0
F68: =IF(Table13[[#This Row],[PROPORTIONAL]]="", "", (ABS(1-Table13[[#This Row],[PROPORTIONAL]]))) ->  | J68: 0 | AH68: 0 | AK68: 0 | AQ68: 0 | AT68: 0 | AZ68: 0 | BC68: 0
F69: =IF(Table13[[#This Row],[PROPORTIONAL]]="", "", (ABS(1-Table13[[#This Row],[PROPORTIONAL]]))) ->  | J69: 0 | AH69: 0 | AK69: 0 | AQ69: 0 | AT69: 0 | AZ69: 0 | BC69: 0
F70: =IF(Table13[[#This Row],[PROPORTIONAL]]="", "", (ABS(1-Table13[[#This Row],[PROPORTIONAL]]))) ->  | J70: 0 | AH70: 0 | AK70: 0 | AQ70: 0 | AT70: 0 | AZ70: 0 | BC70: 0
F71: =IF(Table13[[#This Row],[PROPORTIONAL]]="", "", (ABS(1-Table13[[#This Row],[PROPORTIONAL]]))) ->  | J71: 0 | AH71: 0 | AK71: 0 | AQ71: 0 | AT71: 0 | AZ71: 0 | BC71: 0
F72: =IF(Table13[[#This Row],[PROPORTIONAL]]="", "", (ABS(1-Table13[[#This Row],[PROPORTIONAL]]))) ->  | J72: 0 | AH72: 0 | AK72: 0 | AQ72: 0 | AT72: 0 | AZ72: 0 | BC72: 0
F73: =IF(Table13[[#This Row],[PROPORTIONAL]]="", "", (ABS(1-Table13[[#This Row],[PROPORTIONAL]]))) ->  | J73: 0 | AH73: 0 | AK73: 0 | AQ73: 0 | AT73: 0 | AZ73: 0 | BC73: 0
F74: =IF(Table13[[#This Row],[PROPORTIONAL]]="", "", (ABS(1-Table13[[#This Row],[PROPORTIONAL]]))) ->  | J74: 0 | AH74: 0 | AK74: 0 | AQ74: 0 | AT74: 0 | AZ74: 0 | BC74: 0
F75: =IF(Table13[[#This Row],[PROPORTIONAL]]="", "", (ABS(1-Table13[[#This Row],[PROPORTIONAL]]))) ->  | J75: 0 | AH75: 0 | AK75: 0 | AQ75: 0 | AT75: 0 | AZ75: 0 | BC75: 0
F76: =IF(Table13[[#This Row],[PROPORTIONAL]]="", "", (ABS(1-Table13[[#This Row],[PROPORTIONAL]]))) ->  | J76: 0 | AH76: 0 | AK76: 0 | AQ76: 0 | AT76: 0 | AZ76: 0 | BC76: 0
F77: =IF(Table13[[#This Row],[PROPORTIONAL]]="", "", (ABS(1-Table13[[#This Row],[PROPORTIONAL]]))) ->  | J77: 0 | AH77: 0 | AK77: 0 | AQ77: 0 | AT77: 0 | AZ77: 0 | BC77: 0
F78: =IF(Table13[[#This Row],[PROPORTIONAL]]="", "", (ABS(1-Table13[[#This Row],[PROPORTIONAL]]))) ->  | G78: =IF(D78="","",$G$7+3*(SQRT(($G$7*(ABS(1-$G$7)))/D78))) ->  | H78: =IF(D78="","",IF($G$7-3*(SQRT(($G$7*(ABS(1-$G$7)))/D78))<0,0,$G$7-3*(SQRT(($G$7*(ABS(1-$G$7)))/D78)))) ->  | J78: 0 | K78: =IF(H78="","",$G$7) ->  | L78: =IF(D78="","",IF($G$7-1*(SQRT(($G$7*(ABS(1-$G$7)))/D78))<0,0,$G$7-1*(SQRT(($G$7*(ABS(1-$G$7)))/D78)))) ->  | M78: =IF(D78="","",IF($G$7-2*(SQRT(($G$7*(ABS(1-$G$7)))/D78))<0,0,$G$7-2*(SQRT(($G$7*(ABS(1-$G$7)))/D78)))) ->  | N78: =IF(D78="","",$G$7+1*(SQRT(($G$7*(ABS(1-$G$7)))/D78))) ->  | O78: =IF(D78="","",$G$7+2*(SQRT(($G$7*(ABS(1-$G$7)))/D78))) ->  | AH78: 0 | AK78: 0 | AL78: =IF(AK79=2,"",IF(AK78>=2,CONCATENATE("Data Point ",B78," to ","Data Point ",(B78+2)),"")) ->  | AQ78: 0 | AT78: =SUM(AS78:AS82) -> 0 | AU78: =IF(AT79=4,"",IF(AT78>=4,CONCATENATE("Data Point ",B78," to ","Data Point ",(B78+4)),"")) ->  | AV78: =IF(AND(AR78<>"",AU78=""),AR78,IF(AND(AR78="",AU78<>""),AU78,IF(AND(AR78<>"",AU78<>""),AR78,""))) ->  | AZ78: =SUM(AY78:AY85) -> 0 | BC78: =SUM(BB78:BB85) -> 0 | BE78: =IF(AND(BA78<>"",BD78=""),BA78,IF(AND(BA78="",BD78<>""),BD78,IF(AND(BA78<>"",BD78<>""),BA78,""))) -> 
E79: =IF(D79="","",C79/D79) ->  | F79: =IF(Table13[[#This Row],[PROPORTIONAL]]="", "", (ABS(1-Table13[[#This Row],[PROPORTIONAL]]))) ->  | J79: =IF(B79>$G$9,0,1) -> 0 | P79: =IF(J79=1, E79, "") ->  | AG79: =IF(E79="","",IF(AND(E79>=O79,E79<G79),1,0)) ->  | AH79: =SUM(AG79:AG81) -> 0 | AI79: =IF(AH80=2,"",IF(AH79>=2,CONCATENATE("Data Point ",B79," to ","Data Point ",(B79+2)),"")) ->  | AJ79: =IF(E79="","",IF(AND(E79<=M79,E79>H79),1,0)) ->  | AK79: =SUM(AJ79:AJ81) -> 0 | AM79: =IF(AND(AI79<>"",AL79=""),AI79,IF(AND(AI79="",AL79<>""),AL79,IF(AND(AI79<>"",AL79<>""),AI79,""))) ->  | AP79: =IF(E79="","",IF(AND(E79>=N79,E79<G79),1,0)) ->  | AQ79: =SUM(AP79:AP83) -> 0 | AR79: =IF(AQ80=4,"",IF(AQ79>=4,CONCATENATE("Data Point ",B79," to ","Data Point ",(B79+4)),"")) ->  | AS79: =IF(E79="","",IF(AND(E79<=L79,E79>H79),1,0)) ->  | AT79: 0 | AY79: =IF(E79="","",IF(AND(E79>=K79,E79<G79),1,0)) ->  | AZ79: 0 | BA79: =IF(AZ80=8, "", IF(AZ79=8,CONCATENATE("Data Point ",B79," to ","Data Point ",(B79+8)),"")) ->  | BB79: =IF(E79="","",IF(AND(E79<=K79,E79>H79),1,0)) ->  | BC79: 0 | BD79: =IF(BC80=8, "", IF(BC79=8,CONCATENATE("Data Point ",B79," to ","Data Point ",(B79+8)),"")) ->  | BH79: =IF(E79="","",IF(OR(E79>G79,E79<H79),1,0)) ->  | BI79: =IF(BH79=1,CONCATENATE("Data Point ",B79),"") -> 
B80: =IF(C80="","",B79+1) ->  | F80: =IF(Table13[[#This Row],[PROPORTIONAL]]="", "", (ABS(1-Table13[[#This Row],[PROPORTIONAL]]))) ->  | J80: 0 | AH80: 0 | AK80: 0 | AQ80: 0 | AT80: 0 | AZ80: 0 | BC80: 0
F81: =IF(Table13[[#This Row],[PROPORTIONAL]]="", "", (ABS(1-Table13[[#This Row],[PROPORTIONAL]]))) ->  | J81: 0 | AH81: 0 | AK81: 0 | AQ81: 0 | AT81: 0 | AZ81: 0 | BC81: 0
F82: =IF(Table13[[#This Row],[PROPORTIONAL]]="", "", (ABS(1-Table13[[#This Row],[PROPORTIONAL]]))) ->  | J82: 0 | AH82: 0 | AK82: 0 | AQ82: 0 | AT82: 0 | AZ82: 0 | BC82: 0
F83: =IF(Table13[[#This Row],[PROPORTIONAL]]="", "", (ABS(1-Table13[[#This Row],[PROPORTIONAL]]))) ->  | J83: 0 | AH83: 0 | AK83: 0 | AQ83: 0 | AT83: 0 | AZ83: 0 | BC83: 0
F84: =IF(Table13[[#This Row],[PROPORTIONAL]]="", "", (ABS(1-Table13[[#This Row],[PROPORTIONAL]]))) ->  | J84: 0 | AH84: 0 | AK84: 0 | AQ84: 0 | AT84: 0 | AZ84: 0 | BC84: 0
F85: =IF(Table13[[#This Row],[PROPORTIONAL]]="", "", (ABS(1-Table13[[#This Row],[PROPORTIONAL]]))) ->  | J85: 0 | AH85: 0 | AK85: 0 | AQ85: 0 | AT85: 0 | AZ85: 0 | BC85: 0
F86: =IF(Table13[[#This Row],[PROPORTIONAL]]="", "", (ABS(1-Table13[[#This Row],[PROPORTIONAL]]))) ->  | J86: 0 | AH86: 0 | AK86: 0 | AQ86: 0 | AT86: 0 | AZ86: 0 | BC86: 0
F87: =IF(Table13[[#This Row],[PROPORTIONAL]]="", "", (ABS(1-Table13[[#This Row],[PROPORTIONAL]]))) ->  | J87: 0 | AH87: 0 | AK87: 0 | AQ87: 0 | AT87: 0 | AZ87: 0 | BC87: 0
F88: =IF(Table13[[#This Row],[PROPORTIONAL]]="", "", (ABS(1-Table13[[#This Row],[PROPORTIONAL]]))) ->  | J88: 0 | AH88: 0 | AK88: 0 | AQ88: 0 | AT88: 0 | AZ88: 0 | BC88: 0
F89: =IF(Table13[[#This Row],[PROPORTIONAL]]="", "", (ABS(1-Table13[[#This Row],[PROPORTIONAL]]))) ->  | J89: 0 | AH89: 0 | AK89: 0 | AQ89: 0 | AT89: 0 | AZ89: 0 | BC89: 0
F90: =IF(Table13[[#This Row],[PROPORTIONAL]]="", "", (ABS(1-Table13[[#This Row],[PROPORTIONAL]]))) ->  | J90: 0 | AH90: 0 | AK90: 0 | AQ90: 0 | AT90: 0 | AZ90: 0 | BC90: 0
F91: =IF(Table13[[#This Row],[PROPORTIONAL]]="", "", (ABS(1-Table13[[#This Row],[PROPORTIONAL]]))) ->  | J91: 0 | AH91: 0 | AK91: 0 | AQ91: 0 | AT91: 0 | AZ91: 0 | BC91: 0
F92: =IF(Table13[[#This Row],[PROPORTIONAL]]="", "", (ABS(1-Table13[[#This Row],[PROPORTIONAL]]))) ->  | J92: 0 | AH92: 0 | AK92: 0 | AQ92: 0 | AT92: 0 | AZ92: 0 | BC92: 0
F93: =IF(Table13[[#This Row],[PROPORTIONAL]]="", "", (ABS(1-Table13[[#This Row],[PROPORTIONAL]]))) ->  | J93: 0 | AH93: 0 | AK93: 0 | AQ93: 0 | AT93: 0 | AZ93: 0 | BC93: 0
F94: =IF(Table13[[#This Row],[PROPORTIONAL]]="", "", (ABS(1-Table13[[#This Row],[PROPORTIONAL]]))) ->  | J94: 0 | AH94: 0 | AK94: 0 | AQ94: 0 | AT94: 0 | AZ94: 0 | BC94: 0
F95: =IF(Table13[[#This Row],[PROPORTIONAL]]="", "", (ABS(1-Table13[[#This Row],[PROPORTIONAL]]))) ->  | J95: 0 | AH95: 0 | AK95: 0 | AQ95: 0 | AT95: 0 | AZ95: 0 | BC95: 0
F96: =IF(Table13[[#This Row],[PROPORTIONAL]]="", "", (ABS(1-Table13[[#This Row],[PROPORTIONAL]]))) ->  | J96: 0 | AH96: 0 | AK96: 0 | AQ96: 0 | AT96: 0 | AZ96: 0 | BC96: 0
F97: =IF(Table13[[#This Row],[PROPORTIONAL]]="", "", (ABS(1-Table13[[#This Row],[PROPORTIONAL]]))) ->  | J97: 0 | AH97: 0 | AK97: 0 | AQ97: 0 | AT97: 0 | AZ97: 0 | BC97: 0
F98: =IF(Table13[[#This Row],[PROPORTIONAL]]="", "", (ABS(1-Table13[[#This Row],[PROPORTIONAL]]))) ->  | J98: 0 | AH98: 0 | AK98: 0 | AQ98: 0 | AT98: 0 | AZ98: 0 | BC98: 0
F99: =IF(Table13[[#This Row],[PROPORTIONAL]]="", "", (ABS(1-Table13[[#This Row],[PROPORTIONAL]]))) ->  | J99: 0 | AH99: 0 | AK99: 0 | AQ99: 0 | AT99: 0 | AZ99: 0 | BC99: 0
F100: =IF(Table13[[#This Row],[PROPORTIONAL]]="", "", (ABS(1-Table13[[#This Row],[PROPORTIONAL]]))) ->  | J100: 0 | AH100: 0 | AK100: 0 | AQ100: 0 | AT100: 0 | AZ100: 0 | BC100: 0
F101: =IF(Table13[[#This Row],[PROPORTIONAL]]="", "", (ABS(1-Table13[[#This Row],[PROPORTIONAL]]))) ->  | J101: 0 | AH101: 0 | AK101: 0 | AQ101: 0 | AT101: 0 | AZ101: 0 | BC101: 0
F102: =IF(Table13[[#This Row],[PROPORTIONAL]]="", "", (ABS(1-Table13[[#This Row],[PROPORTIONAL]]))) ->  | J102: 0 | AH102: 0 | AK102: 0 | AQ102: 0 | AT102: 0 | AZ102: 0 | BC102: 0
F103: =IF(Table13[[#This Row],[PROPORTIONAL]]="", "", (ABS(1-Table13[[#This Row],[PROPORTIONAL]]))) ->  | J103: 0 | AH103: 0 | AK103: 0 | AQ103: 0 | AT103: 0 | AZ103: 0 | BC103: 0
F104: =IF(Table13[[#This Row],[PROPORTIONAL]]="", "", (ABS(1-Table13[[#This Row],[PROPORTIONAL]]))) ->  | J104: 0 | AH104: 0 | AK104: 0 | AQ104: 0 | AT104: 0 | AZ104: 0 | BC104: 0
F105: =IF(Table13[[#This Row],[PROPORTIONAL]]="", "", (ABS(1-Table13[[#This Row],[PROPORTIONAL]]))) ->  | J105: 0 | AH105: 0 | AK105: 0 | AQ105: 0 | AT105: 0 | AZ105: 0 | BC105: 0
F106: =IF(Table13[[#This Row],[PROPORTIONAL]]="", "", (ABS(1-Table13[[#This Row],[PROPORTIONAL]]))) ->  | J106: 0 | AH106: 0 | AK106: 0 | AQ106: 0 | AT106: 0 | AZ106: 0 | BC106: 0
F107: =IF(Table13[[#This Row],[PROPORTIONAL]]="", "", (ABS(1-Table13[[#This Row],[PROPORTIONAL]]))) ->  | J107: 0 | AH107: 0 | AK107: 0 | AQ107: 0 | AT107: 0 | AZ107: 0 | BC107: 0
F108: =IF(Table13[[#This Row],[PROPORTIONAL]]="", "", (ABS(1-Table13[[#This Row],[PROPORTIONAL]]))) ->  | J108: 0 | AH108: 0 | AK108: 0 | AQ108: 0 | AT108: 0 | AZ108: 0 | BC108: 0
F109: =IF(Table13[[#This Row],[PROPORTIONAL]]="", "", (ABS(1-Table13[[#This Row],[PROPORTIONAL]]))) ->  | J109: 0 | AH109: 0 | AK109: 0 | AQ109: 0 | AT109: 0 | AZ109: 0 | BC109: 0
F110: =IF(Table13[[#This Row],[PROPORTIONAL]]="", "", (ABS(1-Table13[[#This Row],[PROPORTIONAL]]))) ->  | J110: 0 | AH110: 0 | AK110: 0 | AQ110: 0 | AT110: 0 | AZ110: 0 | BC110: 0
F111: =IF(Table13[[#This Row],[PROPORTIONAL]]="", "", (ABS(1-Table13[[#This Row],[PROPORTIONAL]]))) ->  | J111: 0 | AH111: 0 | AK111: 0 | AQ111: 0 | AT111: 0 | AZ111: 0 | BC111: 0
F112: =IF(Table13[[#This Row],[PROPORTIONAL]]="", "", (ABS(1-Table13[[#This Row],[PROPORTIONAL]]))) ->  | J112: 0 | AH112: 0 | AK112: 0 | AQ112: 0 | AT112: 0 | AZ112: 0 | BC112: 0
F113: =IF(Table13[[#This Row],[PROPORTIONAL]]="", "", (ABS(1-Table13[[#This Row],[PROPORTIONAL]]))) ->  | J113: 0 | AH113: 0 | AK113: 0 | AQ113: 0 | AT113: 0 | AZ113: 0 | BC113: 0
F114: =IF(Table13[[#This Row],[PROPORTIONAL]]="", "", (ABS(1-Table13[[#This Row],[PROPORTIONAL]]))) ->  | J114: 0 | AH114: 0 | AK114: 0 | AQ114: 0 | AT114: 0 | AZ114: 0 | BC114: 0
F115: =IF(Table13[[#This Row],[PROPORTIONAL]]="", "", (ABS(1-Table13[[#This Row],[PROPORTIONAL]]))) ->  | J115: 0 | AH115: 0 | AK115: 0 | AQ115: 0 | AT115: 0 | AZ115: 0 | BC115: 0
F116: =IF(Table13[[#This Row],[PROPORTIONAL]]="", "", (ABS(1-Table13[[#This Row],[PROPORTIONAL]]))) ->  | J116: 0 | AH116: 0 | AK116: 0 | AQ116: 0 | AT116: 0 | AZ116: 0 | BC116: 0
F117: =IF(Table13[[#This Row],[PROPORTIONAL]]="", "", (ABS(1-Table13[[#This Row],[PROPORTIONAL]]))) ->  | J117: 0 | AH117: 0 | AK117: 0 | AQ117: 0 | AT117: 0 | AZ117: 0 | BC117: 0
F118: =IF(Table13[[#This Row],[PROPORTIONAL]]="", "", (ABS(1-Table13[[#This Row],[PROPORTIONAL]]))) ->  | J118: 0 | AH118: 0 | AK118: 0 | AQ118: 0 | AT118: 0 | AZ118: 0 | BC118: 0
F119: =IF(Table13[[#This Row],[PROPORTIONAL]]="", "", (ABS(1-Table13[[#This Row],[PROPORTIONAL]]))) ->  | J119: 0 | AH119: 0 | AK119: 0 | AQ119: 0 | AT119: 0 | AZ119: 0 | BC119: 0
F120: =IF(Table13[[#This Row],[PROPORTIONAL]]="", "", (ABS(1-Table13[[#This Row],[PROPORTIONAL]]))) ->  | J120: 0 | AH120: 0 | AK120: 0 | AQ120: 0 | AT120: 0 | AZ120: 0 | BC120: 0
F121: =IF(Table13[[#This Row],[PROPORTIONAL]]="", "", (ABS(1-Table13[[#This Row],[PROPORTIONAL]]))) ->  | J121: 0 | AH121: 0 | AK121: 0 | AQ121: 0 | AT121: 0 | AZ121: 0 | BC121: 0
F122: =IF(Table13[[#This Row],[PROPORTIONAL]]="", "", (ABS(1-Table13[[#This Row],[PROPORTIONAL]]))) ->  | J122: 0 | AH122: 0 | AK122: 0 | AQ122: 0 | AT122: 0 | AZ122: 0 | BC122: 0
F123: =IF(Table13[[#This Row],[PROPORTIONAL]]="", "", (ABS(1-Table13[[#This Row],[PROPORTIONAL]]))) ->  | J123: 0 | AH123: 0 | AK123: 0 | AQ123: 0 | AT123: 0 | AZ123: 0 | BC123: 0
F124: =IF(Table13[[#This Row],[PROPORTIONAL]]="", "", (ABS(1-Table13[[#This Row],[PROPORTIONAL]]))) ->  | J124: 0 | AH124: 0 | AK124: 0 | AQ124: 0 | AT124: 0 | AZ124: 0 | BC124: 0
F125: =IF(Table13[[#This Row],[PROPORTIONAL]]="", "", (ABS(1-Table13[[#This Row],[PROPORTIONAL]]))) ->  | J125: 0 | AH125: 0 | AK125: 0 | AQ125: 0 | AT125: 0 | AZ125: 0 | BC125: 0
F126: =IF(Table13[[#This Row],[PROPORTIONAL]]="", "", (ABS(1-Table13[[#This Row],[PROPORTIONAL]]))) ->  | J126: 0 | AH126: 0 | AK126: 0 | AQ126: 0 | AT126: 0 | AZ126: 0 | BC126: 0
F127: =IF(Table13[[#This Row],[PROPORTIONAL]]="", "", (ABS(1-Table13[[#This Row],[PROPORTIONAL]]))) ->  | J127: 0 | AH127: 0 | AK127: 0 | AQ127: 0 | AT127: 0 | AZ127: 0 | BC127: 0
F128: =IF(Table13[[#This Row],[PROPORTIONAL]]="", "", (ABS(1-Table13[[#This Row],[PROPORTIONAL]]))) ->  | J128: 0 | AH128: 0 | AK128: 0 | AQ128: 0 | AT128: 0 | AZ128: 0 | BC128: 0
F129: =IF(Table13[[#This Row],[PROPORTIONAL]]="", "", (ABS(1-Table13[[#This Row],[PROPORTIONAL]]))) ->  | J129: 0 | AH129: 0 | AK129: 0 | AQ129: 0 | AT129: 0 | AZ129: 0 | BC129: 0
F130: =IF(Table13[[#This Row],[PROPORTIONAL]]="", "", (ABS(1-Table13[[#This Row],[PROPORTIONAL]]))) ->  | J130: 0 | AH130: 0 | AK130: 0 | AQ130: 0 | AT130: 0 | AZ130: 0 | BC130: 0
F131: =IF(Table13[[#This Row],[PROPORTIONAL]]="", "", (ABS(1-Table13[[#This Row],[PROPORTIONAL]]))) ->  | J131: 0 | AH131: 0 | AK131: 0 | AQ131: 0 | AT131: 0 | AZ131: 0 | BC131: 0
F132: =IF(Table13[[#This Row],[PROPORTIONAL]]="", "", (ABS(1-Table13[[#This Row],[PROPORTIONAL]]))) ->  | J132: 0 | AH132: 0 | AK132: 0 | AQ132: 0 | AT132: 0 | AZ132: 0 | BC132: 0
F133: =IF(Table13[[#This Row],[PROPORTIONAL]]="", "", (ABS(1-Table13[[#This Row],[PROPORTIONAL]]))) ->  | J133: 0 | AH133: 0 | AK133: 0 | AQ133: 0 | AT133: 0 | AZ133: 0 | BC133: 0
F134: =IF(Table13[[#This Row],[PROPORTIONAL]]="", "", (ABS(1-Table13[[#This Row],[PROPORTIONAL]]))) ->  | J134: 0 | AH134: 0 | AK134: 0 | AQ134: 0 | AT134: 0 | AZ134: 0 | BC134: 0
F135: =IF(Table13[[#This Row],[PROPORTIONAL]]="", "", (ABS(1-Table13[[#This Row],[PROPORTIONAL]]))) ->  | J135: 0 | AH135: 0 | AK135: 0 | AQ135: 0 | AT135: 0 | AZ135: 0 | BC135: 0
F136: =IF(Table13[[#This Row],[PROPORTIONAL]]="", "", (ABS(1-Table13[[#This Row],[PROPORTIONAL]]))) ->  | J136: 0 | AH136: 0 | AK136: 0 | AQ136: 0 | AT136: 0 | AZ136: 0 | BC136: 0
F137: =IF(Table13[[#This Row],[PROPORTIONAL]]="", "", (ABS(1-Table13[[#This Row],[PROPORTIONAL]]))) ->  | J137: 0 | AH137: 0 | AK137: 0 | AQ137: 0 | AT137: 0 | AZ137: 0 | BC137: 0
F138: =IF(Table13[[#This Row],[PROPORTIONAL]]="", "", (ABS(1-Table13[[#This Row],[PROPORTIONAL]]))) ->  | J138: 0 | AH138: 0 | AK138: 0 | AQ138: 0 | AT138: 0 | AZ138: 0 | BC138: 0
F139: =IF(Table13[[#This Row],[PROPORTIONAL]]="", "", (ABS(1-Table13[[#This Row],[PROPORTIONAL]]))) ->  | J139: 0 | AH139: 0 | AK139: 0 | AQ139: 0 | AT139: 0 | AZ139: 0 | BC139: 0
F140: =IF(Table13[[#This Row],[PROPORTIONAL]]="", "", (ABS(1-Table13[[#This Row],[PROPORTIONAL]]))) ->  | J140: 0 | AH140: 0 | AK140: 0 | AQ140: 0 | AT140: 0 | AZ140: 0 | BC140: 0
F141: =IF(Table13[[#This Row],[PROPORTIONAL]]="", "", (ABS(1-Table13[[#This Row],[PROPORTIONAL]]))) ->  | J141: 0 | AH141: 0 | AK141: 0 | AQ141: 0 | AT141: 0 | AZ141: 0 | BC141: 0
F142: =IF(Table13[[#This Row],[PROPORTIONAL]]="", "", (ABS(1-Table13[[#This Row],[PROPORTIONAL]]))) ->  | G142: =IF(D142="","",$G$7+3*(SQRT(($G$7*(ABS(1-$G$7)))/D142))) ->  | H142: =IF(D142="","",IF($G$7-3*(SQRT(($G$7*(ABS(1-$G$7)))/D142))<0,0,$G$7-3*(SQRT(($G$7*(ABS(1-$G$7)))/D142)))) ->  | J142: 0 | K142: =IF(H142="","",$G$7) ->  | L142: =IF(D142="","",IF($G$7-1*(SQRT(($G$7*(ABS(1-$G$7)))/D142))<0,0,$G$7-1*(SQRT(($G$7*(ABS(1-$G$7)))/D142)))) ->  | M142: =IF(D142="","",IF($G$7-2*(SQRT(($G$7*(ABS(1-$G$7)))/D142))<0,0,$G$7-2*(SQRT(($G$7*(ABS(1-$G$7)))/D142)))) ->  | N142: =IF(D142="","",$G$7+1*(SQRT(($G$7*(ABS(1-$G$7)))/D142))) ->  | O142: =IF(D142="","",$G$7+2*(SQRT(($G$7*(ABS(1-$G$7)))/D142))) ->  | AH142: 0 | AK142: 0 | AL142: =IF(AK143=2,"",IF(AK142>=2,CONCATENATE("Data Point ",B142," to ","Data Point ",(B142+2)),"")) ->  | AQ142: 0 | AT142: =SUM(AS142:AS146) -> 0 | AU142: =IF(AT143=4,"",IF(AT142>=4,CONCATENATE("Data Point ",B142," to ","Data Point ",(B142+4)),"")) ->  | AV142: =IF(AND(AR142<>"",AU142=""),AR142,IF(AND(AR142="",AU142<>""),AU142,IF(AND(AR142<>"",AU142<>""),AR142,""))) ->  | AZ142: =SUM(AY142:AY149) -> 0 | BC142: =SUM(BB142:BB149) -> 0 | BE142: =IF(AND(BA142<>"",BD142=""),BA142,IF(AND(BA142="",BD142<>""),BD142,IF(AND(BA142<>"",BD142<>""),BA142,""))) -> 
E143: =IF(D143="","",C143/D143) ->  | F143: =IF(Table13[[#This Row],[PROPORTIONAL]]="", "", (ABS(1-Table13[[#This Row],[PROPORTIONAL]]))) ->  | J143: =IF(B143>$G$9,0,1) -> 0 | P143: =IF(J143=1, E143, "") ->  | AG143: =IF(E143="","",IF(AND(E143>=O143,E143<G143),1,0)) ->  | AH143: =SUM(AG143:AG145) -> 0 | AI143: =IF(AH144=2,"",IF(AH143>=2,CONCATENATE("Data Point ",B143," to ","Data Point ",(B143+2)),"")) ->  | AJ143: =IF(E143="","",IF(AND(E143<=M143,E143>H143),1,0)) ->  | AK143: =SUM(AJ143:AJ145) -> 0 | AM143: =IF(AND(AI143<>"",AL143=""),AI143,IF(AND(AI143="",AL143<>""),AL143,IF(AND(AI143<>"",AL143<>""),AI143,""))) ->  | AP143: =IF(E143="","",IF(AND(E143>=N143,E143<G143),1,0)) ->  | AQ143: =SUM(AP143:AP147) -> 0 | AR143: =IF(AQ144=4,"",IF(AQ143>=4,CONCATENATE("Data Point ",B143," to ","Data Point ",(B143+4)),"")) ->  | AS143: =IF(E143="","",IF(AND(E143<=L143,E143>H143),1,0)) ->  | AT143: 0 | AY143: =IF(E143="","",IF(AND(E143>=K143,E143<G143),1,0)) ->  | AZ143: 0 | BA143: =IF(AZ144=8, "", IF(AZ143=8,CONCATENATE("Data Point ",B143," to ","Data Point ",(B143+8)),"")) ->  | BB143: =IF(E143="","",IF(AND(E143<=K143,E143>H143),1,0)) ->  | BC143: 0 | BD143: =IF(BC144=8, "", IF(BC143=8,CONCATENATE("Data Point ",B143," to ","Data Point ",(B143+8)),"")) ->  | BH143: =IF(E143="","",IF(OR(E143>G143,E143<H143),1,0)) ->  | BI143: =IF(BH143=1,CONCATENATE("Data Point ",B143),"") -> 
B144: =IF(C144="","",B143+1) ->  | F144: =IF(Table13[[#This Row],[PROPORTIONAL]]="", "", (ABS(1-Table13[[#This Row],[PROPORTIONAL]]))) ->  | J144: 0 | AH144: 0 | AK144: 0 | AQ144: 0 | AT144: 0 | AZ144: 0 | BC144: 0
F145: =IF(Table13[[#This Row],[PROPORTIONAL]]="", "", (ABS(1-Table13[[#This Row],[PROPORTIONAL]]))) ->  | J145: 0 | AH145: 0 | AK145: 0 | AQ145: 0 | AT145: 0 | AZ145: 0 | BC145: 0
F146: =IF(Table13[[#This Row],[PROPORTIONAL]]="", "", (ABS(1-Table13[[#This Row],[PROPORTIONAL]]))) ->  | J146: 0 | AH146: 0 | AK146: 0 | AQ146: 0 | AT146: 0 | AZ146: 0 | BC146: 0
F147: =IF(Table13[[#This Row],[PROPORTIONAL]]="", "", (ABS(1-Table13[[#This Row],[PROPORTIONAL]]))) ->  | J147: 0 | AH147: 0 | AK147: 0 | AQ147: 0 | AT147: 0 | AZ147: 0 | BC147: 0
F148: =IF(Table13[[#This Row],[PROPORTIONAL]]="", "", (ABS(1-Table13[[#This Row],[PROPORTIONAL]]))) ->  | J148: 0 | AH148: 0 | AK148: 0 | AQ148: 0 | AT148: 0 | AZ148: 0 | BC148: 0
F149: =IF(Table13[[#This Row],[PROPORTIONAL]]="", "", (ABS(1-Table13[[#This Row],[PROPORTIONAL]]))) ->  | J149: 0 | AH149: 0 | AK149: 0 | AQ149: 0 | AT149: 0 | AZ149: 0 | BC149: 0
F150: =IF(Table13[[#This Row],[PROPORTIONAL]]="", "", (ABS(1-Table13[[#This Row],[PROPORTIONAL]]))) ->  | J150: 0 | AH150: 0 | AK150: 0 | AQ150: 0 | AT150: 0 | AZ150: 0 | BC150: 0
F151: =IF(Table13[[#This Row],[PROPORTIONAL]]="", "", (ABS(1-Table13[[#This Row],[PROPORTIONAL]]))) ->  | J151: 0 | AH151: 0 | AK151: 0 | AQ151: 0 | AT151: 0 | AZ151: 0 | BC151: 0
F152: =IF(Table13[[#This Row],[PROPORTIONAL]]="", "", (ABS(1-Table13[[#This Row],[PROPORTIONAL]]))) ->  | J152: 0 | AH152: 0 | AK152: 0 | AQ152: 0 | AT152: 0 | AZ152: 0 | BC152: 0
F153: =IF(Table13[[#This Row],[PROPORTIONAL]]="", "", (ABS(1-Table13[[#This Row],[PROPORTIONAL]]))) ->  | J153: 0 | AH153: 0 | AK153: 0 | AQ153: 0 | AT153: 0 | AZ153: 0 | BC153: 0
F154: =IF(Table13[[#This Row],[PROPORTIONAL]]="", "", (ABS(1-Table13[[#This Row],[PROPORTIONAL]]))) ->  | J154: 0 | AH154: 0 | AK154: 0 | AQ154: 0 | AT154: 0 | AZ154: 0 | BC154: 0
F155: =IF(Table13[[#This Row],[PROPORTIONAL]]="", "", (ABS(1-Table13[[#This Row],[PROPORTIONAL]]))) ->  | J155: 0 | AH155: 0 | AK155: 0 | AQ155: 0 | AT155: 0 | AZ155: 0 | BC155: 0
F156: =IF(Table13[[#This Row],[PROPORTIONAL]]="", "", (ABS(1-Table13[[#This Row],[PROPORTIONAL]]))) ->  | J156: 0 | AH156: 0 | AK156: 0 | AQ156: 0 | AT156: 0 | AZ156: 0 | BC156: 0
F157: =IF(Table13[[#This Row],[PROPORTIONAL]]="", "", (ABS(1-Table13[[#This Row],[PROPORTIONAL]]))) ->  | J157: 0 | AH157: 0 | AK157: 0 | AQ157: 0 | AT157: 0 | AZ157: 0 | BC157: 0
F158: =IF(Table13[[#This Row],[PROPORTIONAL]]="", "", (ABS(1-Table13[[#This Row],[PROPORTIONAL]]))) ->  | J158: 0 | AH158: 0 | AK158: 0 | AQ158: 0 | AT158: 0 | AZ158: 0 | BC158: 0
F159: =IF(Table13[[#This Row],[PROPORTIONAL]]="", "", (ABS(1-Table13[[#This Row],[PROPORTIONAL]]))) ->  | J159: 0 | AH159: 0 | AK159: 0 | AQ159: 0 | AT159: 0 | AZ159: 0 | BC159: 0
F160: =IF(Table13[[#This Row],[PROPORTIONAL]]="", "", (ABS(1-Table13[[#This Row],[PROPORTIONAL]]))) ->  | J160: 0 | AH160: 0 | AK160: 0 | AQ160: 0 | AT160: 0 | AZ160: 0 | BC160: 0
F161: =IF(Table13[[#This Row],[PROPORTIONAL]]="", "", (ABS(1-Table13[[#This Row],[PROPORTIONAL]]))) ->  | J161: 0 | AH161: 0 | AK161: 0 | AQ161: 0 | AT161: 0 | AZ161: 0 | BC161: 0
F162: =IF(Table13[[#This Row],[PROPORTIONAL]]="", "", (ABS(1-Table13[[#This Row],[PROPORTIONAL]]))) ->  | J162: 0 | AH162: 0 | AK162: 0 | AQ162: 0 | AT162: 0 | AZ162: 0 | BC162: 0
F163: =IF(Table13[[#This Row],[PROPORTIONAL]]="", "", (ABS(1-Table13[[#This Row],[PROPORTIONAL]]))) ->  | J163: 0 | AH163: 0 | AK163: 0 | AQ163: 0 | AT163: 0 | AZ163: 0 | BC163: 0
F164: =IF(Table13[[#This Row],[PROPORTIONAL]]="", "", (ABS(1-Table13[[#This Row],[PROPORTIONAL]]))) ->  | J164: 0 | AH164: 0 | AK164: 0 | AQ164: 0 | AT164: 0 | AZ164: 0 | BC164: 0
F165: =IF(Table13[[#This Row],[PROPORTIONAL]]="", "", (ABS(1-Table13[[#This Row],[PROPORTIONAL]]))) ->  | J165: 0 | AH165: 0 | AK165: 0 | AQ165: 0 | AT165: 0 | AZ165: 0 | BC165: 0
F166: =IF(Table13[[#This Row],[PROPORTIONAL]]="", "", (ABS(1-Table13[[#This Row],[PROPORTIONAL]]))) ->  | J166: 0 | AH166: 0 | AK166: 0 | AQ166: 0 | AT166: 0 | AZ166: 0 | BC166: 0
F167: =IF(Table13[[#This Row],[PROPORTIONAL]]="", "", (ABS(1-Table13[[#This Row],[PROPORTIONAL]]))) ->  | J167: 0 | AH167: 0 | AK167: 0 | AQ167: 0 | AT167: 0 | AZ167: 0 | BC167: 0
F168: =IF(Table13[[#This Row],[PROPORTIONAL]]="", "", (ABS(1-Table13[[#This Row],[PROPORTIONAL]]))) ->  | J168: 0 | AH168: 0 | AK168: 0 | AQ168: 0 | AT168: 0 | AZ168: 0 | BC168: 0
F169: =IF(Table13[[#This Row],[PROPORTIONAL]]="", "", (ABS(1-Table13[[#This Row],[PROPORTIONAL]]))) ->  | J169: 0 | AH169: 0 | AK169: 0 | AQ169: 0 | AT169: 0 | AZ169: 0 | BC169: 0
F170: =IF(Table13[[#This Row],[PROPORTIONAL]]="", "", (ABS(1-Table13[[#This Row],[PROPORTIONAL]]))) ->  | J170: 0 | AH170: 0 | AK170: 0 | AQ170: 0 | AT170: 0 | AZ170: 0 | BC170: 0
F171: =IF(Table13[[#This Row],[PROPORTIONAL]]="", "", (ABS(1-Table13[[#This Row],[PROPORTIONAL]]))) ->  | J171: 0 | AH171: 0 | AK171: 0 | AQ171: 0 | AT171: 0 | AZ171: 0 | BC171: 0
F172: =IF(Table13[[#This Row],[PROPORTIONAL]]="", "", (ABS(1-Table13[[#This Row],[PROPORTIONAL]]))) ->  | J172: 0 | AH172: 0 | AK172: 0 | AQ172: 0 | AT172: 0 | AZ172: 0 | BC172: 0
F173: =IF(Table13[[#This Row],[PROPORTIONAL]]="", "", (ABS(1-Table13[[#This Row],[PROPORTIONAL]]))) ->  | J173: 0 | AH173: 0 | AK173: 0 | AQ173: 0 | AT173: 0 | AZ173: 0 | BC173: 0
F174: =IF(Table13[[#This Row],[PROPORTIONAL]]="", "", (ABS(1-Table13[[#This Row],[PROPORTIONAL]]))) ->  | J174: 0 | AH174: 0 | AK174: 0 | AQ174: 0 | AT174: 0 | AZ174: 0 | BC174: 0
F175: =IF(Table13[[#This Row],[PROPORTIONAL]]="", "", (ABS(1-Table13[[#This Row],[PROPORTIONAL]]))) ->  | J175: 0 | AH175: 0 | AK175: 0 | AQ175: 0 | AT175: 0 | AZ175: 0 | BC175: 0
F176: =IF(Table13[[#This Row],[PROPORTIONAL]]="", "", (ABS(1-Table13[[#This Row],[PROPORTIONAL]]))) ->  | J176: 0 | AH176: 0 | AK176: 0 | AQ176: 0 | AT176: 0 | AZ176: 0 | BC176: 0
F177: =IF(Table13[[#This Row],[PROPORTIONAL]]="", "", (ABS(1-Table13[[#This Row],[PROPORTIONAL]]))) ->  | J177: 0 | AH177: 0 | AK177: 0 | AQ177: 0 | AT177: 0 | AZ177: 0 | BC177: 0
F178: =IF(Table13[[#This Row],[PROPORTIONAL]]="", "", (ABS(1-Table13[[#This Row],[PROPORTIONAL]]))) ->  | J178: 0 | AH178: 0 | AK178: 0 | AQ178: 0 | AT178: 0 | AZ178: 0 | BC178: 0
F179: =IF(Table13[[#This Row],[PROPORTIONAL]]="", "", (ABS(1-Table13[[#This Row],[PROPORTIONAL]]))) ->  | J179: 0 | AH179: 0 | AK179: 0 | AQ179: 0 | AT179: 0 | AZ179: 0 | BC179: 0
F180: =IF(Table13[[#This Row],[PROPORTIONAL]]="", "", (ABS(1-Table13[[#This Row],[PROPORTIONAL]]))) ->  | J180: 0 | AH180: 0 | AK180: 0 | AQ180: 0 | AT180: 0 | AZ180: 0 | BC180: 0
F181: =IF(Table13[[#This Row],[PROPORTIONAL]]="", "", (ABS(1-Table13[[#This Row],[PROPORTIONAL]]))) ->  | J181: 0 | AH181: 0 | AK181: 0 | AQ181: 0 | AT181: 0 | AZ181: 0 | BC181: 0
F182: =IF(Table13[[#This Row],[PROPORTIONAL]]="", "", (ABS(1-Table13[[#This Row],[PROPORTIONAL]]))) ->  | J182: 0 | AH182: 0 | AK182: 0 | AQ182: 0 | AT182: 0 | AZ182: 0 | BC182: 0
F183: =IF(Table13[[#This Row],[PROPORTIONAL]]="", "", (ABS(1-Table13[[#This Row],[PROPORTIONAL]]))) ->  | J183: 0 | AH183: 0 | AK183: 0 | AQ183: 0 | AT183: 0 | AZ183: 0 | BC183: 0
F184: =IF(Table13[[#This Row],[PROPORTIONAL]]="", "", (ABS(1-Table13[[#This Row],[PROPORTIONAL]]))) ->  | J184: 0 | AH184: 0 | AK184: 0 | AQ184: 0 | AT184: 0 | AZ184: 0 | BC184: 0
F185: =IF(Table13[[#This Row],[PROPORTIONAL]]="", "", (ABS(1-Table13[[#This Row],[PROPORTIONAL]]))) ->  | J185: 0 | AH185: 0 | AK185: 0 | AQ185: 0 | AT185: 0 | AZ185: 0 | BC185: 0
F186: =IF(Table13[[#This Row],[PROPORTIONAL]]="", "", (ABS(1-Table13[[#This Row],[PROPORTIONAL]]))) ->  | J186: 0 | AH186: 0 | AK186: 0 | AQ186: 0 | AT186: 0 | AZ186: 0 | BC186: 0
F187: =IF(Table13[[#This Row],[PROPORTIONAL]]="", "", (ABS(1-Table13[[#This Row],[PROPORTIONAL]]))) ->  | J187: 0 | AH187: 0 | AK187: 0 | AQ187: 0 | AT187: 0 | AZ187: 0 | BC187: 0
F188: =IF(Table13[[#This Row],[PROPORTIONAL]]="", "", (ABS(1-Table13[[#This Row],[PROPORTIONAL]]))) ->  | J188: 0 | AH188: 0 | AK188: 0 | AQ188: 0 | AT188: 0 | AZ188: 0 | BC188: 0
F189: =IF(Table13[[#This Row],[PROPORTIONAL]]="", "", (ABS(1-Table13[[#This Row],[PROPORTIONAL]]))) ->  | J189: 0 | AH189: 0 | AK189: 0 | AQ189: 0 | AT189: 0 | AZ189: 0 | BC189: 0
F190: =IF(Table13[[#This Row],[PROPORTIONAL]]="", "", (ABS(1-Table13[[#This Row],[PROPORTIONAL]]))) ->  | J190: 0 | AH190: 0 | AK190: 0 | AQ190: 0 | AT190: 0 | AZ190: 0 | BC190: 0
F191: =IF(Table13[[#This Row],[PROPORTIONAL]]="", "", (ABS(1-Table13[[#This Row],[PROPORTIONAL]]))) ->  | J191: 0 | AH191: 0 | AK191: 0 | AQ191: 0 | AT191: 0 | AZ191: 0 | BC191: 0
F192: =IF(Table13[[#This Row],[PROPORTIONAL]]="", "", (ABS(1-Table13[[#This Row],[PROPORTIONAL]]))) ->  | J192: 0 | AH192: 0 | AK192: 0 | AQ192: 0 | AT192: 0 | AZ192: 0 | BC192: 0
F193: =IF(Table13[[#This Row],[PROPORTIONAL]]="", "", (ABS(1-Table13[[#This Row],[PROPORTIONAL]]))) ->  | J193: 0 | AH193: 0 | AK193: 0 | AQ193: 0 | AT193: 0 | AZ193: 0 | BC193: 0
F194: =IF(Table13[[#This Row],[PROPORTIONAL]]="", "", (ABS(1-Table13[[#This Row],[PROPORTIONAL]]))) ->  | J194: 0 | AH194: 0 | AK194: 0 | AQ194: 0 | AT194: 0 | AZ194: 0 | BC194: 0
F195: =IF(Table13[[#This Row],[PROPORTIONAL]]="", "", (ABS(1-Table13[[#This Row],[PROPORTIONAL]]))) ->  | J195: 0 | AH195: 0 | AK195: 0 | AQ195: 0 | AT195: 0 | AZ195: 0 | BC195: 0
F196: =IF(Table13[[#This Row],[PROPORTIONAL]]="", "", (ABS(1-Table13[[#This Row],[PROPORTIONAL]]))) ->  | J196: 0 | AH196: 0 | AK196: 0 | AQ196: 0 | AT196: 0 | AZ196: 0 | BC196: 0
F197: =IF(Table13[[#This Row],[PROPORTIONAL]]="", "", (ABS(1-Table13[[#This Row],[PROPORTIONAL]]))) ->  | J197: 0 | AH197: 0 | AK197: 0 | AQ197: 0 | AT197: 0 | AZ197: 0 | BC197: 0
F198: =IF(Table13[[#This Row],[PROPORTIONAL]]="", "", (ABS(1-Table13[[#This Row],[PROPORTIONAL]]))) ->  | J198: 0 | AH198: 0 | AK198: 0 | AQ198: 0 | AT198: 0 | AZ198: 0 | BC198: 0
F199: =IF(Table13[[#This Row],[PROPORTIONAL]]="", "", (ABS(1-Table13[[#This Row],[PROPORTIONAL]]))) ->  | J199: 0 | AH199: 0 | AK199: 0 | AQ199: 0 | AT199: 0 | AZ199: 0 | BC199: 0
F200: =IF(Table13[[#This Row],[PROPORTIONAL]]="", "", (ABS(1-Table13[[#This Row],[PROPORTIONAL]]))) ->  | J200: 0 | AH200: 0 | AK200: 0 | AQ200: 0 | AT200: 0 | AZ200: 0 | BC200: 0
F201: =IF(Table13[[#This Row],[PROPORTIONAL]]="", "", (ABS(1-Table13[[#This Row],[PROPORTIONAL]]))) ->  | J201: 0 | AH201: 0 | AK201: 0 | AQ201: 0 | AT201: 0 | AZ201: 0 | BC201: 0
F202: =IF(Table13[[#This Row],[PROPORTIONAL]]="", "", (ABS(1-Table13[[#This Row],[PROPORTIONAL]]))) ->  | J202: 0 | AH202: 0 | AK202: 0 | AQ202: 0 | AT202: 0 | AZ202: 0 | BC202: 0
... 509 more rows

Sheet Helpsheet-1 (hidden)
A1: Chart Type - U Chart | B1: In SQC, the u-chart is a type of control chart used to monitor "count"-type data where the sample size is greater than one, typically the average number of nonconformities per unit. The u-chart differs from the c-chart in that it accounts for the possibility that the number or size of inspection units for which nonconformities are to be counted may vary. Larger samples may be an economic necessity or may be necessary to increase the area of opportunity in order to track very low nonconformity levels. As with the c-chart, the Poisson distribution is the basis for the chart and requires the same assumptions. The control limits for this chart type are u+/- 3*SQRT(u/n) where is the estimate of the long-term process mean
A2: Metrics Used & its Basis | B2: Specify the metric which is tracked through control chart. It could be derived from PPM. Example of typical metrics being used for U Chart - Defect Density - Fail/Pass, Defective/Non-defective, - Defects, - Non-conformances, - etc..
A3: Distribution followed - Poisson Distribution | B3: Poisson Distribution A Poisson random variable is the number of successes that result from a Poisson experiment. The probability distribution of a Poisson random variable is called a Poisson distribution A Poisson experiment is a statistical experiment that has the following properties: (1. ) The experiment results in outcomes that can be classified as successes or failures. (2.) The average number of successes (μ) that occurs in a specified region is known. (3.) The probability that a success will occur is proportional to the size of the region. (4.) The probability that a success will occur in an extremely small region is virtually zero.
A4: Data Type - Attributes / Variables | B4: Data Types are classified into 2 categories : ATTRIBUTE DATA Attributes data is defined as a count such as the number of employees, the number of errors, the number of defective products, or the number of phone calls. A standard is set, and then an assessment is made to establish if the standard has been met. The number of times the standard is either met or not is the count. Attributes data never contains decimal places when it is collected, it is always whole numbers, e.g. 2, 15 Metrics to be used Fail/Pass, Defective/Non-defective, Defects, Non-conformances, Defect Density, % Defective, % Meeting SLA etc. VARIABLE DATA Variables data is defined as a measurement such as height, weight, time, or length. Monetary values are also variables data. Generally, a measuring device such as a weighing scale, vernier, or clock produces this data. Another characteristic of variables data is that it can contain decimal places e.g. 3.4, 8.2. Metrics to be used Effort, Time, Productivity etc.
A5: Sample or Subgroup size | B5: Sample or subgroup size is defined as the amount of data collected at one time. This is best explained through examples. (a.) When assessing the temperature in a vat of liquid, the reading is measured once hourly; therefore the sample size is one per hour. (b.) When measuring the height of parts, a sample of five parts is taken and measured every 15 minutes; therefore the sample size is five. (c.) When checking the number of phone calls that ring more than three times before being answered, the sample size is the total number of phone calls received, which will vary. (d.) When checking 10 invoices per day for errors, the sample size is 10.

Sheet Helpsheet-2 (hidden)
A1: Chart Type - XmR Chart | B1: This chart is particularly useful when there is only one observation in each time period. You can use Individual X & Moving Range Control Charts to assess both variables and attribute data. The only condition that needs to be checked before using the XmR Control Chart is that the average count per sample IS GREATER THAN ONE. There is no variation within a subgroup since each subgroup has a sample size of 1,and the difference between successive subgroups is used as a measure of variation. This difference is called a moving range. There is a corresponding moving range value for each of the individual X values except the very first value. For Sub group size of 2, UCLx = X + (2.66)mR & UCLx = X - (2.66)mR UCLmR = (3.268)mR & UCLmR = 0
A2: Metrics Used & its Basis | B2: Specify the metric which is tracked through control chart. It could be derived from PPM. Example of typical metrics being used for XmR Chart - Productivity (Design, Code etc.) - Inspection Rate - etc..
A3: Distribution followed - Normal Distribution | B3: What Does Normal Distribution Mean? A probability distribution that plots all of its values in a symmetrical fashion and most of the results are situated around the probability's mean. Values are equally likely to plot either above or below the mean. Grouping takes place at values that are close to the mean and then tails off symmetrically away from the mean. Also known as a "Gaussian distribution" or "bell curve".
A4: Data Type - Attributes / Variables | B4: Data Types are classified into 2 categories : ATTRIBUTE DATA Attributes data is defined as a count such as the number of employees, the number of errors, the number of defective products, or the number of phone calls. A standard is set, and then an assessment is made to establish if the standard has been met. The number of times the standard is either met or not is the count. Attributes data never contains decimal places when it is collected, it is always whole numbers, e.g. 2, 15 Metrics to be used Fail/Pass, Defective/Non-defective, Defects, Non-conformances, Defect Density, % Defective, % Meeting SLA VARIABLE DATA Variables data is defined as a measurement such as height, weight, time, or length. Monetary values are also variables data. Generally, a measuring device such as a weighing scale, vernier, or clock produces this data. Another characteristic of variables data is that it can contain decimal places e.g. 3.4, 8.2. Metrics to be used Effort, Time, Productivity etc.
A5: Sample or Subgroup size | B5: Sample or subgroup size is defined as the amount of data collected at one time. This is best explained through examples. (a.) When assessing the temperature in a vat of liquid, the reading is measured once hourly; therefore the sample size is one per hour. (b.) When measuring the height of parts, a sample of five parts is taken and measured every 15 minutes; therefore the sample size is five. (c.) When checking the number of phone calls that ring more than three times before being answered, the sample size is the total number of phone calls received, which will vary. (d.) When checking 10 invoices per day for errors, the sample size is

Sheet Helpsheet-3 (hidden)
A1: Chart Type - P Chart | B1: In statistical quality control, the p-chart is a type of control chart used to monitor the proportion of nonconforming units in a sample, where the sample proportion nonconforming is defined as the ratio of the number of nonconforming units to the sample size, n. The p-chart only accommodates "pass"/"fail"-type inspection as determined by one or more go-no go gauges or tests, effectively applying the specifications to the data before they are plotted on the chart. The control limits for this chart type are p +/- 3 * SQRT (p(1-p)/n), where is the estimate of the long-term process mean established during control-chart setup
A2: Metrics Used & its Basis | B2: Specify the metric which is tracked through control chart. It could be derived from PPM. Example of typical metrics being used for P Chart - % Meeting SLA - % Defective, - etc..
A3: Distribution followed - Binomial Distribution | B3: What Does Binomial Distribution Mean? A probability distribution that summarizes the likelihood that a value will take one of two independent values under a given set of parameters or assumptions. The underlying assumptions of the binomial distribution are that there is only one outcome for each trial, that each trial has the same probability of success and that each trial is mutually exclusive.
A4: Data Type - Attributes / Variables | B4: Data Types are classified into 2 categories : ATTRIBUTE DATA Attributes data is defined as a count such as the number of employees, the number of errors, the number of defective products, or the number of phone calls. A standard is set, and then an assessment is made to establish if the standard has been met. The number of times the standard is either met or not is the count. Attributes data never contains decimal places when it is collected, it is always whole numbers, e.g. 2, 15 Metrics to be used Fail/Pass, Defective/Non-defective, Defects, Non-conformances, Defect Density, % Defective, % Meeting SLA VARIABLE DATA Variables data is defined as a measurement such as height, weight, time, or length. Monetary values are also variables data. Generally, a measuring device such as a weighing scale, vernier, or clock produces this data. Another characteristic of variables data is that it can contain decimal places . e.g. 3.4, 8.2. Metrics to be used Effort, Time, Productivity etc.
A5: Sample or Subgroup size | B5: Sample or subgroup size is defined as the amount of data collected at one time. This is best explained through examples. (a.) When assessing the temperature in a vat of liquid, the reading is measured once hourly; therefore the sample size is one per hour. (b.) When measuring the height of parts, a sample of five parts is taken and measured every 15 minutes; therefore the sample size is five. (c.) When checking the number of phone calls that ring more than three times before being answered, the sample size is the total number of phone calls received, which will vary. (d.) When checking 10 invoices per day for errors, the sample size is
A6: Metrics Used & its Basis | B6: Specify the metric which is tracked through control chart. It could be derived from PPM.

Sheet Cp-Calculator (hidden)
A1: XMR and X Bar Chart | E1: X Median chart
A2: n | B2: A2 | C2: D4 | D2: d2 | E2: n | F2: A2
A3: 1 | B3: 2.66 | C3: 3.27 | D3: 1.128 | E3: 1
A4: 2 | B4: 1.88 | C4: 3.27 | D4: 1.128 | E4: 2 | F4: 1.88
A5: 3 | B5: 1.023 | C5: 2.575 | D5: 1.693 | E5: 3 | F5: 1.19
A6: 4 | B6: 0.729 | C6: 2.282 | D6: 2.059 | E6: 4 | F6: 0.8
A7: 5 | B7: 0.577 | C7: 2.115 | D7: 2.326 | E7: 5 | F7: 0.69
A8: 6 | B8: 0.483 | C8: 2.004 | D8: 2.543 | E8: 6 | F8: 0.55
A9: Process Capability
A10: Mean = | B10: =XmR_Chart!F6 -> 6.125 | D10: USL = | E10: =XmR_Chart!H6 -> 9 | H10: Mean = | I10: =U_Chart!F8 -> 0.7407407407 | K10: USL = | L10: =U_Chart!H6 -> 1.5 | O10: Mean = | P10: =P_Chart!G7 -> 0.9555555556 | R10: USL = | S10: =P_Chart!I6 -> 1.5
A11: R-bar/d2 = | B11: =(XmR_Chart!F7)/(VLOOKUP(1,XMR_Table,4,FALSE)) -> 0.6332320162 | D11: LSL = | E11: =XmR_Chart!H7 -> 1 | H11: Standard Deviation = | I11: =SQRT(U_Chart!$F$8/U_Chart!$F$7) -> 0.165634665 | K11: LSL = | L11: =U_Chart!H7 -> 0.5 | O11: Standard Deviation = | P11: =STDEV(P_Chart!P14:P711) -> 0.08819171037 | R11: LSL = | S11: =P_Chart!I7 -> 0.8
A12: Cp = | B12: =XmR_Chart!V8 -> 2.106 | D12: 3 Sigma | H12: Cp = | I12: =U_Chart!O8 -> 1.006 | K12: 3 Sigma | O12: Cp = | P12: =P_Chart!P8 -> 1.323 | R12: 3 Sigma
A13: Cpk = | B13: =MIN(B14:B15) -> 1.513 | D13: Specification | H13: Cpk = | I13: =MIN(I14:I15) -> 0.484 | K13: Specification | O13: Cpk = | P13: =MIN(P14:P15) -> 0.588 | R13: Specification
A14: Cpu = | B14: =XmR_Chart!V9 -> 1.513 | H14: Cpu = | I14: =U_Chart!O9 -> 1.528 | O14: Cpu = | P14: =P_Chart!P9 -> 2.058
A15: Cpl = | B15: =XmR_Chart!V10 -> 2.698 | H15: Cpl = | I15: =U_Chart!O10 -> 0.484 | O15: Cpl = | P15: =P_Chart!P10 -> 0.588
A16: X-MR Chart | H16: U Chart | O16: P Chart
A17: WARNING: DO NOT MAKE ANY CHANGES TO THIS TABLE | H17: WARNING: DO NOT MAKE ANY CHANGES TO THIS TABLE | O17: WARNING: DO NOT MAKE ANY CHANGES TO THIS TABLE
A18: -4 | B18: 0.000575 | C18: =$B$10+A18*$B$11 -> 3.592071935 | D18: =B18/$B$11 -> 0.00090804 | H18: -4 | I18: 0.000575 | J18: =$I$10+H18*$I$11 -> 0.07820208074 | K18: =I18/$I$11 -> 0.003471495535 | O18: -4 | P18: 0.000575 | Q18: =$P$10+O18*$P$11 -> 0.6027887141 | R18: =P18/$P$11 -> 0.006519887159
A19: -3.5 | B19: 0.0033 | C19: =$B$10+A19*$B$11 -> 3.908687943 | D19: =B19/$B$11 -> 0.00521136 | H19: -3.5 | I19: 0.0033 | J19: =$I$10+H19*$I$11 -> 0.1610194132 | K19: =I19/$I$11 -> 0.01992336568 | O19: -3.5 | P19: 0.0033 | Q19: =$P$10+O19*$P$11 -> 0.6468845693 | R19: =P19/$P$11 -> 0.03741848283
A20: -3 | B20: 0.014925 | C20: 4.225303951 | D20: 0.02356956 | E20: =1.4*D26 -> 2.1169176 | H20: -3 | I20: 0.014925 | J20: 0.2438367457 | K20: 0.09010794932 | L20: =1.4*K26 -> 8.093112634 | O20: -3 | P20: 0.014925 | Q20: 0.6909804244 | R20: 0.1692335928 | S20: =1.4*R26 -> 15.19984128
A21: -2.5 | B21: 0.053625 | C21: 4.541919959 | D21: 0.0846846 | H21: -2.5 | I21: 0.053625 | J21: 0.3266540782 | K21: 0.3237546923 | O21: -2.5 | P21: 0.053625 | Q21: 0.7350762796 | R21: 0.608050346
A22: -2 | B22: 0.1515 | C22: 4.858535968 | D22: 0.2392488 | H22: -2 | I22: 0.1515 | J22: 0.4094714107 | K22: 0.9146636062 | O22: -2 | P22: 0.1515 | Q22: 0.7791721348 | R22: 1.71784853
A23: -1.5 | B23: 0.33975 | C23: 5.175151976 | D23: 0.5365332 | H23: -1.5 | I23: 0.33975 | J23: 0.4922887432 | K23: 2.051201057 | O23: -1.5 | P23: 0.33975 | Q23: 0.82326799 | R23: 3.852402891
A24: -1 | B24: 0.60425 | C24: 5.491767984 | D24: 0.9542316 | H24: -1 | I24: 0.60425 | J24: 0.5751060757 | K24: 3.648089004 | O24: -1 | P24: 0.60425 | Q24: 0.8673638452 | R24: 6.851550984
A25: -0.5 | B25: 0.85325 | C25: 5.808383992 | D25: 1.3474524 | H25: -0.5 | I25: 0.85325 | J25: 0.6579234082 | K25: 5.151397505 | O25: -0.5 | P25: 0.85325 | Q25: 0.9114597004 | R25: 9.674945598
A26: 0 | B26: 0.9575 | C26: 6.125 | D26: 1.512084 | E26: =1.25*$D$26 -> 1.890105 | H26: 0 | I26: 0.9575 | J26: 0.7407407407 | K26: 5.780794739 | L26: =1.25*$K$26 -> 7.225993424 | O26: 0 | P26: 0.9575 | Q26: 0.9555555556 | R26: 10.85702949 | S26: =1.25*$R$26 -> 13.57128686
A27: 0.5 | B27: 0.85325 | C27: 6.441616008 | D27: 1.3474524 | H27: 0.5 | I27: 0.85325 | J27: 0.8235580732 | K27: 5.151397505 | O27: 0.5 | P27: 0.85325 | Q27: 0.9996514107 | R27: 9.674945598
A28: 1 | B28: 0.60425 | C28: 6.758232016 | D28: 0.9542316 | H28: 1 | I28: 0.60425 | J28: 0.9063754057 | K28: 3.648089004 | O28: 1 | P28: 0.60425 | Q28: 1.043747266 | R28: 6.851550984
A29: 1.5 | B29: 0.33975 | C29: 7.074848024 | D29: 0.5365332 | H29: 1.5 | I29: 0.33975 | J29: 0.9891927382 | K29: 2.051201057 | O29: 1.5 | P29: 0.33975 | Q29: 1.087843121 | R29: 3.852402891
A30: 2 | B30: 0.1515 | C30: 7.391464032 | D30: 0.2392488 | H30: 2 | I30: 0.1515 | J30: 1.072010071 | K30: 0.9146636062 | O30: 2 | P30: 0.1515 | Q30: 1.131938976 | R30: 1.71784853
A31: 2.5 | B31: 0.053625 | C31: 7.708080041 | D31: 0.0846846 | H31: 2.5 | I31: 0.053625 | J31: 1.154827403 | K31: 0.3237546923 | O31: 2.5 | P31: 0.053625 | Q31: 1.176034831 | R31: 0.608050346
A32: 3 | B32: 0.014925 | C32: 8.024696049 | D32: 0.02356956 | E32: =1.1*$D$26 -> 1.6632924 | H32: 3 | I32: 0.014925 | J32: 1.237644736 | K32: 0.09010794932 | L32: =1.1*$K$26 -> 6.358874213 | O32: 3 | P32: 0.014925 | Q32: 1.220130687 | R32: 0.1692335928 | S32: =1.1*$R$26 -> 11.94273244
A33: 3.5 | B33: 0.0033 | C33: 8.341312057 | D33: 0.00521136 | H33: 3.5 | I33: 0.0033 | J33: 1.320462068 | K33: 0.01992336568 | O33: 3.5 | P33: 0.0033 | Q33: 1.264226542 | R33: =P33/$P$11 -> 0.03741848283
A34: 4 | B34: 0.000575 | C34: 8.657928065 | D34: 0.00090804 | H34: 4 | I34: 0.000575 | J34: 1.403279401 | K34: 0.003471495535 | O34: 4 | P34: 0.000575 | Q34: 1.308322397 | R34: =P34/$P$11 -> 0.006519887159
